Workbook

Sheet CF (hidden)
B2: CONDITIONAL FORMATTING MAP
F3: =INDEX(dms_CF_3.6.5, MATCH(dms_TradingName,dms_CF_TradingName))="Y" | G3: =INDEX(dms_CF_3.6.6.1, MATCH(dms_TradingName,dms_CF_TradingName))="Y" | H3: =INDEX(dms_CF_3.6.6.2, MATCH(dms_TradingName,dms_CF_TradingName))="Y" | I3: =INDEX(dms_CF_3.6.6.3, MATCH(dms_TradingName,dms_CF_TradingName))="Y" | J3: =INDEX(dms_CF_3.6.7.1, MATCH(dms_TradingName,dms_CF_TradingName))="Y" | K3: =INDEX(dms_CF_3.6.7.2, MATCH(dms_TradingName,dms_CF_TradingName))="Y" | L3: =INDEX(dms_CF_3.6.7.3, MATCH(dms_TradingName,dms_CF_TradingName))="Y" | M3: =INDEX(dms_CF_3.6.7.4, MATCH(dms_TradingName,dms_CF_TradingName))="Y" | N3: =INDEX(dms_CF_6.6.1, MATCH(dms_TradingName,dms_CF_TradingName))="Y" | O3: =INDEX(dms_CF_6.6.2, MATCH(dms_TradingName,dms_CF_TradingName))="Y" | P3: =INDEX(dms_CF_6.6.3, MATCH(dms_TradingName,dms_CF_TradingName))="Y" | Q3: =INDEX(dms_CF_6.6.4, MATCH(dms_TradingName,dms_CF_TradingName))="Y" | R3: =INDEX(dms_CF_6.8, MATCH(dms_TradingName,dms_CF_TradingName))="Y" | S3: =INDEX(dms_CF_7.12, MATCH(dms_TradingName,dms_CF_TradingName))="Y" | T3: =INDEX(dms_CF_8.1_A, MATCH(dms_TradingName,dms_CF_TradingName))="Y" | U3: =INDEX(dms_CF_8.1_B, MATCH(dms_TradingName,dms_CF_TradingName))="Y" | V3: =INDEX(dms_CF_8.1_Neg, MATCH(dms_TradingName,dms_CF_TradingName))="Y"
B4: dms_CF_TradingName | C4: JurisdictionList | D4: Sector | E4: Segment | F4: dms_CF_3.6.5 | G4: dms_CF_3.6.6.1 | H4: dms_CF_3.6.6.2 | I4: dms_CF_3.6.6.3 | J4: dms_CF_3.6.7.1 | K4: dms_CF_3.6.7.2 | L4: dms_CF_3.6.7.3 | M4: dms_CF_3.6.7.4 | N4: dms_CF_6.6.1 | O4: dms_CF_6.6.2 | P4: dms_CF_6.6.3 | Q4: dms_CF_6.6.4 | R4: dms_CF_6.8 | S4: dms_CF_7.12 | T4: dms_CF_8.1_A | U4: dms_CF_8.1_B | V4: dms_CF_8.1_Neg | W4: Column1 | X4: Column3
B5: ActewAGL Distribution | C5: ACT | D5: Electricity | E5: Distribution | F5: Y | G5: N | H5: Y | I5: Y | J5: Y | K5: Y | L5: N | M5: Y | N5: N | O5: Y | P5: Y | Q5: Y | R5: Y | S5: Y | T5: N | U5: Y | V5: Y | W5: N
B6: Ausgrid | C6: NSW | D6: Electricity | E6: Distribution | F6: Y | G6: N | H6: Y | I6: Y | J6: N | K6: N | L6: N | M6: Y | N6: N | O6: Y | P6: Y | Q6: Y | R6: Y | S6: Y | T6: N | U6: Y | V6: Y | W6: N
B7: AusNet (D) | C7: Vic | D7: Electricity | E7: Distribution | F7: N | G7: N | H7: N | I7: N | J7: N | K7: N | L7: N | M7: N | N7: N | O7: Y | P7: Y | Q7: Y | R7: Y | S7: N | T7: N | U7: N | V7: Y | W7: N
B8: AusNet (T) | C8: Vic | D8: Electricity | E8: Transmission | F8: N | G8: N | H8: N | I8: N | J8: N | K8: N | L8: N | M8: N | N8: N | O8: N | P8: N | Q8: N | R8: Y | S8: N | T8: N | U8: N | V8: Y | W8: N
B9: CitiPower | C9: Vic | D9: Electricity | E9: Distribution | F9: N | G9: N | H9: N | I9: N | J9: N | K9: N | L9: N | M9: N | N9: N | O9: Y | P9: Y | Q9: Y | R9: Y | S9: N | T9: N | U9: N | V9: Y | W9: N
B10: Directlink | C10: Qld | D10: Electricity | E10: Transmission | F10: N | G10: N | H10: N | I10: N | J10: N | K10: N | L10: N | M10: N | N10: N | O10: N | P10: N | Q10: N | R10: Y | S10: N | T10: N | U10: Y | V10: Y | W10: N
B11: ElectraNet | C11: SA | D11: Electricity | E11: Transmission | F11: N | G11: N | H11: N | I11: N | J11: N | K11: N | L11: N | M11: N | N11: N | O11: N | P11: N | Q11: N | R11: Y | S11: N | T11: N | U11: Y | V11: Y | W11: N
B12: Endeavour Energy | C12: NSW | D12: Electricity | E12: Distribution | F12: Y | G12: N | H12: Y | I12: Y | J12: N | K12: N | L12: N | M12: Y | N12: N | O12: Y | P12: Y | Q12: Y | R12: Y | S12: Y | T12: N | U12: Y | V12: Y | W12: N
B13: Energex | C13: Qld | D13: Electricity | E13: Distribution | F13: Y | G13: N | H13: N | I13: N | J13: N | K13: N | L13: N | M13: N | N13: N | O13: Y | P13: Y | Q13: Y | R13: Y | S13: Y | T13: N | U13: Y | V13: Y | W13: N
B14: Ergon Energy | C14: Qld | D14: Electricity | E14: Distribution | F14: Y | G14: N | H14: Y | I14: Y | J14: N | K14: N | L14: N | M14: N | N14: N | O14: Y | P14: Y | Q14: Y | R14: Y | S14: Y | T14: N | U14: Y | V14: Y | W14: N
B15: Essential Energy | C15: NSW | D15: Electricity | E15: Distribution | F15: Y | G15: N | H15: Y | I15: Y | J15: N | K15: N | L15: N | M15: Y | N15: N | O15: Y | P15: Y | Q15: Y | R15: Y | S15: Y | T15: N | U15: Y | V15: Y | W15: N
B16: Jemena Electricity | C16: Vic | D16: Electricity | E16: Distribution | F16: N | G16: N | H16: N | I16: N | J16: N | K16: N | L16: N | M16: N | N16: N | O16: Y | P16: Y | Q16: Y | R16: Y | S16: N | T16: N | U16: N | V16: Y | W16: N
B17: Murraylink | C17: SA | D17: Electricity | E17: Transmission | F17: N | G17: N | H17: N | I17: N | J17: N | K17: N | L17: N | M17: N | N17: N | O17: N | P17: N | Q17: N | R17: Y | S17: N | T17: N | U17: Y | V17: Y | W17: N
B18: Power and Water | C18: NT | D18: Electricity | E18: Distribution | F18: N | G18: N | H18: N | I18: N | J18: N | K18: Y | L18: N | M18: N | N18: Y | O18: Y | P18: Y | Q18: Y | R18: Y | S18: Y | T18: N | U18: Y | V18: Y | W18: N
B19: Powercor Australia | C19: Vic | D19: Electricity | E19: Distribution | F19: N | G19: N | H19: N | I19: N | J19: N | K19: N | L19: N | M19: N | N19: N | O19: Y | P19: Y | Q19: Y | R19: Y | S19: N | T19: N | U19: N | V19: Y | W19: N
B20: Powerlink | C20: Qld | D20: Electricity | E20: Transmission | F20: N | G20: N | H20: N | I20: N | J20: N | K20: N | L20: N | M20: N | N20: N | O20: N | P20: N | Q20: N | R20: Y | S20: N | T20: N | U20: Y | V20: Y | W20: N
B21: SA Power Networks | C21: SA | D21: Electricity | E21: Distribution | F21: Y | G21: N | H21: N | I21: N | J21: N | K21: N | L21: N | M21: N | N21: N | O21: Y | P21: Y | Q21: Y | R21: Y | S21: Y | T21: Y | U21: Y | V21: N | W21: N
B22: TasNetworks (D) | C22: Tas | D22: Electricity | E22: Distribution | F22: Y | G22: N | H22: N | I22: N | J22: N | K22: N | L22: N | M22: N | N22: N | O22: Y | P22: Y | Q22: Y | R22: Y | S22: Y | T22: N | U22: Y | V22: Y | W22: N
B23: TasNetworks (T) | C23: Tas | D23: Electricity | E23: Transmission | F23: N | G23: N | H23: N | I23: N | J23: N | K23: N | L23: N | M23: N | N23: N | O23: N | P23: N | Q23: N | R23: Y | S23: N | T23: N | U23: Y | V23: Y | W23: N
B24: TransGrid | C24: NSW | D24: Electricity | E24: Transmission | F24: N | G24: N | H24: N | I24: N | J24: N | K24: N | L24: N | M24: N | N24: N | O24: N | P24: N | Q24: N | R24: Y | S24: N | T24: N | U24: Y | V24: Y | W24: N
B25: United Energy | C25: Vic | D25: Electricity | E25: Distribution | F25: N | G25: N | H25: N | I25: N | J25: N | K25: N | L25: N | M25: N | N25: N | O25: Y | P25: Y | Q25: Y | R25: Y | S25: N | T25: N | U25: N | V25: Y | W25: N

Sheet AER only (hidden)
B1: Data in these columns used for data validation and database purposes.
B2: Date last modified: | C2: 2017-01-16 | D2: added (Albury and Victora) for AGN
C3: 2016-10-17 | D3: updated TransGrid's correct legal name, corrected TasNetworks (T) to June financial year
C4: 2017-02-01 | D4: inserted Power and Water, added NRs (dms_FeederCat_1 and dms_FeederCat_2)
C5: 2017-03-03 | D5: inserted AEMO as a business | AB5: FOR ELECTRICITY BUSINESSES ONLY
C6: 2018-03-28 | D6: major changes to accommodate STPIS
C7: Template Version | D7: 5 | AB7: Feeder Types | AF7: TasNetworks (D) | AG7: MAIFI flag | AH7: Feeder Names
AB9: CBD | AC9: Urban | AD9: Short rural | AE9: long rural | AF9: EXTRA
B10: dms_TradingName_List | C10: dms_TradingNameFull_List | D10: dms_ABN_List | E10: dms_JurisdictionList | F10: dms_Sector_List | G10: dms_Segment_List | H10: dms_FormControl_List | I10: dms_RPT_List | J10: dms_RPTMonth_List | K10: dms_CRCPlength_List | L10: dms_FRCPlength_List | M10: dms_663_List | N10: dms_DeterminationRef_List | O10: dms_Addr1_List | P10: dms_Addr2_List | Q10: dms_Suburb_List | R10: dms_State_List | S10: dms_PostCode_List | T10: dms_PAddr1_List | U10: dms_PAddr2_List | V10: dms_PSuburb_List | W10: dms_PState_List | X10: dms_PPostCode_List | Y10: dms_ContactName1_List | Z10: dms_ContactPh1_List | AA10: dms_ContactEmail_List | AB10: dms_CBD_flag | AC10: dms_Urban_flag | AD10: dms_ShortRural_flag | AE10: dms_LongRural_flag | AF10: dms_FeederType_5_flag | AG10: dms_MAIFI_flag_List | AH10: dms_FeederName_1 | AI10: dms_FeederName_2 | AJ10: dms_FeederName_3 | AK10: dms_FeederName_4 | AL10: dms_FeederName_5 | AM10: dms_Public_Lighting_List | AN10: Column1
B11: ActewAGL Distribution | C11: ActewAGL Distribution | D11: 76670568688 | E11: ACT | F11: Electricity | G11: Distribution | H11: Revenue cap | I11: Financial | J11: June | K11: 5 | L11: 5 | M11: 5 | N11: 2014-19 Distribution Determination | O11: 40 Bunda Street | Q11: CANBERRA | R11: ACT | S11: 2600 | T11: GPO BOX 366 | V11: CANBERRA | W11: ACT | X11: 2601 | Y11: Robert Walker | Z11: 02 6248 3847 | AA11: robert.walker@actewagle.com.au | AB11: NO | AC11: YES | AD11: YES | AE11: NO | AF11: NO | AG11: NO | AH11: CBD | AI11: Urban | AJ11: Short rural | AK11: Long rural | AM11: YES | AN11: ActewAGL Distribution
B12: ActewAGL Distribution (Tx Assets) | C12: ActewAGL Distribution (Tx Assets) | D12: 76670568688 | E12: ACT | F12: Electricity | G12: Distribution | H12: Revenue cap | I12: Financial | J12: June | K12: 5 | L12: 5 | M12: 5 | N12: distribution determination | O12: 40 Bunda Street | Q12: CANBERRA | R12: ACT | S12: 2600 | T12: GPO BOX 366 | V12: CANBERRA | W12: ACT | X12: 2601 | Y12: Robert Walker | Z12: 02 6248 3847 | AA12: robert.walker@actewagle.com.au | AB12: NO | AC12: YES | AD12: YES | AE12: NO | AF12: NO | AG12: NO | AH12: CBD | AI12: Urban | AJ12: Short rural | AK12: Long rural | AM12: NO | AN12: ActewAGL Distribution (Tx Assets)
B13: ActewAGL Gas | C13: ActewAGL Gas | D13: 76670568688 | E13: ACT | F13: Gas | G13: Distribution | H13: Weighted average price cap | I13: Financial | J13: June | K13: 5 | L13: 5 | M13: x | O13: 40 Bunda Street | Q13: CANBERRA | R13: ACT | S13: 2600 | T13: GPO BOX 366 | V13: CANBERRA | W13: ACT | X13: 2601 | Y13: Philip Deamer | Z13: 02 6248 3438 | AA13: GasAAReview@actewagl.com.au | AB13: NO | AC13: NO | AD13: NO | AE13: NO | AF13: NO | AH13: CBD | AI13: Urban | AJ13: Short rural | AK13: Long rural | AM13: NO | AN13: ActewAGL Gas
B14: AEMO | C14: Australian Energy Market Operator Ltd | D14: 94072010327 | E14: Vic | F14: Electricity | G14: Transmission | H14: - | I14: Financial | J14: March | K14: 5 | L14: 5 | M14: x | N14: - | O14: Level 22 | P14: 530 Collins Street | Q14: MELBOURNE | R14: VIC | S14: 3000 | T14: GPO Box 2008 | V14: MELBOURNE | W14: VIC | X14: 3001 | AB14: NO | AC14: NO | AD14: NO | AE14: NO | AF14: NO | AH14: CBD | AI14: Urban | AJ14: Short rural | AK14: Long rural | AM14: NO | AN14: AEMO
B15: AGN (Albury and Victoria) | C15: Australian Gas Networks Limited (reporting data for Albury and Victoria) | D15: 19078551685 | E15: Vic | F15: Gas | G15: Distribution | H15: Weighted average price cap | I15: Calendar | J15: December | K15: 5 | L15: 5 | M15: x | O15: Level 6 | P15: 400 King William Street | Q15: ADELAIDE | R15: SA | S15: 5000 | T15: PO Box 6468 | U15: Halifax Street | V15: ADELAIDE | W15: SA | X15: 5000 | Y15: Craig de Laine | Z15: 08 8418 1129 | AA15: craig.delaine@agn.com.au | AB15: NO | AC15: NO | AD15: NO | AE15: NO | AF15: NO | AH15: CBD | AI15: Urban | AJ15: Short rural | AK15: Long rural | AM15: NO | AN15: AGN (Albury)
B16: AGN (Albury) | C16: Australian Gas Networks Limited (reporting data for Albury) | D16: 19078551685 | E16: Vic | F16: Gas | G16: Distribution | H16: Weighted average price cap | I16: Calendar | J16: December | K16: 5 | L16: 5 | M16: x | O16: Level 6 | P16: 400 King William Street | Q16: ADELAIDE | R16: SA | S16: 5000 | T16: PO Box 6468 | U16: Halifax Street | V16: ADELAIDE | W16: SA | X16: 5000 | Y16: Craig de Laine | Z16: 08 8418 1129 | AA16: craig.delaine@agn.com.au | AB16: NO | AC16: NO | AD16: NO | AE16: NO | AF16: NO | AH16: CBD | AI16: Urban | AJ16: Short rural | AK16: Long rural | AM16: NO
B17: AGN (SA) | C17: Australian Gas Networks Limited (reporting data for SA) | D17: 19078551685 | E17: SA | F17: Gas | G17: Distribution | H17: Weighted average price cap | I17: Financial | J17: June | K17: 5 | L17: 5 | M17: 5 | N17: distribution determination | O17: Level 6 | P17: 400 King William Street | Q17: ADELAIDE | R17: SA | S17: 5000 | T17: PO Box 6468 | U17: Halifax Street | V17: ADELAIDE | W17: SA | X17: 5000 | Y17: Craig de Laine | Z17: 08 8418 1129 | AA17: craig.delaine@agn.com.au | AB17: NO | AC17: NO | AD17: NO | AE17: NO | AF17: NO | AH17: CBD | AI17: Urban | AJ17: Short rural | AK17: Long rural | AM17: NO | AN17: AGN (SA)
B18: AGN (Victoria) | C18: Australian Gas Networks Limited (reporting data for Victoria) | D18: 19078551685 | E18: Vic | F18: Gas | G18: Distribution | H18: Weighted average price cap | I18: Calendar | J18: December | K18: 5 | L18: 5 | M18: x | O18: Level 6 | P18: 400 King William Street | Q18: ADELAIDE | R18: SA | S18: 5000 | T18: PO Box 6468 | U18: Halifax Street | V18: ADELAIDE | W18: SA | X18: 5000 | Y18: Craig de Laine | Z18: 08 8418 1129 | AA18: craig.delaine@agn.com.au | AB18: NO | AC18: NO | AD18: NO | AE18: NO | AF18: NO | AH18: CBD | AI18: Urban | AJ18: Short rural | AK18: Long rural | AM18: NO | AN18: AGN (Victoria)
B19: Amadeus | C19: APT Pipelines (NT) Pty Ltd | D19: 39009737393 | E19: NT | F19: Gas | G19: Transmission | H19: Weighted average price cap | I19: Financial | J19: June | K19: 5 | L19: 5 | M19: x | N19: n/a | O19: Level 19, HSBC Building | P19: 580 George Street | Q19: SYDNEY | R19: NSW | S19: 2000 | T19: Level 19, HSBC Building | U19: 580 George Street | V19: SYDNEY | W19: NSW | X19: 2000 | Y19: Alexandra Curran | Z19: 02 9275 0020 | AA19: alexandra.curran@apa.com.au | AB19: NO | AC19: NO | AD19: NO | AE19: NO | AF19: NO | AH19: CBD | AI19: Urban | AJ19: Short rural | AK19: Long rural | AM19: NO | AN19: Amadeus
B20: APA GasNet | C20: APA GasNet Australia (Operations) Pty Ltd | D20: 065083009 | E20: Vic | F20: Gas | G20: Transmission | H20: Weighted average price cap | I20: Calendar | J20: December | K20: 5 | L20: 5 | M20: x | O20: Level 19, HSBC Building | P20: 580 George Street | Q20: SYDNEY | R20: NSW | S20: 2000 | T20: PO Box R41 | V20: ROYAL EXCHANGE | W20: NSW | X20: 1225 | Y20: Alexandra Curran | Z20: 02 9275 0020 | AA20: alexandra.curran@apa.com.au | AB20: NO | AC20: NO | AD20: NO | AE20: NO | AF20: NO | AH20: CBD | AI20: Urban | AJ20: Short rural | AK20: Long rural | AM20: NO | AN20: APA GasNet
B21: Ausgrid | C21: Ausgrid | D21: 78508211731 | E21: NSW | F21: Electricity | G21: Distribution | H21: Revenue cap | I21: Financial | J21: June | K21: 5 | L21: 5 | M21: 5 | N21: 2014-19 Distribution Determination | O21: 570 George St | Q21: SYDNEY | R21: NSW | S21: 2000 | T21: GPO Box 4009 | V21: SYDNEY | W21: NSW | X21: 2001 | Y21: John Thomson | Z21: 02 9269 2312 | AA21: john.thomson@ausgrid.com.au | AB21: YES | AC21: YES | AD21: YES | AE21: YES | AF21: NO | AG21: NO | AH21: CBD | AI21: Urban | AJ21: Short rural | AK21: Long rural | AM21: YES | AN21: Ausgrid
B22: Ausgrid (Tx Assets) | C22: Ausgrid (Tx Assets) | D22: 67505337385 | E22: NSW | F22: Electricity | G22: Distribution | H22: Revenue cap | I22: Financial | J22: June | K22: 5 | L22: 5 | M22: 5 | N22: distribution determination | O22: 570 George St | Q22: SYDNEY | R22: NSW | S22: 2000 | T22: GPO Box 4009 | V22: SYDNEY | W22: NSW | X22: 2001 | Y22: John Thomson | Z22: 02 9269 2312 | AA22: john.thomson@ausgrid.com.au | AB22: YES | AC22: YES | AD22: YES | AE22: YES | AF22: NO | AG22: NO | AH22: CBD | AI22: Urban | AJ22: Short rural | AK22: Long rural | AM22: NO | AN22: Ausgrid (Tx Assets)
B23: AusNet (D) | C23: AusNet Electricity Services Pty Ltd | D23: 91064651118 | E23: Vic | F23: Electricity | G23: Distribution | H23: Revenue cap | I23: Calendar | J23: December | K23: 5 | L23: 5 | M23: 2 | N23: 2016-20 Distribution Determination | O23: Level 32 | P23: 2 Southbank Boulevard | Q23: SOUTHBANK | R23: Vic | S23: 3006 | T23: Locked Bag 14051 | V23: MELBOURNE CITY MAIL CENTRE | W23: VIC | X23: 8001 | Y23: please provide contact details | AB23: NO | AC23: YES | AD23: YES | AE23: YES | AF23: NO | AH23: CBD | AI23: Urban | AJ23: Short rural | AK23: Long rural | AM23: YES | AN23: AusNet (D)
B24: AusNet (Gas) | C24: AusNet Gas Services | D24: 086015036 | E24: Vic | F24: Gas | G24: Distribution | H24: Weighted average price cap | I24: Calendar | J24: December | K24: 5 | L24: 5 | M24: X | O24: Level 19, HSBC Building | P24: 580 George Street | Q24: SYDNEY | R24: NSW | S24: 2000 | T24: PO Box R41 | V24: ROYAL EXCHANGE | W24: NSW | X24: 1225 | Y24: Alexandra Curran | Z24: 02 9275 0020 | AA24: alexandra.curran@apa.com.au | AB24: NO | AC24: NO | AD24: NO | AE24: NO | AF24: NO | AH24: CBD | AI24: Urban | AJ24: Short rural | AK24: Long rural | AM24: NO | AN24: AusNet (Gas)
B25: AusNet (T) | C25: Ausnet Services (Transmission) Ltd | D25: 48116124362 | E25: Vic | F25: Electricity | G25: Transmission | H25: Revenue cap | I25: Financial | J25: March | K25: 5 | L25: 5 | M25: 2 | N25: transmission determination | O25: Level 32 | P25: 2 Southbank Boulevard | Q25: SOUTHBANK | R25: Vic | S25: 3006 | T25: Locked Bag 14051 | V25: MELBOURNE CITY MAIL CENTRE | W25: Vic | X25: 8001 | Y25: Clare Thompson | Z25: 03 9695 6670 | AA25: clare.e.thompson@ausnetservices.com.au | AB25: NO | AC25: NO | AD25: NO | AE25: NO | AF25: NO | AH25: CBD | AI25: Urban | AJ25: Short rural | AK25: Long rural | AM25: NO | AN25: AusNet (T)
B26: Australian Distribution Co. | C26: Australian Distribution Co. | D26: 11222333444 | E26: - | F26: Electricity | G26: Distribution | H26: Revenue cap | I26: Financial | J26: June | K26: 5 | L26: 5 | M26: 2 | N26: distribution determination | O26: 123 Straight Street | Q26: SYDNEY | R26: NSW | S26: 2000 | T26: PO Box 123 | V26: SYDNEY | W26: NSW | X26: 2000 | Y26: Bob Smith | Z26: 02 1234 5678 | AA26: bob@auselec.net.au | AB26: YES | AC26: YES | AD26: YES | AE26: YES | AF26: NO | AH26: CBD | AI26: Urban | AJ26: Short rural | AK26: Long rural | AM26: YES | AN26: Australian Distribution Co.
B27: Australian Distribution Co. (Vic) | C27: Australian Distribution Co. (Victoria) | D27: 11222333444 | E27: Vic | F27: Electricity | G27: Distribution | H27: Revenue cap | I27: Calendar | J27: December | K27: 5 | L27: 5 | M27: 2 | N27: distribution determination | O27: 123 Straight Street | Q27: MELBOURNE | R27: Vic | S27: 3000 | T27: PO Box 123 | V27: MELBOURNE | W27: VIC | X27: 3000 | Y27: Bob Smith | Z27: 02 1234 5678 | AA27: bob@auselec.net.au | AB27: NO | AC27: NO | AD27: NO | AE27: NO | AF27: NO | AH27: CBD | AI27: Urban | AJ27: Short rural | AK27: Long rural | AM27: YES | AN27: Australian Distribution Co. (Vic)
B28: Australian Distribution Co. (Gas) | C28: Australian Gas Distribution Co. | D28: 11222333444 | E28: NSW | F28: Gas | G28: Distribution | H28: Weighted average price cap | I28: Financial | J28: June | K28: 5 | L28: 5 | O28: 123 Straight Street | Q28: SYDNEY | R28: NSW | S28: 2000 | T28: PO Box 123 | V28: SYDNEY | W28: NSW | X28: 2000 | Y28: Bob Smith | Z28: 02 1234 5678 | AA28: bob@auselec.net.au | AB28: NO | AC28: NO | AD28: NO | AE28: NO | AF28: NO | AH28: CBD | AI28: Urban | AJ28: Short rural | AK28: Long rural | AM28: NO | AN28: Australian Distribution Co. (Vic)
B29: Australian Transmission Co. | C29: Australian Transmission Co. | D29: 11222333444 | E29: - | F29: Electricity | G29: Transmission | H29: Revenue cap | I29: Financial | J29: June | K29: 5 | L29: 5 | M29: 5 | N29: transmission determination | O29: 123 Straight Street | Q29: SYDNEY | R29: NSW | S29: 2000 | T29: PO Box 123 | V29: SYDNEY | W29: NSW | X29: 2000 | Y29: Bob Smith | Z29: 02 1234 5678 | AA29: bob@auselec.net.au | AB29: NO | AC29: NO | AD29: NO | AE29: NO | AF29: NO | AH29: CBD | AI29: Urban | AJ29: Short rural | AK29: Long rural | AM29: NO | AN29: Australian Transmission Co.
B30: Central Ranges Pipeline (D) | C30: Central Ranges Pipeline Pty Ltd | D30: 108218355 | E30: NSW | F30: Gas | G30: Distribution | H30: Weighted average price cap | I30: Financial | J30: June | K30: 15 | L30: 5 | M30: 5 | N30: distribution determination | O30: Level 19 | P30: 580 George Street | Q30: SYDNEY | R30: NSW | S30: 2000 | T30: PO Box R41 | V30: ROYAL EXCHANGE | W30: NSW | X30: 1225 | Y30: Scott Young | Z30: 02 9275 0031 | AA30: scott.young@apa.com.au | AB30: NO | AC30: NO | AD30: NO | AE30: NO | AF30: NO | AH30: CBD | AI30: Urban | AJ30: Short rural | AK30: Long rural | AM30: NO
B31: Central Ranges Pipeline (T) | C31: Central Ranges Pipeline Pty Ltd | D31: 108218355 | E31: NSW | F31: Gas | G31: Distribution | H31: Weighted average price cap | I31: Financial | J31: June | K31: 14 | L31: 5 | M31: 5 | N31: transmission determination | O31: Level 19 | P31: 580 George Street | Q31: SYDNEY | R31: NSW | S31: 2000 | T31: PO Box R41 | V31: ROYAL EXCHANGE | W31: NSW | X31: 1225 | Y31: Scott Young | Z31: 02 9275 0031 | AA31: scott.young@apa.com.au | AB31: NO | AC31: NO | AD31: NO | AE31: NO | AF31: NO | AH31: CBD | AI31: Urban | AJ31: Short rural | AK31: Long rural | AM31: NO
B32: CitiPower | C32: CitiPower | D32: 76064651056 | E32: Vic | F32: Electricity | G32: Distribution | H32: Revenue cap | I32: Calendar | J32: December | K32: 5 | L32: 5 | M32: 2 | N32: 2016-20 Distribution Determination | O32: 40 Market Street | Q32: MELBOURNE | R32: Vic | S32: 3000 | T32: Locked Bag 14090 | V32: MELBOURNE | W32: VIC | X32: 8001 | Y32: Hannah Williams | Z32: 03 9683 4088 | AA32: hwilliams@powercor.com.au | AB32: YES | AC32: YES | AD32: NO | AE32: NO | AF32: NO | AH32: CBD | AI32: Urban | AJ32: Short rural | AK32: Long rural | AM32: YES | AN32: CitiPower
B33: Directlink | C33: Directlink | D33: 16779340889 | E33: Qld | F33: Electricity | G33: Transmission | H33: Revenue cap | I33: Financial | J33: June | K33: 9 | L33: 5 | M33: 5 | N33: transmission determination | O33: Level 19, HSBC Building | P33: 580 George Street | Q33: SYDNEY | R33: NSW | S33: 2000 | T33: PO Box R41 | V33: ROYAL EXCHANGE | W33: NSW | X33: 1225 | Y33: Scott Young | Z33: 02 9275 0031 | AA33: scott.young@apa.com.au | AB33: NO | AC33: NO | AD33: NO | AE33: NO | AF33: NO | AH33: CBD | AI33: Urban | AJ33: Short rural | AK33: Long rural | AM33: NO | AN33: Directlink
B34: ElectraNet | C34: ElectraNet | D34: 41094482416 | E34: SA | F34: Electricity | G34: Transmission | H34: Revenue cap | I34: Financial | J34: June | K34: 5 | L34: 5 | M34: 5 | N34: transmission determination | O34: 52-55 East Terrace | P34: Rymill Park | Q34: ADELAIDE | R34: SA | S34: 5000 | T34: PO Box 7096 | U34: Hutt Street Post Office | V34: ADELAIDE | W34: SA | X34: 5000 | Y34: Bill Jackson | Z34: 08 8404 7969 | AA34: jackson.bill@electranet.com.au | AB34: NO | AC34: NO | AD34: NO | AE34: NO | AF34: NO | AH34: CBD | AI34: Urban | AJ34: Short rural | AK34: Long rural | AM34: NO | AN34: ElectraNet
B35: Endeavour Energy | C35: Endeavour Energy | D35: 11247365823 | E35: NSW | F35: Electricity | G35: Distribution | H35: Revenue cap | I35: Financial | J35: June | K35: 5 | L35: 5 | M35: 5 | N35: 2014-19 Distribution Determination | O35: 51 Huntingwood Drive | Q35: HUNTINGWOOD | R35: NSW | S35: 2148 | T35: PO Box 811 | V35: SEVEN HILLS | W35: NSW | X35: 1730 | Y35: Jon Hocking | Z35: 02 9853 4386 / 0407 348 156 | AA35: Jon.Hocking@Endeavourenergy.com.au | AB35: NO | AC35: YES | AD35: YES | AE35: YES | AF35: NO | AG35: NO | AH35: CBD | AI35: Urban | AJ35: Short rural | AK35: Long rural | AM35: YES | AN35: Endeavour Energy
B36: Energex | C36: Energex | D36: 40078849055 | E36: Qld | F36: Electricity | G36: Distribution | H36: Revenue cap | I36: Financial | J36: June | K36: 5 | L36: 5 | M36: 5 | N36: 2015-20 Distribution Determination | O36: 26 Reddacliff Street | Q36: NEWSTEAD | R36: Qld | S36: 4006 | T36: 26 Reddacliff Street | V36: NEWSTEAD | W36: QLD | X36: 4006 | Y36: Jenny Doyle, Group Manager Regulatory Affairs | Z36: (07) 3851 6416 | AA36: jenny.doyle@ergon.com.au | AB36: YES | AC36: YES | AD36: YES | AE36: NO | AF36: NO | AG36: NO | AH36: CBD | AI36: Urban | AJ36: Short rural | AK36: Long rural | AM36: YES | AN36: Energex
B37: Ergon Energy | C37: Ergon Energy | D37: 50087646062 | E37: Qld | F37: Electricity | G37: Distribution | H37: Revenue cap | I37: Financial | J37: June | K37: 5 | L37: 5 | M37: 5 | N37: 2015-20 Distribution Determination | O37: 22 Walker Street | Q37: TOWNSVILLE | R37: Qld | S37: 4810 | T37: Po Box 264 | V37: FORTITUDE VALLEY | W37: QLD | X37: 4006 | Y37: Jenny Doyle, Group Manager Regulatory Affairs | Z37: (07) 3851 6416 | AA37: jenny.doyle@ergon.com.au | AB37: NO | AC37: YES | AD37: YES | AE37: YES | AF37: NO | AG37: NO | AH37: CBD | AI37: Urban | AJ37: Short rural | AK37: Long rural | AM37: YES | AN37: Ergon Energy
B38: Essential Energy | C38: Essential Energy | D38: 37428185226 | E38: NSW | F38: Electricity | G38: Distribution | H38: Revenue cap | I38: Financial | J38: June | K38: 5 | L38: 5 | M38: 5 | N38: 2014-19 Distribution Determination | O38: 8 Buller Street | Q38: PORT MACQUARIE | R38: NSW | S38: 2444 | T38: PO Box 5730 | V38: PORT MACQUARIE | W38: NSW | X38: 2444 | Y38: Catherine Waddell | Z38: 02 6338 3553 | AA38: catherine.waddell@essentialenergy.com.au | AB38: NO | AC38: NO | AD38: YES | AE38: YES | AF38: NO | AG38: NO | AH38: CBD | AI38: Urban | AJ38: Short rural | AK38: Long rural | AM38: YES | AN38: Essential Energy
B39: Jemena Electricity | C39: Jemena Electricity | D39: 82064651083 | E39: Vic | F39: Electricity | G39: Distribution | H39: Revenue cap | I39: Calendar | J39: December | K39: 5 | L39: 5 | M39: 2 | N39: 2016-20 Distribution Determination | O39: Level 16 | P39: 567 Collins Street | Q39: MELBOURNE | R39: VIC | S39: 3000 | T39: PO Box 16182 | V39: MELBOURNE | W39: VIC | X39: 8001 | Y39: Matthew Serpell | Z39: 03 9173 8231 | AA39: matthew.serpell@jemena.com.au | AB39: NO | AC39: YES | AD39: YES | AE39: NO | AF39: NO | AH39: CBD | AI39: Urban | AJ39: Short rural | AK39: Long rural | AM39: YES | AN39: Jemena Electricity
B40: JGN | C40: Jemena Gas Networks (NSW) Ltd | D40: 003 004 322 | E40: NSW | F40: Gas | G40: Distribution | H40: Weighted average price cap | I40: Financial | J40: June | K40: 5 | L40: 5 | Y40: please provide contact details | AB40: NO | AC40: NO | AD40: NO | AE40: NO | AF40: NO | AH40: CBD | AI40: Urban | AJ40: Short rural | AK40: Long rural | AM40: NO | AN40: JGN
B41: Multinet Gas | C41: Multinet Gas (DB No.1) Pty Ltd (ACN 086 026 986), Multinet Gas (DB No.2) Pty Ltd (ACN 086 230 122) | D41: 086026986 | E41: Vic | F41: Gas | G41: Distribution | H41: Weighted average price cap | I41: Calendar | J41: December | K41: 5 | L41: 5 | M41: x | O41: 43-45 Centreway | Q41: MT WAVERLEY | R41: Vic | S41: 3149 | Y41: Andrew Schille | Z41: 03 8846 9860 | AA41: andrew.schille@ue.com.au | AB41: NO | AC41: NO | AD41: NO | AE41: NO | AF41: NO | AH41: CBD | AI41: Urban | AJ41: Short rural | AK41: Long rural | AM41: NO | AN41: Multinet Gas
B42: Murraylink | C42: Murraylink | D42: 79181207909 | E42: SA | F42: Electricity | G42: Transmission | H42: Revenue cap | I42: Financial | J42: June | K42: 5 | L42: 5 | M42: 5 | N42: transmission determination | O42: Level 19 | P42: 580 George Street | Q42: SYDNEY | R42: NSW | S42: 2000 | T42: PO Box R41 | V42: ROYAL EXCHANGE | W42: NSW | X42: 1225 | Y42: Scott Young | Z42: 02 9275 0031 | AA42: scott.young@apa.com.au | AB42: NO | AC42: NO | AD42: NO | AE42: NO | AF42: NO | AH42: CBD | AI42: Urban | AJ42: Short rural | AK42: Long rural | AM42: NO | AN42: Murraylink
B43: Power and Water | C43: Power and Water Corporation | D43: 15947352360 | E43: NT | F43: Electricity | G43: Distribution | H43: Revenue cap | I43: Financial | J43: June | K43: 5 | L43: 5 | M43: x | N43: distribution determination | O43: GPO Box 1921 | Q43: DARWIN | R43: NT | S43: 801 | T43: GPO Box 1921 | V43: DARWIN | W43: NT | X43: 801 | Y43: Lucy Moon | Z43: 08 8924 5822 | AA43: Lucy.Moon@powerwater.com.au | AB43: YES | AC43: YES | AD43: YES | AE43: YES | AF43: NO | AH43: CBD | AI43: Urban | AJ43: Short rural | AK43: Long rural | AM43: NO | AN43: Power and Water
B44: Powercor Australia | C44: Powercor Australia | D44: 89064651109 | E44: Vic | F44: Electricity | G44: Distribution | H44: Revenue cap | I44: Calendar | J44: December | K44: 5 | L44: 5 | M44: 2 | N44: 2016-20 Distribution Determination | O44: 40 Market Street | Q44: MELBOURNE | R44: Vic | S44: 3000 | T44: Locked bag 14090 | V44: MELBOURNE | W44: VIC | X44: 8001 | Y44: Hannah Williams | Z44: 03 9683 4088 | AA44: hwilliams@powercor.com.au | AB44: NO | AC44: NO | AD44: YES | AE44: YES | AF44: NO | AH44: CBD | AI44: Urban | AJ44: Short rural | AK44: Long rural | AM44: YES | AN44: Powercor Australia
B45: Powerlink | C45: Queensland Electricity Transmission Corporation Limited trading as Powerlink Queensland | D45: 82078849233 | E45: Qld | F45: Electricity | G45: Transmission | H45: Revenue cap | I45: Financial | J45: June | K45: 5 | L45: 5 | M45: 5 | N45: transmission determination | O45: 33 Harold St | Q45: VIRGINIA | R45: Qld | S45: 4014 | T45: PO Box 1193 | V45: VIRGINIA | W45: QLD | X45: 4014 | Y45: Jennifer Harris | Z45: 07 3860 2667 | AA45: jharris@powerlink.com.au | AB45: NO | AC45: NO | AD45: NO | AE45: NO | AF45: NO | AH45: CBD | AI45: Urban | AJ45: Short rural | AK45: Long rural | AM45: NO | AN45: Powerlink
B46: Roma to Brisbane Pipeline | C46: APT Petroleum Pipelines Limited t/a Roma to Brisbane Pipeline | D46: 009 737 393 | E46: Qld | F46: Gas | G46: Transmission | H46: Weighted average price cap | I46: Financial | J46: June | K46: 5 | L46: 5 | M46: x | N46: n/a | O46: 580 George Street | Q46: SYDNEY | R46: NSW | S46: 2000 | T46: PO Box R41 | V46: ROYAL EXCHANGE | W46: NSW | X46: 1225 | Y46: Mark Allen | Z46: 02 9275 0010 | AA46: mark.allen@apa.com.au | AB46: NO | AC46: NO | AD46: NO | AE46: NO | AF46: NO | AH46: CBD | AI46: Urban | AJ46: Short rural | AK46: Long rural | AM46: NO | AN46: Roma to Brisbane Pipeline
B47: SA Power Networks | C47: SA Power Networks | D47: 13332330749 | E47: SA | F47: Electricity | G47: Distribution | H47: Revenue cap | I47: Financial | J47: June | K47: 5 | L47: 5 | M47: 5 | N47: 2015-20 Distribution Determination | O47: 1 Anzac Highway | Q47: KESWICK | R47: SA | S47: 5035 | T47: GPO Box 77 | V47: ADELAIDE | W47: SA | X47: 5000 | Y47: Richard Sibly | Z47: 08 8404 5613 | AA47: richard.sibly@sapowernetworks.com.au | AB47: YES | AC47: YES | AD47: YES | AE47: YES | AF47: NO | AG47: NO | AH47: CBD | AI47: Urban | AJ47: Short rural | AK47: Long rural | AM47: NO | AN47: SA Power Networks
B48: TasNetworks (D) | C48: TasNetworks (D) | D48: 24167357299 | E48: Tas | F48: Electricity | G48: Distribution | H48: Revenue cap | I48: Financial | J48: June | K48: 5 | L48: 5 | M48: 5 | N48: distribution determination | O48: 1-7 Maria Street | Q48: LENAH VALLEY | R48: Tas | S48: 7008 | T48: PO Box 606 | V48: MOONAH | W48: Tas | X48: 7009 | Y48: John Sayers | Z48: 03 6271 6469 | AA48: john.sayers@tasnetworks.com.au | AB48: YES | AC48: YES | AD48: YES | AE48: YES | AF48: YES | AG48: NO | AH48: Critical Infrastructure | AI48: High density commercial | AJ48: Urban | AK48: High density rural | AL48: Low density rural | AM48: YES | AN48: TasNetworks (D)
B49: TasNetworks (T) | C49: TasNetworks (T) | D49: 24167357299 | E49: Tas | F49: Electricity | G49: Transmission | H49: Revenue cap | I49: Financial | J49: June | K49: 5 | L49: 5 | M49: 5 | N49: transmission determination | O49: 1-7 Maria Street | Q49: LENAH VALLEY | R49: Tas | S49: 7008 | T49: PO Box 606 | V49: MOONAH | W49: Tas | X49: 7009 | Y49: John Sayers | Z49: 03 6271 6469 | AA49: john.sayers@tasnetworks.com.au | AB49: NO | AC49: NO | AD49: NO | AE49: NO | AF49: NO | AH49: CBD | AI49: Urban | AJ49: Short rural | AK49: Long rural | AM49: NO | AN49: TasNetworks (T)
B50: TransGrid | C50: NSW Electricity Networks Operations Pty Ltd trading as TransGrid | D50: 70 250 995 390 | E50: NSW | F50: Electricity | G50: Transmission | H50: Revenue cap | I50: Financial | J50: June | K50: 4 | L50: 5 | M50: 5 | N50: transmission determination | O50: 180 Thomas Street | Q50: SYDNEY | R50: NSW | S50: 2000 | T50: PO Box A1000 | V50: SYDNEY SOUTH | W50: NSW | X50: 1235 | Y50: Garrie Chubb | Z50: 0408 210 221 | AA50: garrie.chubb@transgrid.com.au | AB50: NO | AC50: NO | AD50: NO | AE50: NO | AF50: NO | AH50: CBD | AI50: Urban | AJ50: Short rural | AK50: Long rural | AM50: NO | AN50: TransGrid
B51: United Energy | C51: United Energy | D51: 70064651029 | E51: Vic | F51: Electricity | G51: Distribution | H51: Revenue cap | I51: Calendar | J51: December | K51: 5 | L51: 5 | M51: 2 | N51: 2016-20 Distribution Determination | O51: Level 3 | P51: 6 Nexus Court | Q51: MULGRAVE | R51: Vic | S51: 3149 | T51: PO Box 449 | V51: MOUNT WAVERLEY | W51: VIC | X51: 3170 | Y51: Mathew Abraham | Z51: 03 8846 9758 | AA51: mathew.abraham@ue.com.au | AB51: NO | AC51: NO | AD51: YES | AE51: NO | AF51: NO | AH51: CBD | AI51: Urban | AJ51: Short rural | AK51: Long rural | AM51: YES | AN51: United Energy
Z54: For EB & Reset RINs only | AE54: For AARs only
B55: The Reg Year Ending (dms_RYE) must be set to the last year of the regulatory period. For forecast data is is usually (FRCP_y5) for actual it is a single year (CRY). For historical actual data the RYE will need to be set manually in the business details sheet by setting the dms_Multiyear_flag to 1 and putting the correct value in 'dms_Specified_FinalYear. See cells C67:C68 | N55: Drop down selector box for CA & Reset RINs. | O55: For CA & Reset RINs only | Z55: for DNSP only | AE55: For DNSPs only
B56: dms_Model_List | C56: dms_Worksheet_List | E56: dms_RYE_Formula_Result | N56: dms_0203_ProjectType | O56: dms_020303_01_UOM | P56: dms_020501_01_UOM | Q56: dms_020501_02_UOM | R56: dms_020501_03_UOM | S56: dms_020501_04_UOM | T56: dms_020603_01_UOM | U56: dms_020701_01_UOM | V56: dms_020701_02_UOM | W56: dms_020701_01_Rows | X56: dms_040102_01_UOM | Y56: dms_040102_04_UOM | Z56: dms_030601_01_UOM | AA56: dms_030601_02_UOM | AB56: dms_030701_01_UOM | AC56: dms_030702_01_UOM | AD56: dms_030703_01_UOM | AE56: dms_030605_UOM | AF56: dms_03060703_UOM
B57: ARR | C57: ANNUAL REPORTING STATEMENT | E57: =LEFT(dms_SingleYear_FinalYear_Result,2)&RIGHT(dms_SingleYear_FinalYear_Result,2) -> 2018 | F57: =LEFT(dms_SingleYear_FinalYear_Result,2)&RIGHT(dms_SingleYear_FinalYear_Result,2) | H57: Formula errors are OK | N57: New line on new route - single circuit | O57: Circuit line length in km | P57: 0's | Q57: 0's | R57: 0's | S57: 0's | T57: 0's | U57: km | V57: km | W57: Route line length within zone | X57: 0's | Y57: days | Z57: minutes/customer | AA57: minutes/customer | AB57: Customer / km | AC57: % | AD57: km | AE57: number | AF57: number
B58: CA | C58: CATEGORY ANALYSIS | E58: =LEFT(dms_SingleYear_FinalYear_Result,2)&RIGHT(dms_SingleYear_FinalYear_Result,2) -> 2018 | F58: =LEFT(dms_SingleYear_FinalYear_Result,2)&RIGHT(dms_SingleYear_FinalYear_Result,2) | H58: Formula errors are OK | N58: New line on new route - dual circuit | O58: Circuit line length in km | P58: 0's | Q58: 0's | R58: 0's | S58: 0's | T58: 0's | U58: 0's | V58: 0's | W58: Number of maintenance spans | X58: 0's | Y58: 0's | Z58: minutes/customer | AA58: minutes/customer | AB58: MWh/customer | AC58: Number of spans | AE58: number | AF58: number
B59: CESS | C59: CAPITLAL EXPENDITURE SHARING SCHEMING | E59: 2016 | F59: =LEFT(dms_SingleYear_FinalYear_Result,2)&RIGHT(dms_SingleYear_FinalYear_Result,2) | N59: New line on new route - other | O59: Circuit line length in km | P59: MVA added | Q59: MVA added | R59: MVA added | S59: MVA added | T59: 0's | U59: km | V59: km | W59: Total length of maintenance spans | X59: 0's | Y59: $0s | Z59: interruptions/customer | AA59: interruptions/customer | AB59: kVA / customer | AC59: Number of spans | AE59: number | AF59: number
B60: CPI | C60: CPI | N60: Line rebuild over existing route - single circuit | O60: Circuit line length in km | P60: 0's | Q60: 0's | R60: 0's | S60: 0's | T60: 0's | U60: km | V60: km | W60: Length of vegetation corridors | X60: $0s | Y60: 0's | Z60: interruptions/customer | AA60: interruptions/customer | AC60: Number of spans | AE60: number | AF60: number
B61: EB | C61: ECONOMIC BENCHMARKING | E61: =LEFT(dms_SingleYear_FinalYear_Result,2)&RIGHT(dms_SingleYear_FinalYear_Result,2) -> 2018 | F61: =LEFT(dms_SingleYear_FinalYear_Result,2)&RIGHT(dms_SingleYear_FinalYear_Result,2) | H61: Formula errors are OK | N61: Line rebuild over existing route - dual circuit | O61: Number | P61: total spend $0s | Q61: total spend $0s | R61: total spend $0s | S61: total spend $0s | T61: (per cent) | U61: 0's | V61: 0's | W61: Average number of trees per maintenance span | AC61: Number of spans | AE61: number | AF61: (per cent)
B62: PTRM | C62: POST TAX REVENUE MODEL | E62: =LEFT(dms_MultiYear_FinalYear_Result,2)&RIGHT(dms_MultiYear_FinalYear_Result,2) -> 2025 | F62: =LEFT(dms_MultiYear_FinalYear_Result,2)&RIGHT(dms_MultiYear_FinalYear_Result,2) | N62: Reconductor - Single circuit | O62: Number | P62: net circuit km added | Q62: net circuit km added | R62: net circuit km added | S62: net circuit km added | U62: years | V62: years | W62: Average frequency of cutting cycle | AC62: Years | AE62: number
B63: Reset | C63: REGULATORY REPORTING STATEMENT | E63: =LEFT(dms_MultiYear_FinalYear_Result,2)&RIGHT(dms_MultiYear_FinalYear_Result,2) -> 2025 | F63: =LEFT(dms_MultiYear_FinalYear_Result,2)&RIGHT(dms_MultiYear_FinalYear_Result,2) | H63: Formula errors are OK | N63: Reconductor - Dual circuit | O63: Number | P63: total spend $0s | Q63: total spend $0s | R63: total spend $0s | S63: total spend $0s | AC63: Years | AE63: number
B64: RFM | C64: ROLL FORWARD MODEL | E64: =LEFT(dms_CRCP_FinalYear_Result,2)&RIGHT(dms_CRCP_FinalYear_Result,2) -> 2018 | F64: =LEFT(dms_CRCP_FinalYear_Result,2)&RIGHT(dms_CRCP_FinalYear_Result,2) | N64: Other | P64: net circuit km added | Q64: net circuit km added | R64: net circuit km added | S64: net circuit km added | AC64: Trees | AE64: number
B65: WACC | C65: WEIGHTED AVERAGE COST OF CAPITAL | E65: =LEFT(dms_MultiYear_FinalYear_Result,2)&RIGHT(dms_MultiYear_FinalYear_Result,2) -> 2025 | F65: =LEFT(dms_MultiYear_FinalYear_Result,2)&RIGHT(dms_MultiYear_FinalYear_Result,2) | P65: total spend $0s | Q65: total spend $0s | R65: total spend $0s | S65: total spend $0s | AC65: Trees | AE65: number
P66: 0's | R66: $0s | AC66: Defects | AE66: number
B67: dms_DataQuality_List | P67: 0's | AC67: Defects | AE67: number
B68: Actual | P68: 0's | AC68: Spans | AE68: number
B69: Estimate | P69: $0s | AC69: km | AE69: (per cent)
B70: Consolidated | AC70: Spans | AE70: (per cent)
B71: Recast
B72: Public
O73: For PTRM files - this field set the text for the named range "DMS_Xfactor" which in all cases is simply the text "x factors" - this saves putting in each old gas PTRM file | Z73: for TNSP only
B74: For all files either AER or business needs to be able to specify the type of submission | C74: For PTRM & RFM templates we must provide a choice in case they change their form of control - otherwise it is drawn from the business specific lookup table above. | O74: DMS_Xfactor | Z74: dms_030601_01_UOM | AB74: dms_030701_01_UOM | AC74: dms_030702_01_UOM
B75: dms_SourceList | C75: dms_FormControl_Choices | O75: x factors | Z75: % | AB75: Number of spans | AC75: km
B76: After appeal | C76: Revenue cap | Z76: number | AB76: Years | AC76: %
B77: Draft decision | C77: Revenue yield | Z77: number | AB77: Trees | AC77: km
B78: Final decision | C78: Weighted average price cap | Z78: % | AB78: Defects | AC78: number
B79: PTRM update 1 | Z79: number | AB79: Number of spans
B80: PTRM update 2 | Z80: number | AB80: km
B81: PTRM update 3 | Z81: % | AB81: km
B82: PTRM update 4 | Z82: number | AB82: Number of spans
B83: PTRM update 5 | Z83: number
B84: PTRM update 6 | Z84: %
B85: PTRM update 7 | Z85: number
B86: Regulatory proposal | Z86: %
B87: Reporting | Z87: number
B88: Revised regulatory proposal | Z88: %
Z89: number
B93: Reason for interruption | C93: dms_Reason_Interruption_Detailed | D93: dms_Reason_Interruption | E93: dms_STPIS_Exclusion_List | F93: dms_020301_ProjectType_List | G93: dms_020302_ProjectType_List
B94: Animal | C94: Animal impact | D94: Animal | E94: Weather | F94: New substation establishment | G94: New line on new route - single circuit
C95: Animal nesting/burrowing, etc and other | D95: Asset failure | E95: Equipment failure | F95: Capacity upgrade | G95: New line on new route - dual circuit
C96: Other | D96: Other | E96: Operational error | F96: Voltage upgrade | G96: New line on new route - other
B97: Asset failure | C97: LV | D97: Overloads | E97: Vegetation | F97: Other | G97: Line rebuild over existing route - single circuit
C98: Distribution substation | D98: Planned | E98: Animals | G98: Line rebuild over existing route - dual circuit
C99: HV | D99: Network business | E99: Third party impacts | G99: Reconductor - Single circuit
C100: Zone substation | D100: Third party | E100: Transmission failure | G100: Reconductor - Dual circuit
C101: Subtransmission | D101: Unknown | E101: Load shedding | G101: Reconductor - Other
B102: Other | C102: insert description of 'other' | D102: Vegetation | E102: Inter-distributor connection failure | G102: Line upgrade - raising/retensoring
B103: Overloads | C103: - | D103: Weather | E103: Other | G103: Line upgrade - voltage upgrade
B104: Planned | C104: - | D104: 2 - STPIS Exclusion (3.3)(a) | G104: Line upgrade - capacity
B105: Network business | C105: Network error | D105: 3 - STPIS Exclusion (3.3)(a) | G105: String spare circuit
C106: Switching and protection error | D106: 4 - STPIS Exclusion (3.3)(a) | G106: Other
B107: Third party | C107: Fire | D107: 5 - STPIS Exclusion (3.3)(a)
C108: Other | D108: 6 - STPIS Exclusion (3.3)(a)
C109: Dig-in | D109: 7 - STPIS Exclusion (3.3)(a)
C110: Unauthorised access
C111: Vehicle impact
B112: Unknown | C112: Unknown
B113: Vegetation | C113: Blow-in/Fall-in - NSP responsibility
C114: Grow-in - NSP responsibility
C115: Blow-in/Fall-in - Other responsible party
C116: Grow-in - Other responsible party
B117: Weather
B118: 2 - STPIS Exclusion (3.3)(a)
B119: 3 - STPIS Exclusion (3.3)(a)
B120: 4 - STPIS Exclusion (3.3)(a)
B121: 5 - STPIS Exclusion (3.3)(a)
B122: 6 - STPIS Exclusion (3.3)(a)
B123: 7 - STPIS Exclusion (3.3)(a)
B131: These are indeces and lookup values for various dates. All step from the value placed in FRCP_y1 on the business and other details worksheet | C131: =IF(dms_FifthFeeder_flag_NSP="NO","This NSP has only 4 feeder categories","This NSP has 5 feeder categories") -> This NSP has only 4 feeder categories | O131: These date tables are currently used in the Recast templates to provide column headings and conditional formatting
B132: dms_FRCPlength_Num_List | C132: dms_FinalYear_List | D132: dms_CRCPlength_Num_List | E132: dms_CFinalYear_List | F132: dms_FRCP_years | H132: dms_CRCP_years | J132: dms_CRCP_index | L132: dms_Financial_Years | M132: dms_Calendar_Years | O132: CRY from input cell on business sheet | P132: CRY - financial | Q132: dms_FinYears | R132: CRY calendar | S132: dms_CalYears
B133: 1 | C133: dms_FRCP_y1 | D133: 1 | E133: CRCP_y1 | F133: =FRCP_y1 -> 2020-21 | G133: dms_FRCP_y1 | H133: =IF(dms_RPT="financial",VALUE(LEFT(dms_FRCP_y1,4)-1)&"-"&TEXT(VALUE(MID(dms_FRCP_y1,3,2)),"00"),VALUE(LEFT(dms_FRCP_y1,4)-1)) -> 2019-20 | I133: dms_CRCP_yZ | J133: 1 | L133: 2005-06 | M133: 2006 | O133: =CRY -> 2017-18 | P133: =VALUE(LEFT(CRY,4))&"-"&TEXT(MID(CRY,3,2)+1,"00") -> 2017-18 | Q133: dms_CRYf_y1 | R133: =VALUE(LEFT(CRY,4)+1) -> 2018 | S133: dms_CRYc_y1
B134: 2 | C134: dms_FRCP_y2 | D134: 2 | E134: CRCP_y2 | F134: =IF(dms_RPT="financial",VALUE(LEFT(dms_FRCP_y1,4)+1)&"-"&TEXT(VALUE(RIGHT(dms_FRCP_y1,2)+1),"00"),VALUE(LEFT(dms_FRCP_y1,4)+1)) -> 2021-22 | G134: dms_FRCP_y2 | H134: =IF(dms_RPT="financial",VALUE(LEFT(dms_CRCP_yZ,4)-1)&"-"&TEXT(VALUE(MID(dms_CRCP_yZ,3,2)),"00"),VALUE(LEFT(dms_CRCP_yZ,4)-1)) -> 2018-19 | I134: dms_CRCP_yY | J134: 2 | L134: 2006-07 | M134: 2007 | P134: =VALUE(LEFT(dms_CRYf_y1,4)+1)&"-"&TEXT(MID(dms_CRYf_y1,3,2)+2,"00") -> 2018-19 | Q134: dms_CRYf_y2 | R134: =VALUE(LEFT(dms_CRYc_y1,4)+1) -> 2019 | S134: dms_CRYc_y2
B135: 3 | C135: dms_FRCP_y3 | D135: 3 | E135: CRCP_y3 | F135: =IF(dms_RPT="financial",VALUE(LEFT(dms_FRCP_y2,4)+1)&"-"&TEXT(VALUE(RIGHT(dms_FRCP_y2,2)+1),"00"),VALUE(LEFT(dms_FRCP_y2,4)+1)) -> 2022-23 | G135: dms_FRCP_y3 | H135: =IF(dms_RPT="financial",VALUE(LEFT(dms_CRCP_yY,4)-1)&"-"&TEXT(VALUE(MID(dms_CRCP_yY,3,2)),"00"),VALUE(LEFT(dms_CRCP_yY,4)-1)) -> 2017-18 | I135: dms_CRCP_yX | J135: 3 | L135: 2007-08 | M135: 2008 | P135: =VALUE(LEFT(dms_CRYf_y2,4)+1)&"-"&TEXT(MID(dms_CRYf_y2,3,2)+2,"00") -> 2019-20 | Q135: dms_CRYf_y3 | R135: =VALUE(LEFT(dms_CRYc_y2,4)+1) -> 2020 | S135: dms_CRYc_y3
B136: 4 | C136: dms_FRCP_y4 | D136: 4 | E136: CRCP_y4 | F136: =IF(dms_RPT="financial",VALUE(LEFT(dms_FRCP_y3,4)+1)&"-"&TEXT(VALUE(RIGHT(dms_FRCP_y3,2)+1),"00"),VALUE(LEFT(dms_FRCP_y3,4)+1)) -> 2023-24 | G136: dms_FRCP_y4 | H136: =IF(dms_RPT="financial",VALUE(LEFT(dms_CRCP_yX,4)-1)&"-"&TEXT(VALUE(MID(dms_CRCP_yX,3,2)),"00"),VALUE(LEFT(dms_CRCP_yX,4)-1)) -> 2016-17 | I136: dms_CRCP_yW | J136: 4 | L136: 2008-09 | M136: 2009 | P136: =VALUE(LEFT(dms_CRYf_y3,4)+1)&"-"&TEXT(MID(dms_CRYf_y3,3,2)+2,"00") -> 2020-21 | Q136: dms_CRYf_y4 | R136: =VALUE(LEFT(dms_CRYc_y3,4)+1) -> 2021 | S136: dms_CRYc_y4
B137: 5 | C137: dms_FRCP_y5 | D137: 5 | E137: CRCP_y5 | F137: =IF(dms_RPT="financial",VALUE(LEFT(dms_FRCP_y4,4)+1)&"-"&TEXT(VALUE(RIGHT(dms_FRCP_y4,2)+1),"00"),VALUE(LEFT(dms_FRCP_y4,4)+1)) -> 2024-25 | G137: dms_FRCP_y5 | H137: =IF(dms_RPT="financial",VALUE(LEFT(dms_CRCP_yW,4)-1)&"-"&TEXT(VALUE(MID(dms_CRCP_yW,3,2)),"00"),VALUE(LEFT(dms_CRCP_yW,4)-1)) -> 2015-16 | I137: dms_CRCP_yV | J137: 5 | L137: 2009-10 | M137: 2010 | P137: =VALUE(LEFT(dms_CRYf_y4,4)+1)&"-"&TEXT(MID(dms_CRYf_y4,3,2)+2,"00") -> 2021-22 | Q137: dms_CRYf_y5 | R137: =VALUE(LEFT(dms_CRYc_y4,4)+1) -> 2022 | S137: dms_CRYc_y5
B138: 6 | C138: dms_FRCP_y6 | D138: 6 | E138: CRCP_y6 | F138: =IF(dms_RPT="financial",VALUE(LEFT(dms_FRCP_y5,4)+1)&"-"&TEXT(VALUE(RIGHT(dms_FRCP_y5,2)+1),"00"),VALUE(LEFT(dms_FRCP_y5,4)+1)) -> 2025-26 | G138: dms_FRCP_y6 | H138: =IF(dms_RPT="financial",VALUE(LEFT(dms_CRCP_yV,4)-1)&"-"&TEXT(VALUE(MID(dms_CRCP_yV,3,2)),"00"),VALUE(LEFT(dms_CRCP_yV,4)-1)) -> 2014-15 | I138: dms_CRCP_yU | J138: 6 | L138: 2010-11 | M138: 2011 | P138: =VALUE(LEFT(dms_CRYf_y5,4)+1)&"-"&TEXT(MID(dms_CRYf_y5,3,2)+2,"00") -> 2022-23 | Q138: dms_CRYf_y6 | R138: =VALUE(LEFT(dms_CRYc_y5,4)+1) -> 2023 | S138: dms_CRYc_y6
B139: 7 | C139: dms_FRCP_y7 | D139: 7 | E139: CRCP_y7 | F139: =IF(dms_RPT="financial",VALUE(LEFT(dms_FRCP_y6,4)+1)&"-"&TEXT(VALUE(RIGHT(dms_FRCP_y6,2)+1),"00"),VALUE(LEFT(dms_FRCP_y6,4)+1)) -> 2026-27 | G139: dms_FRCP_y7 | H139: =IF(dms_RPT="financial",VALUE(LEFT(dms_CRCP_yU,4)-1)&"-"&TEXT(VALUE(MID(dms_CRCP_yU,3,2)),"00"),VALUE(LEFT(dms_CRCP_yU,4)-1)) -> 2013-14 | I139: dms_CRCP_yT | J139: 7 | L139: 2011-12 | M139: 2012 | P139: =VALUE(LEFT(dms_CRYf_y6,4)+1)&"-"&TEXT(MID(dms_CRYf_y6,3,2)+2,"00") -> 2023-24 | Q139: dms_CRYf_y7 | R139: =VALUE(LEFT(dms_CRYc_y6,4)+1) -> 2024 | S139: dms_CRYc_y7
B140: 8 | C140: dms_FRCP_y8 | D140: 8 | E140: CRCP_y8 | F140: =IF(dms_RPT="financial",VALUE(LEFT(dms_FRCP_y7,4)+1)&"-"&TEXT(VALUE(RIGHT(dms_FRCP_y7,2)+1),"00"),VALUE(LEFT(dms_FRCP_y7,4)+1)) -> 2027-28 | G140: dms_FRCP_y8 | H140: =IF(dms_RPT="financial",VALUE(LEFT(dms_CRCP_yT,4)-1)&"-"&TEXT(VALUE(MID(dms_CRCP_yT,3,2)),"00"),VALUE(LEFT(dms_CRCP_yT,4)-1)) -> 2012-13 | I140: dms_CRCP_yS | J140: 8 | L140: 2012-13 | M140: 2013 | P140: =VALUE(LEFT(dms_CRYf_y7,4)+1)&"-"&TEXT(MID(dms_CRYf_y7,3,2)+2,"00") -> 2024-25 | Q140: dms_CRYf_y8 | R140: =VALUE(LEFT(dms_CRYc_y7,4)+1) -> 2025 | S140: dms_CRYc_y8
B141: 9 | C141: dms_FRCP_y9 | D141: 9 | E141: CRCP_y9 | F141: =IF(dms_RPT="financial",VALUE(LEFT(dms_FRCP_y8,4)+1)&"-"&TEXT(VALUE(RIGHT(dms_FRCP_y8,2)+1),"00"),VALUE(LEFT(dms_FRCP_y8,4)+1)) -> 2028-29 | G141: dms_FRCP_y9 | H141: =IF(dms_RPT="financial",VALUE(LEFT(dms_CRCP_yS,4)-1)&"-"&TEXT(VALUE(MID(dms_CRCP_yS,3,2)),"00"),VALUE(LEFT(dms_CRCP_yS,4)-1)) -> 2011-12 | I141: dms_CRCP_yR | J141: 9 | L141: 2013-14 | M141: 2014 | P141: =VALUE(LEFT(dms_CRYf_y8,4)+1)&"-"&TEXT(MID(dms_CRYf_y8,3,2)+2,"00") -> 2025-26 | Q141: dms_CRYf_y9 | R141: =VALUE(LEFT(dms_CRYc_y8,4)+1) -> 2026 | S141: dms_CRYc_y9
B142: 10 | C142: dms_FRCP_y10 | D142: 10 | E142: CRCP_y10 | F142: =IF(dms_RPT="financial",VALUE(LEFT(dms_FRCP_y9,4)+1)&"-"&TEXT(VALUE(RIGHT(dms_FRCP_y9,2)+1),"00"),VALUE(LEFT(dms_FRCP_y9,4)+1)) -> 2029-30 | G142: dms_FRCP_y10 | H142: =IF(dms_RPT="financial",VALUE(LEFT(dms_CRCP_yR,4)-1)&"-"&TEXT(VALUE(MID(dms_CRCP_yR,3,2)),"00"),VALUE(LEFT(dms_CRCP_yR,4)-1)) -> 2010-11 | I142: dms_CRCP_yQ | J142: 10 | L142: 2014-15 | M142: 2015 | P142: =VALUE(LEFT(dms_CRYf_y9,4)+1)&"-"&TEXT(MID(dms_CRYf_y9,3,2)+2,"00") -> 2026-27 | Q142: dms_CRYf_y10 | R142: =VALUE(LEFT(dms_CRYc_y9,4)+1) -> 2027 | S142: dms_CRYc_y10
B143: 11 | C143: dms_FRCP_y11 | D143: 11 | E143: CRCP_y11 | F143: =IF(dms_RPT="financial",VALUE(LEFT(dms_FRCP_y10,4)+1)&"-"&TEXT(VALUE(RIGHT(dms_FRCP_y10,2)+1),"00"),VALUE(LEFT(dms_FRCP_y10,4)+1)) -> 2030-31 | G143: dms_FRCP_y11 | H143: =IF(dms_RPT="financial",VALUE(LEFT(dms_CRCP_yQ,4)-1)&"-"&TEXT(VALUE(MID(dms_CRCP_yQ,3,2)),"00"),VALUE(LEFT(dms_CRCP_yQ,4)-1)) -> 2009-10 | I143: dms_CRCP_yP | J143: 11 | L143: 2015-16 | M143: 2016 | P143: =VALUE(LEFT(dms_CRYf_y10,4)+1)&"-"&TEXT(MID(dms_CRYf_y10,3,2)+2,"00") -> 2027-28 | Q143: dms_CRYf_y11 | R143: =VALUE(LEFT(dms_CRYc_y10,4)+1) -> 2028 | S143: dms_CRYc_y11
B144: 12 | C144: dms_FRCP_y12 | D144: 12 | E144: CRCP_y12 | F144: =IF(dms_RPT="financial",VALUE(LEFT(dms_FRCP_y11,4)+1)&"-"&TEXT(VALUE(RIGHT(dms_FRCP_y11,2)+1),"00"),VALUE(LEFT(dms_FRCP_y11,4)+1)) -> 2031-32 | G144: dms_FRCP_y12 | H144: =IF(dms_RPT="financial",VALUE(LEFT(dms_CRCP_yP,4)-1)&"-"&TEXT(VALUE(MID(dms_CRCP_yP,3,2)),"00"),VALUE(LEFT(dms_CRCP_yP,4)-1)) -> 2008-09 | I144: dms_CRCP_yO | J144: 12 | L144: 2016-17 | M144: 2017 | P144: =VALUE(LEFT(dms_CRYf_y11,4)+1)&"-"&TEXT(MID(dms_CRYf_y11,3,2)+2,"00") -> 2028-29 | Q144: dms_CRYf_y12 | R144: =VALUE(LEFT(dms_CRYc_y11,4)+1) -> 2029 | S144: dms_CRYc_y12
B145: 13 | C145: dms_FRCP_y13 | D145: 13 | E145: CRCP_y13 | F145: =IF(dms_RPT="financial",VALUE(LEFT(dms_FRCP_y12,4)+1)&"-"&TEXT(VALUE(RIGHT(dms_FRCP_y12,2)+1),"00"),VALUE(LEFT(dms_FRCP_y12,4)+1)) -> 2032-33 | G145: dms_FRCP_y13 | H145: =IF(dms_RPT="financial",VALUE(LEFT(dms_CRCP_yO,4)-1)&"-"&TEXT(VALUE(MID(dms_CRCP_yO,3,2)),"00"),VALUE(LEFT(dms_CRCP_yO,4)-1)) -> 2007-08 | I145: dms_CRCP_yN | J145: 13 | L145: 2017-18 | M145: 2018 | P145: =VALUE(LEFT(dms_CRYf_y12,4)+1)&"-"&TEXT(MID(dms_CRYf_y12,3,2)+2,"00") -> 2029-30 | Q145: dms_CRYf_y13 | R145: =VALUE(LEFT(dms_CRYc_y12,4)+1) -> 2030 | S145: dms_CRYc_y13
B146: 14 | C146: dms_FRCP_y14 | D146: 14 | E146: CRCP_y14 | F146: =IF(dms_RPT="financial",VALUE(LEFT(dms_FRCP_y13,4)+1)&"-"&TEXT(VALUE(RIGHT(dms_FRCP_y13,2)+1),"00"),VALUE(LEFT(dms_FRCP_y13,4)+1)) -> 2033-34 | G146: dms_FRCP_y14 | H146: =IF(dms_RPT="financial",VALUE(LEFT(dms_CRCP_yN,4)-1)&"-"&TEXT(VALUE(MID(dms_CRCP_yN,3,2)),"00"),VALUE(LEFT(dms_CRCP_yN,4)-1)) -> 2006-07 | I146: dms_CRCP_yM | J146: 14 | L146: 2018-19 | M146: 2019 | P146: =VALUE(LEFT(dms_CRYf_y13,4)+1)&"-"&TEXT(MID(dms_CRYf_y13,3,2)+2,"00") -> 2030-31 | Q146: dms_CRYf_y14 | R146: =VALUE(LEFT(dms_CRYc_y13,4)+1) -> 2031 | S146: dms_CRYc_y14
B147: 15 | C147: dms_FRCP_y15 | D147: 15 | E147: CRCP_y15 | F147: =IF(dms_RPT="financial",VALUE(LEFT(dms_FRCP_y14,4)+1)&"-"&TEXT(VALUE(RIGHT(dms_FRCP_y14,2)+1),"00"),VALUE(LEFT(dms_FRCP_y14,4)+1)) -> 2034-35 | G147: dms_FRCP_y15 | H147: =IF(dms_RPT="financial",VALUE(LEFT(dms_CRCP_yM,4)-1)&"-"&TEXT(VALUE(MID(dms_CRCP_yM,3,2)),"00"),VALUE(LEFT(dms_CRCP_yM,4)-1)) -> 2005-06 | I147: dms_CRCP_yL | J147: 15 | L147: 2019-20 | M147: 2020 | P147: =VALUE(LEFT(dms_CRYf_y14,4)+1)&"-"&TEXT(MID(dms_CRYf_y14,3,2)+2,"00") -> 2031-32 | Q147: dms_CRYf_y15 | R147: =VALUE(LEFT(dms_CRYc_y14,4)+1) -> 2032 | S147: dms_CRYc_y15
L148: 2020-21 | M148: 2021 | P148: =VALUE(LEFT(dms_CRYf_y15,4)+1)&"-"&TEXT(MID(dms_CRYf_y15,3,2)+2,"00") -> 2032-33 | Q148: dms_CRYf_y16 | R148: =VALUE(LEFT(dms_CRYc_y15,4)+1) -> 2033 | S148: dms_CRYc_y16
B149: These are drop down lists for businesses to select the correct FRCP_y1 on the business and other details worksheet. This also populates the column headings in the worksheets | L149: 2021-22 | M149: 2022 | P149: =VALUE(LEFT(dms_CRYf_y16,4)+1)&"-"&TEXT(MID(dms_CRYf_y16,3,2)+2,"00") -> 2033-34 | Q149: dms_CRYf_y17 | R149: =VALUE(LEFT(dms_CRYc_y16,4)+1) -> 2034 | S149: dms_CRYc_y17
B150: dms_RCP_fyear_list | C150: dms_CRY_ListF | D150: dms_CRY_ListC | E150: dms_RCP_cyear_list | F150: dms_FRCP_fyear_list | G150: dms_FRCP_ListF | H150: dms_FRCP_ListC | I150: dms_FRCP_cyear_list | L150: 2022-23 | M150: 2023 | P150: =VALUE(LEFT(dms_CRYf_y17,4)+1)&"-"&TEXT(MID(dms_CRYf_y17,3,2)+2,"00") -> 2034-35 | Q150: dms_CRYf_y18 | R150: =VALUE(LEFT(dms_CRYc_y17,4)+1) -> 2035 | S150: dms_CRYc_y18
B151: dms_y1 | C151: =CRY -> 2017-18 | D151: 2006 | E151: dms_cy1 | F151: dms_frcp_fy1 | G151: 2010-11 | H151: 2011 | I151: dms_crcp_cy1 | L151: 2023-24 | M151: 2024 | P151: =VALUE(LEFT(dms_CRYf_y18,4)+1)&"-"&TEXT(MID(dms_CRYf_y18,3,2)+2,"00") -> 2035-36 | Q151: dms_CRYf_y19 | R151: =VALUE(LEFT(dms_CRYc_y18,4)+1) -> 2036 | S151: dms_CRYc_y19
B152: dms_y2 | C152: =IF(dms_RPT="financial",VALUE(LEFT(CRY,4)+1)&"-"&TEXT(MID(CRY,3,2)+2,"00"),VALUE(LEFT(CRY,4)+1)) -> 2018-19 | D152: 2007 | E152: dms_cy2 | F152: dms_frcp_fy2 | G152: 2011-12 | H152: 2012 | I152: dms_crcp_cy2 | L152: 2024-25 | M152: 2025 | P152: =VALUE(LEFT(dms_CRYf_y19,4)+1)&"-"&TEXT(MID(dms_CRYf_y19,3,2)+2,"00") -> 2036-37 | Q152: dms_CRYf_y20 | R152: =VALUE(LEFT(dms_CRYc_y19,4)+1) -> 2037 | S152: dms_CRYc_y20
B153: dms_y3 | C153: =IF(dms_RPT="financial",VALUE(LEFT(dms_fy2,4)+1)&"-"&TEXT(MID(dms_fy2,3,2)+2,"00"),VALUE(LEFT(dms_fy2,4)+1)) -> 2019-20 | D153: 2008 | E153: dms_cy3 | F153: dms_frcp_fy3 | G153: 2012-13 | H153: 2013 | I153: dms_crcp_cy3 | L153: 2025-26 | M153: 2026
B154: dms_y4 | C154: =IF(dms_RPT="financial",VALUE(LEFT(dms_fy3,4)+1)&"-"&TEXT(MID(dms_fy3,3,2)+2,"00"),VALUE(LEFT(dms_fy3,4)+1)) -> 2020-21 | D154: 2009 | E154: dms_cy4 | F154: dms_frcp_fy4 | G154: 2013-14 | H154: 2014 | I154: dms_crcp_cy4 | L154: 2026-27 | M154: 2027
B155: dms_y5 | C155: =IF(dms_RPT="financial",VALUE(LEFT(dms_fy4,4)+1)&"-"&TEXT(MID(dms_fy4,3,2)+2,"00"),VALUE(LEFT(dms_fy4,4)+1)) -> 2021-22 | D155: 2010 | E155: dms_cy5 | F155: dms_frcp_fy5 | G155: 2014-15 | H155: 2015 | I155: dms_crcp_cy5 | L155: 2027-28 | M155: 2028
B156: dms_y6 | C156: =IF(dms_RPT="financial",VALUE(LEFT(dms_fy5,4)+1)&"-"&TEXT(MID(dms_fy5,3,2)+2,"00"),VALUE(LEFT(dms_fy5,4)+1)) -> 2022-23 | D156: 2011 | E156: dms_cy6 | F156: dms_frcp_fy6 | G156: 2015-16 | H156: 2016 | I156: dms_crcp_cy6 | L156: 2028-29 | M156: 2029
B157: dms_y7 | C157: =IF(dms_RPT="financial",VALUE(LEFT(dms_fy6,4)+1)&"-"&TEXT(MID(dms_fy6,3,2)+2,"00"),VALUE(LEFT(dms_fy6,4)+1)) -> 2023-24 | D157: 2012 | E157: dms_cy7 | F157: dms_frcp_fy7 | G157: 2016-17 | H157: 2017 | I157: dms_crcp_cy7 | L157: 2029-30 | M157: 2030
B158: dms_y8 | C158: =IF(dms_RPT="financial",VALUE(LEFT(dms_fy7,4)+1)&"-"&TEXT(MID(dms_fy7,3,2)+2,"00"),VALUE(LEFT(dms_fy7,4)+1)) -> 2024-25 | D158: 2013 | E158: dms_cy8 | F158: dms_frcp_fy8 | G158: 2017-18 | H158: 2018 | I158: dms_crcp_cy8 | L158: 2030-31 | M158: 2031
B159: dms_y9 | C159: =IF(dms_RPT="financial",VALUE(LEFT(dms_fy8,4)+1)&"-"&TEXT(MID(dms_fy8,3,2)+2,"00"),VALUE(LEFT(dms_fy8,4)+1)) -> 2025-26 | D159: 2014 | E159: dms_cy9 | F159: dms_frcp_fy9 | G159: 2018-19 | H159: 2019 | I159: dms_crcp_cy9 | L159: 2031-32 | M159: 2032
B160: dms_y10 | C160: =IF(dms_RPT="financial",VALUE(LEFT(dms_fy9,4)+1)&"-"&TEXT(MID(dms_fy9,3,2)+2,"00"),VALUE(LEFT(dms_fy9,4)+1)) -> 2026-27 | D160: 2015 | E160: dms_cy10 | F160: dms_frcp_fy10 | G160: 2019-20 | H160: 2020 | I160: dms_crcp_cy10 | L160: 2032-33 | M160: 2033
B161: dms_y11 | C161: =IF(dms_RPT="financial",VALUE(LEFT(dms_fy10,4)+1)&"-"&TEXT(MID(dms_fy10,3,2)+2,"00"),VALUE(LEFT(dms_fy10,4)+1)) -> 2027-28 | D161: 2016 | E161: dms_cy11 | F161: dms_frcp_fy11 | G161: 2020-21 | H161: 2021 | I161: dms_crcp_cy11 | L161: 2033-34 | M161: 2034
B162: dms_y12 | C162: =IF(dms_RPT="financial",VALUE(LEFT(dms_fy11,4)+1)&"-"&TEXT(MID(dms_fy11,3,2)+2,"00"),VALUE(LEFT(dms_fy11,4)+1)) -> 2028-29 | D162: 2017 | E162: dms_cy12 | F162: dms_frcp_fy12 | G162: 2021-22 | H162: 2022 | I162: dms_crcp_cy12 | L162: 2034-35 | M162: 2035
B163: dms_y13 | C163: =IF(dms_RPT="financial",VALUE(LEFT(dms_fy12,4)+1)&"-"&TEXT(MID(dms_fy12,3,2)+2,"00"),VALUE(LEFT(dms_fy12,4)+1)) -> 2029-30 | D163: 2018 | E163: dms_cy13 | F163: dms_frcp_fy13 | G163: 2022-23 | H163: 2023 | I163: dms_crcp_cy13 | L163: 2035-36 | M163: 2036
B164: dms_y14 | C164: =IF(dms_RPT="financial",VALUE(LEFT(dms_fy13,4)+1)&"-"&TEXT(MID(dms_fy13,3,2)+2,"00"),VALUE(LEFT(dms_fy13,4)+1)) -> 2030-31 | D164: 2019 | E164: dms_cy14 | F164: dms_frcp_fy14 | G164: 2023-24 | H164: 2024 | I164: dms_crcp_cy14
B165: dms_y15 | C165: =IF(dms_RPT="financial",VALUE(LEFT(dms_fy14,4)+1)&"-"&TEXT(MID(dms_fy14,3,2)+2,"00"),VALUE(LEFT(dms_fy14,4)+1)) -> 2031-32 | D165: 2020 | E165: dms_cy15 | F165: dms_frcp_fy15 | G165: 2024-25 | H165: 2025 | I165: dms_crcp_cy15
B166: dms_y16 | C166: =IF(dms_RPT="financial",VALUE(LEFT(dms_fy15,4)+1)&"-"&TEXT(MID(dms_fy15,3,2)+2,"00"),VALUE(LEFT(dms_fy15,4)+1)) -> 2032-33 | D166: 2021 | E166: dms_cy16
B167: dms_y17 | C167: =IF(dms_RPT="financial",VALUE(LEFT(dms_fy16,4)+1)&"-"&TEXT(MID(dms_fy16,3,2)+2,"00"),VALUE(LEFT(dms_fy16,4)+1)) -> 2033-34 | D167: 2022 | E167: dms_cy17
B168: dms_y18 | C168: =IF(dms_RPT="financial",VALUE(LEFT(dms_fy17,4)+1)&"-"&TEXT(MID(dms_fy17,3,2)+2,"00"),VALUE(LEFT(dms_fy17,4)+1)) -> 2034-35 | D168: 2023 | E168: dms_cy18
B169: dms_y19 | C169: =IF(dms_RPT="financial",VALUE(LEFT(dms_fy18,4)+1)&"-"&TEXT(MID(dms_fy18,3,2)+2,"00"),VALUE(LEFT(dms_fy18,4)+1)) -> 2035-36 | D169: 2024 | E169: dms_cy19
B170: dms_y20 | C170: =IF(dms_RPT="financial",VALUE(LEFT(dms_fy19,4)+1)&"-"&TEXT(MID(dms_fy19,3,2)+2,"00"),VALUE(LEFT(dms_fy19)+1)) -> 2036-37 | D170: 2025 | E170: dms_cy20
B176: These "row descriptions" are the column headings in the various templates but become row descriptions in the ETL process
C177: Table 6.3 sustained interruptions - row descriptions
C178: dms_060301_CustNo_Affected_Row | D178: dms_060301_Avg_Duration_Sustained_Int_Row | E178: dms_060301_Effect_unplanned_SAIDI_Row | F178: dms_060301_Effect_unplanned_SAIFI_Row
C179: Number of customers affected by the interruption | D179: Average duration of sustained customer interruption | E179: Effect on unplanned SAIDI | F179: Effect on unplanned SAIFI
C183: Table 6.1 telephone answering - row descriptions and start date
C184: dms_060101_Rows | D184: dms_060102_Rows | E184: dms_060101_StartDateTxt
C185: Total number of calls (after removing excluded events) | D185: Number of calls answered within 30 seconds (after excluding excluded events) | E185: =dms_060701_StartDateTxt -> 1-Jul-2017
H189: dms_0603_FeederList | I189: =INDEX(dms_FeederName_1,MATCH(dms_TradingName,dms_TradingName_List)) -> CBD | J189: =INDEX(dms_FeederName_2,MATCH(dms_TradingName,dms_TradingName_List)) -> Urban | K189: =INDEX(dms_FeederName_3,MATCH(dms_TradingName,dms_TradingName_List)) -> Short rural | L189: =INDEX(dms_FeederName_4,MATCH(dms_TradingName,dms_TradingName_List)) -> Long rural | M189: =INDEX(dms_FeederName_5,MATCH(dms_TradingName,dms_TradingName_List)) -> 
C190: Table 6.7.1 - daily performance data - unplanned - MAIFI -- row descriptions and header named range values
C191: These headings (Lists) are determined from the INDEX/MATCH function on the NSP selected on the Business & other details sheet
B192: dms_060701_Feeder_Header_Lvl4 | C192: =INDEX(dms_FeederName_1,MATCH(dms_TradingName,dms_TradingName_List)) -> CBD | D192: =INDEX(dms_FeederName_1,MATCH(dms_TradingName,dms_TradingName_List)) -> CBD | E192: =INDEX(dms_FeederName_2,MATCH(dms_TradingName,dms_TradingName_List)) -> Urban | F192: =INDEX(dms_FeederName_2,MATCH(dms_TradingName,dms_TradingName_List)) -> Urban | G192: =INDEX(dms_FeederName_3,MATCH(dms_TradingName,dms_TradingName_List)) -> Short rural | H192: =INDEX(dms_FeederName_3,MATCH(dms_TradingName,dms_TradingName_List)) -> Short rural | I192: =INDEX(dms_FeederName_4,MATCH(dms_TradingName,dms_TradingName_List)) -> Long rural | J192: =INDEX(dms_FeederName_4,MATCH(dms_TradingName,dms_TradingName_List)) -> Long rural | K192: =IF((INDEX(dms_FeederName_5,MATCH(dms_TradingName,dms_TradingName_List))=0),"Network",(INDEX(dms_FeederName_5,MATCH(dms_TradingName,dms_TradingName_List)))) ->  | L192: =IF((INDEX(dms_FeederName_5,MATCH(dms_TradingName,dms_TradingName_List))=0),"Network",(INDEX(dms_FeederName_5,MATCH(dms_TradingName,dms_TradingName_List)))) ->  | M192: Network | N192: Network
B194: dms_060701_Rows | C194: All events | D194: After removing excluded events | E194: All events | F194: After removing excluded events | G194: All events | H194: After removing excluded events | I194: All events | J194: After removing excluded events | K194: All events | L194: After removing excluded events | M194: All events | N194: After removing excluded events
C195: the number of column headings changes from 10 to 12 depending on the number of feeder categories for the NSP
C200: Table 6.8.1 - row descriptions
C201: dms_060801_01_Rows | D201: dms_060801_02_Rows | E201: dms_060801_03_Rows | F201: dms_060801_04_Rows
C202: Number of interruptions | D202: Duration of interruptions | E202: Total unplanned minutes off supply | F202: Effect on unplanned MAIFI
C207: Table 7.9.4 - market impact component - row descriptions
B208: dms_070904_01_Rows | C208: without exclusions | D208: with exclusions
C214: Use this to add to existing files
C215: ARRs 6.7 STPIS daily performance
C216: dms_060101_Values | D216: dms_060102_Values | E216: dms_060701_Values
C218: ARR's 6.8 STPIS exclusions
C219: dms_060801_Event_Date | D219: dms_060801_OutageID | E219: dms_060801_FeederID | F219: dms_060801_FeederClass | G219: dms_060801_CauseID | H219: dms_060801_01_Values | I219: dms_060801_02_Values | J219: dms_060801_03_Values | K219: dms_060801_Excl_Cat | L219: dms_060801_04_Values
C220: dms_060801_StartCell
C222: CA 6.3 sustained interruptions
C223: dms_060301_Event_Date | D223: dms_060301_Event_Time | E223: dms_060301_AssetID | F223: dms_060301_FeederClass | G223: dms_060301_Reason | H223: dms_060301_DetailedReason | I223: dms_060301_CustNo_Affected_Values | J223: dms_060301_Avg_Duration_Sustained_Int_Values | K223: dms_060301_Effect_unplanned_SAIDI_Values | L223: dms_060301_Effect_unplanned_SAIFI_Values | M223: dms_060301_MED

Sheet Contents
B3: =CONCATENATE(dms_Segment," Network Service Provider") -> Distribution Network Service Provider
B5: Table of Contents
C8: Instructions
C9: Business & other details
B12: CATEGORY ANALYSIS | C12: STPIS | D12: STATUTORY ACCOUNTS
B14: 2.11 Labour | C14: 6.2 STPIS Reliability | D14: 8.1 Income
C15: 6.6 STPIS Customer Service | D15: 8.2 Capex
C16: 6.7 STPIS Daily Performance
C17: 6.8 STPIS Exclusions | D17: 8.4 Opex
C18: 6.9 STPIS GSL
B22: NETWORK PERFORMANCE | C22: OTHER INFORMATION | D22: PRICING PROPOSAL
D23: Victorian Businesses Only
B24: 3.6 Quality of services | C24: 7.8 Avoided Cost Payments
B25: 3.6.8 Network-feeders | C25: 7.10 Juris Scheme | D25: 9.5 TUoS
B26: 3.6.9 Network-reliability | C26: 7.11 DMIS-DMIA
C27: 7.12 Safety and Bushfire
B29: PUBLIC LIGHTING
B31: 4.1 Public lighting tariffs

Sheet Instructions
B2: =CONCATENATE(dms_Segment," Network Service Provider") -> Distribution Network Service Provider
B3: =IF(dms_Model="Reset","Regulatory Proposal RIN Template","Annual Reporting RIN") -> Annual Reporting RIN
C4: This template is to be used by Australian Distribution Co. to fulfil its reporting obligations to the AER.
C5: INSTRUCTIONS
C6: Complete the Business & other details worksheet before entering data or values in any other worksheets. The Business & other details worksheet is linked to other worksheets within the workbook and automatically generates certain column headings and conditional formatting.
C8: Identifying CONFIDENTIAL INFORMATION: Please use the macro at the top of each worksheet to identify confidential information.
C9: -Do this by selecting the cell or cells that contain confidential information and then run the Mark selected cells as CONFIDENTIAL macro. This will format the cells a specific colour that is identified by the AER's database which in turn marks that information as confidential. -To reverse this, select the cell or cells and run the Return cells to NON-CONFIDENTIAL macro.
C11: UNITS OF MEASURE All amounts are to be unrounded and reported on a one for one basis: that is 1000 is to be entered as '1000'. Applicable units of measure may be identified in the table column headings or row descriptors.
C13: COLOUR CODING OF INPUT / NON-INPUT CELLS:
D14: Yellow = Input cell (mandatory)
D15: Darker yellow = input cell (mandatory)
D16: Orange = input cell (if data available)
D17: Grey = Not applicable/No inputs required
D18: PLEASE DO NOT ENTER TEXT into cells that are to contain numeric data.
C21: WORKSHEET NAVIGATION Many tables in the worksheets have been "grouped" to allow for easy navigation. To ungroup or group data use the outline symbols in the left margin (for Row groupings) or above the columns (for column groupings).
C23: RETURNING COMPLETED RESPONSES Please return two (2) files to the AER: 1. A confidential version which must contain a complete set of all responses with confidential information marked using the Mark selection CONFIDENTIAL macro and which has been completed using the locked template file provided by the AER. 2. A public version with confidential information either removed completely or aggregated in some form together with writtten consent to disclose the public version of the response. Use the drop down box on the Business and other details worksheet to identify the file as either confidential ('consolidated') or public.
C25: SUBMITTING AMENDED DATA TO THE AER If an NSP wishes to correct data previously submitted to the AER it should resubmit that data using the original completed submission as the starting point. Please make any necessary changes to the data. Data that is not being amended should be left unchanged. NSPs must identify the reason for the amendments in the Amendment Reason box on the Business and other details worksheet. NSPs may provide further details regarding any amendments in the Amendments worksheet. .
C26: NSP may use Amended Data macro to highlight cells that contain amended data. NB: if data is also CONFIDENTIAL, re-apply the Confidentiality macro after applying the Amended macro
C27: Please resubmit two (2) files - a confidential version and a public version of the amended submission to the AER

Sheet Business & other details
B1: =IF(dms_DataQuality="backcast",INDEX(dms_Worksheet_List,MATCH(dms_Model,dms_Model_List))&" BACKCAST",INDEX(dms_Worksheet_List,MATCH(dms_Model,dms_Model_List))) -> ANNUAL REPORTING STATEMENT
B2: =INDEX(dms_TradingNameFull_List,MATCH(dms_TradingName,dms_TradingName_List)) -> Energex
B3: =IF(SUM(dms_SingleYear_Model)>0,CONCATENATE(CRY),CONCATENATE(FRCP_y1," to ",dms_MultiYear_FinalYear_Result)) -> 2017-18
B4: BUSINESS & OTHER DETAILS
B7: Instructions
B8: Complete the following business details regulatory template before entering data or values in any other regulatory template. This regulatory template is linked to other cells within the spreadsheet and automatically generates column headings and conditional formatting to distinguish business specific input and non-input cells.
B10: SUBMISSION PARTICULARS INPUT SHEETS
B12: ENTITY DETAILS
B14: Short name | C14: Energex | F14: Select business name from drop down list first
B15: ACN / ABN | C15: =INDEX(dms_ABN_List,MATCH(dms_TradingName,dms_TradingName_List)) -> 40078849055
B18: Business address | C18: Address 1 | E18: =INDEX(dms_Addr1_List,MATCH(dms_TradingName,dms_TradingName_List)) -> 26 Reddacliff Street
D19: Address 2 | E19: =IF(ISBLANK(INDEX(dms_Addr2_List,MATCH(dms_TradingName,dms_TradingName_List))),"",(INDEX(dms_Addr2_List,MATCH(dms_TradingName,dms_TradingName_List)))) -> 
C20: Suburb | E20: =INDEX(dms_Suburb_List,MATCH(dms_TradingName,dms_TradingName_List)) -> NEWSTEAD
D21: State | E21: =INDEX(dms_State_List,MATCH(dms_TradingName,dms_TradingName_List)) -> Qld | F21: p/code | G21: =INDEX(dms_PostCode_List,MATCH(dms_TradingName,dms_TradingName_List)) -> 4006
B23: Postal address | C23: Address 1 | E23: =INDEX(dms_PAddr1_List,MATCH(dms_TradingName,dms_TradingName_List)) -> 26 Reddacliff Street
D24: Address 2 | E24: =IF(ISBLANK(INDEX(dms_PAddr2_List,MATCH(dms_TradingName,dms_TradingName_List))),"",(INDEX(dms_PAddr2_List,MATCH(dms_TradingName,dms_TradingName_List)))) -> 
C25: Suburb | E25: =INDEX(dms_PSuburb_List,MATCH(dms_TradingName,dms_TradingName_List)) -> NEWSTEAD
D26: State | E26: =INDEX(dms_PState_List,MATCH(dms_TradingName,dms_TradingName_List)) -> QLD | F26: p/code | G26: =INDEX(dms_PPostCode_List,MATCH(dms_TradingName,dms_TradingName_List)) -> 4006
B29: Contact name/s | C29: Karen Stafford | F29: General Manager Legal, Regulation and Pricing
B30: Contact phone/s | C30: (07) 3851 6793
B31: Contact email address/s | C31: karen.stafford@energyq.com.au
B33: REGULATORY CONTROL PERIODS
B35: Forthcoming regulatory control period | C35: 2020-21 | D35: =dms_FRCP_y2 -> 2021-22 | E35: =dms_FRCP_y3 -> 2022-23 | F35: =dms_FRCP_y4 -> 2023-24 | G35: =dms_FRCP_y5 -> 2024-25
C36: =dms_FRCP_y6 -> 2025-26 | D36: =dms_FRCP_y7 -> 2026-27 | E36: =dms_FRCP_y8 -> 2027-28 | F36: =dms_FRCP_y9 -> 2028-29 | G36: =dms_FRCP_y10 -> 2029-30
B39: Current regulatory control period | C39: =dms_CRCP_FirstYear_Result -> 2015-16 | D39: =IF(dms_RPT="financial",VALUE(LEFT(CRCP_y1,4)+1)&"-"&TEXT(MID(CRCP_y1,3,2)+2,"00"),VALUE(LEFT(CRCP_y1,4)+1)) -> 2016-17 | E39: =IF(dms_RPT="financial",VALUE(LEFT(CRCP_y1,4)+2)&"-"&TEXT(VALUE(MID(CRCP_y1,3,2)+3),"00"),VALUE(LEFT(CRCP_y1,4)+2)) -> 2017-18 | F39: =IF(dms_RPT="financial",VALUE(LEFT(CRCP_y1,4)+3)&"-"&TEXT(MID(CRCP_y1,3,2)+4,"00"),VALUE(LEFT(CRCP_y1,4)+3)) -> 2018-19 | G39: =IF(dms_RPT="financial",VALUE(LEFT(CRCP_y1,4)+4)&"-"&TEXT(MID(CRCP_y1,3,2)+5,"00"),VALUE(LEFT(CRCP_y1,4)+4)) -> 2019-20
C40: =IF(dms_RPT="financial",VALUE(LEFT(CRCP_y1,4)+5)&"-"&TEXT(MID(CRCP_y1,3,2)+6,"00"),VALUE(LEFT(CRCP_y1,4)+5)) -> 2020-21 | D40: =IF(dms_RPT="financial",VALUE(LEFT(CRCP_y1,4)+6)&"-"&TEXT(MID(CRCP_y1,3,2)+7,"00"),VALUE(LEFT(CRCP_y1,4)+6)) -> 2021-22 | E40: =IF(dms_RPT="financial",VALUE(LEFT(CRCP_y1,4)+7)&"-"&TEXT(MID(CRCP_y1,3,2)+8,"00"),VALUE(LEFT(CRCP_y1,4)+7)) -> 2022-23 | F40: =IF(dms_RPT="financial",VALUE(LEFT(CRCP_y1,4)+8)&"-"&TEXT(MID(CRCP_y1,3,2)+9,"00"),VALUE(LEFT(CRCP_y1,4)+8)) -> 2023-24 | G40: =IF(dms_RPT="financial",VALUE(LEFT(CRCP_y1,4)+9)&"-"&TEXT(MID(CRCP_y1,3,2)+10,"00"),VALUE(LEFT(CRCP_y1,4)+9)) -> 2024-25
C41: =IF(dms_RPT="financial",VALUE(LEFT(CRCP_y1,4)+10)&"-"&TEXT(MID(CRCP_y1,3,2)+11,"00"),VALUE(LEFT(CRCP_y1,4)+10)) -> 2025-26 | D41: =IF(dms_RPT="financial",VALUE(LEFT(CRCP_y1,4)+11)&"-"&TEXT(MID(CRCP_y1,3,2)+12,"00"),VALUE(LEFT(CRCP_y1,4)+11)) -> 2026-27 | E41: =IF(dms_RPT="financial",VALUE(LEFT(CRCP_y1,4)+12)&"-"&TEXT(MID(CRCP_y1,3,2)+13,"00"),VALUE(LEFT(CRCP_y1,4)+12)) -> 2027-28 | F41: =IF(dms_RPT="financial",VALUE(LEFT(CRCP_y1,4)+13)&"-"&TEXT(MID(CRCP_y1,3,2)+14,"00"),VALUE(LEFT(CRCP_y1,4)+13)) -> 2028-29 | G41: =IF(dms_RPT="financial",VALUE(LEFT(CRCP_y1,4)+14)&"-"&TEXT(MID(CRCP_y1,3,2)+15,"00"),VALUE(LEFT(CRCP_y1,4)+14)) -> 2029-30
B44: Previous regulatory control period | C44: =IF(dms_RPT="financial",VALUE(LEFT(PRCP_y2,4)-1)&"-"&TEXT(VALUE(MID(PRCP_y2,3,2)),"00"),VALUE(LEFT(PRCP_y2,4)-1)) -> 2010-11 | D44: =IF(dms_RPT="financial",VALUE(LEFT(PRCP_y3,4)-1)&"-"&TEXT(VALUE(MID(PRCP_y3,3,2)),"00"),VALUE(LEFT(PRCP_y3,4)-1)) -> 2011-12 | E44: =IF(dms_RPT="financial",VALUE(LEFT(PRCP_y4,4)-1)&"-"&TEXT(VALUE(MID(PRCP_y4,3,2)),"00"),VALUE(LEFT(PRCP_y4,4)-1)) -> 2012-13 | F44: =IF(dms_RPT="financial",VALUE(LEFT(PRCP_y5,4)-1)&"-"&TEXT(VALUE(RIGHT(PRCP_y5,2)-1),"00"),VALUE(LEFT(PRCP_y5,4)-1)) -> 2013-14 | G44: =IF(dms_RPT="financial",VALUE(LEFT(CRCP_y1,4)-1)&"-"&TEXT(VALUE(RIGHT(CRCP_y1,2)-1),"00"),VALUE(LEFT(CRCP_y1,4)-1)) -> 2014-15
B48: Commencing regulatory year | C48: 2017-18 | D48: CRY
B50: Last completed regulatory year | C50: 2017-18 | D50: dms_FinalYear
C54: IF THIS IS AN ABC RIN - make sure the the named range CRY is applied and the named range dms_dollar_nom_UOM is applied
C55: IF THIS IS A RESET RIN - make sure the named ranges CRY and dms_dollar_nom_UOM are NOT present in the workbook
C56: FOR ABC RINS THAT SPAN MULTIPLE YEARS - make sure MultiYear Flag is set and final year entered as required
B58: Source | C58: Reporting | E58: Please select the correct submission type from the dropdown list.
B59: Data quality (actual, estimate, public, consolidated) | C59: Consolidated | E59: Use Consolidated for Consolidated Confidential version Use Public for Consolidated Public version
B60: Amended RIN submission - amendment reason | C60: Amended to include capital contribution amounts in Capex table 8.2.1
B61: Submission Date | C61: 2019-01-03 | D61: dms_SubmissionDate | E61: Please enter date this file submitted to AER (dd/mm/yyyy)
B62: EBSS - First application of scheme in forthcoming period? | C62: No
B63: Sector | C63: =INDEX(dms_Sector_List,MATCH(dms_TradingName,dms_TradingName_List)) -> Electricity | D63: dms_Sector | E63: =INDEX(dms_Sector_List,MATCH(dms_TradingName,dms_TradingName_List))
B64: Segment | C64: =INDEX(dms_Segment_List,MATCH(dms_TradingName,dms_TradingName_List)) -> Distribution | D64: dms_Segment | E64: =INDEX(dms_Segment_List,MATCH(dms_TradingName,dms_TradingName_List))
B65: Regulatory Year Ending | C65: =IF(dms_MultiYear_Flag=1,LEFT(dms_Specified_FinalYear,2)&RIGHT(dms_Specified_FinalYear,2),INDEX(dms_RYE_Formula_Result,MATCH(dms_Model,dms_Model_List))) -> 2018 | D65: dms_RYE | E65: =IF(dms_MultiYear_Flag=1,LEFT(dms_Specified_FinalYear,2)&RIGHT(dms_Specified_FinalYear,2),INDEX(dms_RYE_Formula_Result,MATCH(dms_Model,dms_Model_List)))
B66: Reporting Period Type | C66: =INDEX(dms_RPT_List,MATCH(dms_TradingName,dms_TradingName_List)) -> Financial | D66: dms_RPT | E66: =INDEX(dms_RPT_List,MATCH(dms_TradingName,dms_TradingName_List))
B67: Model or RIN Type | C67: ARR | D67: dms_Model | E67: Drop down selection
B68: EB/CA Unit of Measure for Monetary Values | C68: $0s | D68: dms_dollar_nom_UOM | E68: If the cover sheet is attached to an ABC RIN apply the NAMED RANGE to the cell
B69: Security Classification | C69: Public | D69: dms_Classification | E69: Always Public
B70: Jurisdiction | C70: =INDEX(dms_JurisdictionList,MATCH(dms_TradingName,dms_TradingName_List)) -> Qld | D70: dms_Jurisdiction | E70: =INDEX(dms_JurisdictionList,MATCH(dms_TradingName,dms_TradingName_List))
B71: FORECAST and MultiYear RINS
B72: CRY-1 (last full calendar year before CRY) | C72: =IF(dms_RPT="financial",VALUE(LEFT(dms_SingleYear_FinalYear_Result,4)),VALUE(LEFT(dms_SingleYear_FinalYear_Result,4)-1)) -> 2017 | D72: dms_Cal_Year_B4_CRY | E72: '=IF(dms_RPT="financial",VALUE(LEFT(dms_SingleYear_FinalYear_Result,4)),VALUE(LEFT(dms_SingleYear_FinalYear_Result,4)-1))
B73: Dollar $ real month | C73: =INDEX(dms_RPTMonth_List,MATCH(dms_TradingName,dms_TradingName_List)) -> June | D73: dms_RPTMonth | E73: =INDEX(dms_RPTMonth_List,MATCH(dms_TradingName,dms_TradingName_List))
B74: Dollar $ real (the last month before the FRCP_y1) | C74: =IF(SUM(dms_SingleYear_Model)>0,CONCATENATE(dms_RPTMonth)&" "&VALUE((LEFT(CRY,2))&RIGHT(CRY,2)),CONCATENATE(dms_RPTMonth)&" "&VALUE((LEFT(dms_CRCP_FinalYear_Result,2)&RIGHT(dms_CRCP_FinalYear_Result,2)))) -> June 2018 | D74: dms_DollarReal | E74: =IF(SUM(dms_SingleYear_Model)>0,CONCATENATE(dms_RPTMonth)&" "&VALUE((LEFT(CRY,2))&RIGHT(CRY,2)),CONCATENATE(dms_RPTMonth)&" "&VALUE((LEFT(dms_CRCP_FinalYear_Result,2)&RIGHT(dms_CRCP_FinalYear_Result,2))))
B75: Dollar $ real previous year (PRCP_y5) | C75: =IF(SUM(dms_SingleYear_Model)>0,CONCATENATE(dms_RPTMonth)&" "&VALUE(((LEFT(CRY,2))&RIGHT(CRY,2))-1),CONCATENATE(dms_RPTMonth)&" "&VALUE(((LEFT(dms_CRCP_FirstYear_Result,2)&RIGHT(dms_CRCP_FirstYear_Result,2))))-1) -> June 2017 | D75: dms_DollarReal_Prev | E75: =IF(SUM(dms_SingleYear_Model)>0,CONCATENATE(dms_RPTMonth)&" "&VALUE(((LEFT(CRY,2))&RIGHT(CRY,2))-1),CONCATENATE(dms_RPTMonth)&" "&VALUE(((LEFT(dms_CRCP_FirstYear_Result,2)&RIGHT(dms_CRCP_FirstYear_Result,2))))-1)
B76: This block works out the various RYE's for ALL RIN types and MODELS
B77: Single Year Model T/F | C77: =IF(dms_Model="EB",1,0) -> 0 | D77: dms_EB
C78: =IF(dms_Model="CA",1,0) -> 0 | D78: dms_CA | E78: =dms_SingleYear_Model
C79: =IF(dms_Model="ARR",1,0) -> 1 | D79: dms_ARR
B80: Is this a single Year RIN? | C80: =IF(SUM(dms_SingleYear_Model)=1,"yes","no") -> yes | D80: dms_SingleYearModel | E80: =IF(SUM(dms_SingleYear_Model)=1,"yes","no")
B81: Single Year Final Year Reference | C81: CRY | D81: dms_SingleYear_FinalYear_Ref | E81: This is the reference for EB, CA & ARR RINs
B82: Single Year Final Year Result | C82: =IFERROR(IF(SUM(dms_SingleYear_Model)<>0,(INDIRECT(dms_SingleYear_FinalYear_Ref)),"not a single year RIN"),"CRY not present") -> 2017-18 | D82: dms_SingleYear_FinalYear_Result | E82: =IFERROR(IF(SUM(dms_SingleYear_Model)<>0,(INDIRECT(dms_SingleYear_FinalYear_Ref)),"not a single year RIN"),"CRY not present")
B83: FRCP length in years | C83: =INDEX(dms_FRCPlength_List,MATCH(dms_TradingName,dms_TradingName_List)) -> 5 | D83: dms_FRCPlength_Num | E83: =INDEX(dms_FRCPlength_List,MATCH(dms_TradingName,dms_TradingName_List))
B84: Multi Year Final Year Reference | C84: =INDEX(dms_FinalYear_List,MATCH(dms_FRCPlength_Num,dms_FRCPlength_Num_List)) -> dms_FRCP_y5 | D84: dms_MultiYear_FinalYear_Ref | E84: =INDEX(dms_FinalYear_List,MATCH(dms_FRCPlength_Num,dms_FRCPlength_Num_List))
B85: Multi Year Final Year Result | C85: =IF(dms_MultiYear_Flag=0,INDIRECT(dms_MultiYear_FinalYear_Ref),dms_Specified_FinalYear) -> 2024-25 | D85: dms_MultiYear_FinalYear_Result | E85: =IF(dms_MultiYear_Flag=0,INDIRECT(dms_MultiYear_FinalYear_Ref),dms_Specified_FinalYear) | I85: Formula errors OK
B86: CRCP length in years | C86: =INDEX(dms_CRCPlength_List,MATCH(dms_TradingName,dms_TradingName_List)) -> 5 | D86: dms_CRCPlength_Num | E86: =INDEX(dms_CRCPlength_List,MATCH(dms_TradingName,dms_TradingName_List))
B87: CRCP Final Year Reference | C87: =INDEX(dms_CFinalYear_List,MATCH(dms_CRCPlength_Num,dms_CRCPlength_Num_List)) -> CRCP_y5 | D87: dms_CRCP_FinalYear_Ref | E87: =INDEX(dms_CFinalYear_List,MATCH(dms_CRCPlength_Num,dms_CRCPlength_Num_List))
B88: CRCP First Year Result | C88: =INDEX(dms_CRCP_years,MATCH(dms_CRCPlength_Num,dms_CRCP_index)) -> 2015-16 | D88: dms_CRCP_FirstYear_Result | E88: =INDEX(dms_CRCP_years,MATCH(dms_CRCPlength_Num,dms_CRCP_index))
B89: CRCP Final Year Result | C89: =IF(dms_MultiYear_Flag=0,(IF(SUM(dms_SingleYear_Model)>0,CRY,dms_CRCP_yZ)),dms_Specified_FinalYear) -> 2017-18 | D89: dms_CRCP_FinalYear_Result | E89: =IF(dms_MultiYear_Flag=0,(IF(SUM(dms_SingleYear_Model)>0,CRY,dms_CRCP_yZ)),dms_Specified_FinalYear)
B90: PTRM/ RFMs
B91: Form of control | C91: =INDEX(dms_FormControl_List,MATCH(dms_TradingName,dms_TradingName_List)) -> Revenue cap | D91: dms_FormControl | E91: =INDEX(dms_FormControl_List,MATCH(dms_TradingName,dms_TradingName_List))
B92: ABC RINS THAT SPAN MULTIPLE YEARS
B93: Is this a multi year ABC RIN? | C93: No
B94: Multiyear EB, CA or ARR? | C94: =IF(dms_MultiYear_ResponseFlag="No",0,1) -> 0 | D94: dms_MultiYear_Flag | E94: This is set from the answer provided above
C95: =IF(dms_MultiYear_Flag=1,FRY,"not a Multiple year submission") -> not a Multiple year submission | D95: dms_Specified_FinalYear | E95: The result here is returned to dms_CRCP_FinalYear_Result if response to Q in C73 is "yes" and dms_MultiYear_Flag is set to 1
B96: Start year for 5.2 in Multi year ABC RINS | C96: =IFERROR(IF(dms_MultiYear_Flag=1,FRY,CRY),"not an ABC") -> 2017-18 | D96: dms_0502_Inst_Year | E96: =IF(dms_MultiYear_Flag=1,FRY,CRY) | G96: For single year RINS this is CRY - multi year RINS need to start a the end of the span of years (ie. FRY)
B97: EB RINS
B98: Calendar Year for table 3.6 data | C98: =IF(dms_RPT="financial",VALUE(LEFT(dms_SingleYear_FinalYear_Result,4)),VALUE(LEFT(dms_SingleYear_FinalYear_Result,4)-1)) -> 2017 | D98: dms_0306_Year | E98: =IF(dms_RPT="financial",VALUE(LEFT(dms_SingleYear_FinalYear_Result,4)),VALUE(LEFT(dms_SingleYear_FinalYear_Result,4)-1))
B99: CA RINS
B100: Find how many rows in tables 6.3 sustained interruptions? | E100: dms_060301_MaxRows only returns a valid value when cover sheet is attached to a CA file
C101: =IF(dms_Model<>"CA","not a CA","Is a CA") -> not a CA | E101: =IF(dms_Model<>"CA","not a CA","Is a CA")
B102: dms_060301_Avg_Duration_Sustained_Int_Values present? | C102: =IFERROR(IF(INDEX(dms_060301_Avg_Duration_Sustained_Int_Values,1,1)<>"","yes","no"),"no") -> no | D102: dms_060301_checkvalue | E102: =IFERROR(IF(INDEX(dms_060301_Avg_Duration_Sustained_Int_Values,1,1)<>"","yes","no"),"no")
C103: =IF(AND(dms_Model="CA",(dms_060301_checkvalue="no")),"error - NR not present","no errors") -> no errors | E103: =IF(AND(dms_Model="CA",(dms_060301_checkvalue="no")),"error - NR not present","no errors")
B104: Table 6.3.1 - last row reference | C104: =IFERROR(IF(dms_Model="CA",LOOKUP(2,1/(dms_060301_Avg_Duration_Sustained_Int_Values<>""),(ROW(dms_060301_Avg_Duration_Sustained_Int_Values))),"not a CA"),"6.3 not present") -> not a CA | D104: dms_060301_LastRow | E104: =IFERROR(IF(dms_Model="CA",LOOKUP(2,1/(dms_060301_Avg_Duration_Sustained_Int_Values<>""),(ROW(dms_060301_Avg_Duration_Sustained_Int_Values))),"not a CA"),"6.3 not present")
B105: Table 6.3.1 - max number rows | C105: =IFERROR(IF(dms_Model="CA",(dms_060301_LastRow-15),"not a CA"),"error") -> not a CA | D105: dms_060301_MaxRows | E105: =IFERROR(IF(dms_Model="CA",(dms_060301_LastRow-15),"not a CA"),"error")
B106: Table 6.6.3 - Public lighting repair - no. business days | C106: =INDEX(dms_663_List,MATCH(dms_TradingName,dms_TradingName_List)) -> 5 | D106: dms_663 | E106: =INDEX(dms_663_List,MATCH(dms_TradingName,dms_TradingName_List))
B107: ARR or RESET RINS
B108: How many rows in tables 6.1 or 6.7? (leap year?) | C108: insert dms_LeapYear NR if required | E108: 'dms_LeapYear is used to determine dms_060701_Max_Rows BUT it is only found on worksheet 6.1 or 6.7 and the date value in the cell is used to determine whether it is a leap year
B109: Is dms_LeapYear named range present? | C109: =IFERROR(IF(dms_LeapYear,"yes"),"no") -> yes
B110: Table 6.7.1 - includes a leap year? | C110: =IFERROR(IF(MONTH(DATE(YEAR(dms_LeapYear),2,29))=2,"is a leap year","not a leap year"), "dms_LeapYear not present") -> not a leap year | D110: dms_LeapYear_Result | E110: =IFERROR(IF(MONTH(DATE(YEAR(dms_LeapYear),2,29))=2,"is a leap year","not a leap year"),"dms_LeapYear not present")
B111: MaxRows if Reset and leap year | C111: =IF(dms_LeapYear_Result="is a leap year",1827,1826) -> 1826 | D111: dms_060701_Reset_MaxRows | E111: =IF(dms_LeapYear_Result="is a leap year",1827,1826) | H111: number of days present in Reset RIN table
B112: MaxRows if ARR and leap year | C112: =IF(dms_LeapYear_Result="is a leap year",366,365) -> 365 | D112: dms_060701_ARR_MaxRows | E112: =IF(dms_LeapYear_Result="is a leap year",366,365) | H112: number of days present in ARR RIN table
B113: Table 6.7.1 - Max Rows (leap year/ non leap year) | C113: =IF(dms_Model="ARR",dms_060701_ARR_MaxRows,IF(dms_Model="Reset",dms_060701_Reset_MaxRows,"not a relevant RIN type")) -> 365 | D113: dms_060701_MaxRows | E113: =IF(dms_Model="ARR",dms_060701_ARR_MaxRows,IF(dms_Model="Reset",dms_060701_Reset_MaxRows,"not a relevant RIN type"))
B114: How many columns in 6.7? (4 or 5 feeder categories) | C114: =IF(dms_FifthFeeder_flag_NSP="NO","This NSP has only 4 feeder categories","This NSP has 5 feeder categories") -> This NSP has only 4 feeder categories
B115: Table 6.7.1 - Last column (# of feeder categories > 4) | C115: =IF(dms_FifthFeeder_flag_NSP="NO",10,12) -> 10 | D115: dms_060701_MaxCols | E115: =IF(dms_FifthFeeder_flag_NSP="NO",8,10)
B116: Table 6.7.1 - Number of offset rows | C116: =IF(dms_Model="ARR",15,9) -> 15 | D116: dms_060701_OffsetRows | E116: =IF(dms_Model="ARR",15,9)
B117: Start date for telephone answering in 6.1 or 6.7? | E117: Using 060101 as naming standard not 060701 for start dates
B118: Table 6.1.1 and 6.7.1 - Start Date as Text | C118: =IF(dms_SingleYearModel="yes",(CONCATENATE(IF(LEN(CRY)=4,"1-Jan-","1-Jul-"),LEFT(CRY,4))),(CONCATENATE(IF(LEN(PRCP_y4)=4,"1-Jan-","1-Jul-"),LEFT(PRCP_y4,4)))) -> 1-Jul-2017 | D118: dms_060101_StartDateTxt | E118: =IF(SUM(dms_SingleYear_Model)>1,(CONCATENATE(IF(LEN(CRY)=4,"1-Jan-","1-Jul-"),LEFT(CRY,4))),(CONCATENATE(IF(LEN(CRCP_y4)=4,"1-Jan-","1-Jul-"),LEFT(CRCP_y4,4))))
B119: Table 6.1.1 and 6.7.1 - Start Date as Date Value | C119: =DATEVALUE(dms_060701_StartDateTxt) -> 42917 | D119: dms_060101_StartDateVal | E119: =DATEVALUE(dms_060701_StartDateTxt)
B120: ARRs
B121: How many rows in table 6.8? | C121: insert dms_060801_StartCell NR if required | E121: dms_060801_StartCell is only found on worksheet 6.8 and is used to determine the starting date for the date range
B122: Is dms_060801_StartCell named range present? | C122: yes | E122: =IFERROR(IF((ROW(dms_060801_StartCell)-1)=1,"yes","yes"),"no")
B123: Table 6.8 - Number of offset rows | C123: =IFERROR(IF(dms_Model="ARR",(ROW(dms_060801_StartCell)-1),"not an ARR"),"6.8 error") -> 11 | D123: dms_0608_OffsetRows | E123: =IFERROR(IF(dms_Model="ARR",(ROW(dms_060801_StartCell)-1),"not an ARR"),"6.8 error")
B124: Table 6.8 - Last row | C124: =IFERROR(IF(dms_060801_StartCell<>"",IF(dms_Model="ARR",(LOOKUP(2,1/(dms_060801_01_Values<>""),(ROW(dms_060801_01_Values)))),"not an ARR"),0),"6.8 not present") -> 0 | D124: dms_0608_LastRow | E124: =IFERROR(IF(dms_060801_StartCell<>"",IF(dms_Model="ARR",(LOOKUP(2,1/(dms_060801_01_Values<>""),(ROW(dms_060801_01_Values)))),"not an ARR"),0),"6.8 not present")
B125: Table 6.8 - MaxRows | C125: =IFERROR(IF(dms_Model="ARR",(MAX(0,dms_0608_LastRow-dms_0608_OffsetRows)),"not an ARR"),"6.8 not present") -> 0 | D125: dms_060801_MaxRows | E125: =IFERROR(IF(dms_Model="ARR",(MAX(0,dms_0608_LastRow-dms_0608_OffsetRows)),"not an ARR"),"6.8 not present")
B126: TNSP RESET RINS
B127: Table 7.9.4 only appears in TNSPs Reset RIN
B128: Table 7.9.4 - first year | C128: =LEFT(PRCP_y3,4) -> 2012 | D128: dms_070904_Start_Year | E128: =LEFT(PRCP_y3,4)
B129: SUBSET FILES
B130: Is this Submission File a Subset File | C130: NO | D130: dms_Partial
B131: MISC
B132: Distribution Determination Reference | C132: =INDEX(dms_DeterminationRef_List,MATCH(dms_TradingName,dms_TradingName_List)) -> 2015-20 Distribution Determination | D132: dms_DeterminationRef
B133: Public lighting NSP? | C133: =INDEX(dms_Public_Lighting_List,MATCH(dms_TradingName,dms_TradingName_List)) -> YES | D133: dms_Public_Lighting | E133: =INDEX(dms_Public_Lighting_List,MATCH(dms_TradingName,dms_TradingName_List))
B134: CBD Feeder for this business | C134: =INDEX(dms_CBD_flag,MATCH(dms_TradingName,dms_TradingName_List)) -> YES | D134: dms_CBD_flag_NSP
B135: Urban Feeder for this business | C135: =INDEX(dms_Urban_flag,MATCH(dms_TradingName,dms_TradingName_List)) -> YES | D135: dms_Urban_flag_NSP
B136: Short rural Feeder for this business | C136: =INDEX(dms_ShortRural_flag,MATCH(dms_TradingName,dms_TradingName_List)) -> YES | D136: dms_ShortRural_flag_NSP
B137: Long rural Feeder for this business | C137: =INDEX(dms_LongRural_flag,MATCH(dms_TradingName,dms_TradingName_List)) -> NO | D137: dms_LongRural_flag_NSP
B138: Fifth Feeder Category (eg. TasNetworks (D)) | C138: =INDEX(dms_FeederType_5_flag,MATCH(dms_TradingName,dms_TradingName_List)) -> NO | D138: dms_FifthFeeder_flag_NSP | E138: =INDEX(dms_FeederType_5_flag,MATCH(dms_TradingName,dms_TradingName_List))
B140: DISCARD FILES
B141: discard this record? | C141: NO | D141: dms_DISCARD | E141: If record is to be discarded from DB set this flag to YES
B143: USES NAMED RANGES FLAG | C143: yes | D143: dms_Defined_Names_Used
B145: REGULATORY YEARS FOR MULTI RYE SUBMISSIONS
B146: Multiple RYE flag | C146: NO | D146: dms_Multi_RYE_flag
C147: Manually specify RYE | D147: Named ranges to apply
C148: 2013 | D148: dms_RYE_01
C149: 2014 | D149: dms_RYE_02
C150: 2015 | D150: dms_RYE_03
C151: 2016 | D151: dms_RYE_04
C152: 2017 | D152: dms_RYE_05
C153: 2018 | D153: dms_RYE_06
C154: 2019 | D154: dms_RYE_07
C155: 2020 | D155: dms_RYE_08
C156: 2021 | D156: dms_RYE_09

Sheet 2.11 Labour
B1: =IF(dms_DataQuality="backcast",INDEX(dms_Worksheet_List,MATCH(dms_Model,dms_Model_List))&" BACKCAST",INDEX(dms_Worksheet_List,MATCH(dms_Model,dms_Model_List))) -> ANNUAL REPORTING STATEMENT
B2: =INDEX(dms_TradingNameFull_List,MATCH(dms_TradingName,dms_TradingName_List)) -> Energex
B3: =CONCATENATE("Annual Reporting RIN Response ",IF(SUM(dms_SingleYear_Model)>0,CONCATENATE(CRY),CONCATENATE(FRCP_y1," to ",dms_MultiYear_FinalYear_Result))) -> Annual Reporting RIN Response 2017-18
B4: 2.11 LABOUR
B6: Tables 2.11.1 and 2.11.2 deliberately omitted.
B8: 2.11.3 - LABOUR / NON-LABOUR EXPENDITURE SPLIT
B9: 2.11.3.1 - Opex
C10: =CRY -> 2017-18
C11: $0's, nominal
C12: Opex
B13: In-house labour expenditure | C13: 164207063.3
B14: Labour expenditure outsourced to related parties | C14: 12029019.02
B15: Labour expenditure outsourced to unrelated parties | C15: 72229491.05
B16: Controllable non-labour expenditure | C16: 99880706.1
B17: Uncontrollable non-labour expenditure | C17: 15704412.65
B18: Total | C18: =SUM(C13:C17) -> 364050692.1
B20: Reconciliation with Opex worksheets - SCS | C20: Opex
B21: Total including margins | C21: =dms_Total_Actual_Opex -> 364050692.1 | D21: =IF(ROUND(C18,0)=ROUND(dms_Total_Actual_Opex,0),"OK","Error") -> OK
B24: 2.11.3.2 - Capex
C25: =CRY -> 2017-18
C26: $0's, nominal
C27: Capex
B28: In-house labour expenditure | C28: 180491640
B29: Labour expenditure outsourced to related parties | C29: 10094733.5
B30: Labour expenditure outsourced to unrelated parties | C30: 104711130.8
B31: Controllable non-labour expenditure | C31: 242628181
B32: Uncontrollable non-labour expenditure | C32: 4470232.6
B33: Total | C33: =SUM(C28:C32) -> 542395918
B35: Reconciliation with Capex & Opex worksheets - SCS | C35: Capex
B36: Total including margins | C36: =dms_Total_Actual_Capex -> 542395918 | D36: =IF(ROUND(C33,0)=ROUND(dms_Total_Actual_Capex,0),"OK","Error") -> OK

Sheet 3.6 Quality of services
B1: =IF(dms_DataQuality="backcast",INDEX(dms_Worksheet_List,MATCH(dms_Model,dms_Model_List))&" BACKCAST",INDEX(dms_Worksheet_List,MATCH(dms_Model,dms_Model_List))) -> ANNUAL REPORTING STATEMENT
B2: =INDEX(dms_TradingNameFull_List,MATCH(dms_TradingName,dms_TradingName_List)) -> Energex
B3: =CONCATENATE("Annual Reporting RIN Response ",IF(SUM(dms_SingleYear_Model)>0,CONCATENATE(CRY),CONCATENATE(FRCP_y1," to ",dms_MultiYear_FinalYear_Result))) -> Annual Reporting RIN Response 2017-18
B4: 3.6 QUALITY OF SERVICES
B6: 3.6.5 - QUALITY OF SUPPLY METRICS
D7: Volume
C8: Units | D8: =CRY -> 2017-18
B9: Over voltage events - due to high voltage injection | C9: number
B10: Customers receiving over-voltage - due to high voltage injection | C10: number
B11: Over voltage events - due to lightning | C11: number
B12: Customers receiving over-voltage - due to lightning | C12: number
B13: Over voltage events - due to voltage regulation or other cause | C13: number
B14: Customers receiving over-voltage - due to voltage regulation or other cause | C14: number
B15: Voltage variations - steady state (zone sub) | C15: number
B16: Voltage variations - one minute (zone sub) | C16: number
B17: Voltage variations - 10 seconds (zone sub) Min<0.7 | C17: number
B18: Voltage variations - 10 seconds (zone sub) Min<0.8 | C18: number
B19: Voltage variations - 10 seconds (zone sub) Min<0.9 | C19: number
B20: Voltage variations - steady state (feeder) | C20: number
B21: Voltage variations - % zone subs monitored | C21: (per cent)
B22: Voltage variations - % feeders monitored | C22: (per cent)
B24: 3.6.6 - COMPLAINTS - TECHNICAL QUALITY OF SUPPLY
D25: Volume
C26: Units | D26: =CRY -> 2017-18
B27: 3.6.6.1 - TECHNICAL QUALITY OF SUPPLY
B28: Number of complaints - technical quality of supply | C28: number | D28: 1346
B29: 3.6.6.2 - PERCENTAGE OF COMPLAINTS BY CATEGORY
B30: Low voltage supply | C30: (per cent) | D30: 0.066
B31: Voltage dips | C31: (per cent) | D31: 0.137
B32: Voltage swell | C32: (per cent) | D32: 0.079
B33: Voltage spike (impulsive transient) | C33: (per cent) | D33: 0.023
B34: Waveform distortion | C34: (per cent) | D34: 0.022
B35: TV or radio interference | C35: (per cent) | D35: 0.004
B36: Solar related | C36: (per cent) | D36: 0.504
B37: Noise from appliances | C37: (per cent) | D37: 0.079
B38: Other | C38: (per cent) | D38: 0.086
B39: 3.6.6.3 - PERCENTAGE OF COMPLAINTS BY LIKELY CAUSE
B40: Network equipment faulty | C40: (per cent) | D40: 0.026
B41: Network interference by NSP equipment | C41: (per cent) | D41: 0.151
B42: Network interference by another customer | C42: (per cent) | D42: 0.013
B43: Network limitation | C43: (per cent) | D43: 0.236
B44: Customer internal problem | C44: (per cent) | D44: 0.188
B45: No problem identified | C45: (per cent) | D45: 0.136
B46: Environmental | C46: (per cent) | D46: 0.009
B47: Other | C47: (per cent) | D47: 0.241
B51: 3.6.7 - CUSTOMER SERVICE METRICS
D52: Volume
C53: Unit | D53: =CRY -> 2017-18
B54: 3.6.7.1 - TIMELY PROVISIONS OF SERVICES
B55: Number of connections made | C55: number | D55: 33757
B56: Number of connections not made on or before agreed date | C56: number | D56: 418
B57: 3.6.7.2 - TIMELY REPAIR OF FAULTY STREET LIGHTS
B58: Street lights - average monthly number "out" | C58: number | D58: 717
B59: Street lights - not repaired by "fix by" date | C59: number | D59: 19
B60: Street lights - average number of days to repair | C60: number | D60: 4.25
B61: Total number of street lights | C61: number | D61: 329284
B62: 3.6.7.3 - CALL CENTRE PERFORMANCE
B63: Calls to call centre fault line | C63: number | D63: 364999
B64: Calls to fault line answered within 30 seconds | C64: number | D64: 79801
B65: Calls to fault line - average waiting time before call answered | C65: number | D65: 21
B66: Call centre - number of overload events | C66: number | D66: 0
B67: Percentage of calls abandoned | C67: (per cent) | D67: 5.4
B68: 3.6.7.4 - NUMBER OF CUSTOMER COMPLAINTS
B69: Complaint - reliability of supply | C69: number | D69: 142
B70: Complaint - technical quality of supply | C70: number | D70: =IF(ISBLANK(dms_030606_01_Values),"",dms_030606_01_Values) -> 1346
B71: Complaint - administrative process or customer service | C71: number | D71: 944
B72: Complaint - connection or augmentation | C72: number | D72: 1584
B73: Complaint - other | C73: number | D73: 171
B74: Total number of complaints | C74: number | D74: =IF(SUM(D69:D73)=0,"",(SUM(D69:D73))) -> 4187

Sheet 3.6.8 Network-feeders
B1: =IF(dms_DataQuality="backcast",INDEX(dms_Worksheet_List,MATCH(dms_Model,dms_Model_List))&" BACKCAST",INDEX(dms_Worksheet_List,MATCH(dms_Model,dms_Model_List))) -> ANNUAL REPORTING STATEMENT
B2: =INDEX(dms_TradingNameFull_List,MATCH(dms_TradingName,dms_TradingName_List)) -> Energex
B3: =CONCATENATE("Annual Reporting RIN Response ",IF(SUM(dms_SingleYear_Model)>0,CONCATENATE(CRY),CONCATENATE(FRCP_y1," to ",dms_MultiYear_FinalYear_Result))) -> Annual Reporting RIN Response 2017-18
B4: 3.6 QUALITY OF SERVICES
B6: Did the MAIFI parameter of the STPIS apply during the period? | F6: No | G6: ** IMPORTANT Please ensure this question is answered correctly. Your response will affect other tables throughout this workbook and will determine which cells are grey and which are input cells.
B10: 3.6.8 - NETWORK FEEDER RELIABILITY
B11: Feeder ID / name | C11: Description of the service area for the feeder | D11: Feeder classification (drop down) | E11: Number of distribution customers | F11: Length of high voltage distribution lines | H11: Maximum demand (MVA) | I11: Energy not supplied (MWh) | K11: Unplanned Outages | P11: Planned Outages | U11: Momentary feeder outages
F12: Overhead | G12: Underground | I12: Unplanned | J12: Planned | K12: Total number of unplanned outages | L12: Unplanned customer minutes off-supply (SAIDI) | N12: Unplanned interruptions (SAIFI) | P12: Total number of planned outages | Q12: Planned customer minutes off-supply (SAIDI) | S12: Planned interruptions (SAIFI) | U12: Total number of momentary feeder outages | V12: Momentary interruptions due to feeder outages (MAIFI)
L13: Including excluded events and MEDs | M13: After removing excluded events and MED | N13: Including excluded events and MEDs | O13: After removing excluded events and MED | Q13: Including MEDs | R13: After removing MED | S13: Including MEDs | T13: After removing MED | V13: Including excluded events and MEDs | W13: After removing excluded events and MED
B14: 301 | C14: POSTMANS RIDGE | D14: URBAN | E14: 1 | F14: 0 | G14: 0 | H14: 0 | I14: 0 | J14: 0 | K14: 0 | L14: 0 | M14: 0 | N14: 0 | O14: 0 | P14: 0 | Q14: 0 | R14: 0 | S14: 0 | T14: 0
B15: 318 | C15: EAGLE FARM | D15: URBAN | E15: 1 | F15: 0 | G15: 0.401 | H15: 0 | I15: 0 | J15: 14.47566 | K15: 0 | L15: 0 | M15: 0 | N15: 0 | O15: 0 | P15: 3 | Q15: 0 | R15: 0 | S15: 0 | T15: 0
B16: 341 | C16: TIN CAN BAY, TOOLARA FOREST, WALLU | D16: URBAN | E16: 40 | F16: 74.45 | G16: 0.232 | H16: 0 | I16: 0.002026 | J16: 0 | K16: 3 | L16: 2.43 | M16: 2.427143 | N16: 0.029 | O16: 0.029 | P16: 4 | Q16: 546.7817 | R16: 546.7817 | S16: 2.046 | T16: 2.046
B17: 383 | C17: WIVENHOE POCKET | D17: URBAN | E17: 1 | F17: 2.731 | G17: 0 | H17: 0 | I17: 0.000924 | J17: 1 | K17: 0 | L17: 0 | M17: 0 | N17: 0 | O17: 0 | P17: 0 | Q17: 0 | R17: 0 | S17: 0 | T17: 0
B18: 399 | C18: DUNWICH | D18: URBAN | E18: 1 | F18: 5.176 | G18: 0 | H18: 0 | I18: 0 | J18: 2 | K18: 0 | L18: 0 | M18: 0 | N18: 0 | O18: 0 | P18: 0 | Q18: 0 | R18: 0 | S18: 0 | T18: 0
B19: 436 | C19: EBENEZER, WILLOWBANK | D19: URBAN | E19: 1 | F19: 15.127 | G19: 0.028 | H19: 0 | I19: 0.03939 | J19: 3 | K19: 0 | L19: 0 | M19: 0 | N19: 0 | O19: 0 | P19: 2 | Q19: 0 | R19: 0 | S19: 0 | T19: 0
B20: 437 | C20: BROMELTON | D20: URBAN | E20: 2 | F20: 0.495 | G20: 0 | H20: 0 | I20: 0.06038 | J20: 4 | K20: 0 | L20: 0 | M20: 0 | N20: 0 | O20: 0 | P20: 0 | Q20: 0 | R20: 0 | S20: 0 | T20: 0
B21: 439 | C21: DUNWICH | D21: URBAN | E21: 0 | F21: 0 | G21: 0 | H21: 0 | I21: 0 | J21: 5 | K21: 0 | L21: 0 | M21: 0 | N21: 0 | O21: 0 | P21: 1 | Q21: 0 | R21: 0 | S21: 0 | T21: 0
B22: 449 | C22: EAGLE FARM | D22: URBAN | E22: 1 | F22: 0 | G22: 2.786 | H22: 0 | I22: 0 | J22: 6 | K22: 0 | L22: 0 | M22: 0 | N22: 0 | O22: 0 | P22: 0 | Q22: 0 | R22: 0 | S22: 0 | T22: 0
B23: 471 | C23: PINKENBA | D23: URBAN | E23: 1 | F23: 0.498 | G23: 0.178 | H23: 0 | I23: 0 | J23: 7 | K23: 0 | L23: 0 | M23: 0 | N23: 0 | O23: 0 | P23: 0 | Q23: 0 | R23: 0 | S23: 0 | T23: 0
B24: 472 | C24: PINKENBA | D24: URBAN | E24: 1 | F24: 0.51 | G24: 0.167 | H24: 0 | I24: 0 | J24: 8 | K24: 0 | L24: 0 | M24: 0 | N24: 0 | O24: 0 | P24: 0 | Q24: 0 | R24: 0 | S24: 0 | T24: 0
B25: 652 | C25: BOWEN HILLS | D25: URBAN | E25: 1 | F25: 0 | G25: 0.78 | H25: 0 | I25: 0 | J25: 9 | K25: 0 | L25: 0 | M25: 0 | N25: 0 | O25: 0 | P25: 0 | Q25: 0 | R25: 0 | S25: 0 | T25: 0
B26: 658 | C26: HERSTON | D26: URBAN | E26: 1 | F26: 0 | G26: 1.343 | H26: 0 | I26: 0 | J26: 10 | K26: 0 | L26: 0 | M26: 0 | N26: 0 | O26: 0 | P26: 1 | Q26: 0 | R26: 0 | S26: 0 | T26: 0
B27: 768 | C27: SHERWOOD | D27: URBAN | E27: 1 | F27: 0 | G27: 3.12 | H27: 0 | I27: 0 | J27: 11 | K27: 0 | L27: 0 | M27: 0 | N27: 0 | O27: 0 | P27: 0 | Q27: 0 | R27: 0 | S27: 0 | T27: 0
B28: 812 | C28: BOWEN HILLS | D28: URBAN | E28: 1 | F28: 0 | G28: 1.722 | H28: 0 | I28: 0 | J28: 12 | K28: 0 | L28: 0 | M28: 0 | N28: 0 | O28: 0 | P28: 0 | Q28: 0 | R28: 0 | S28: 0 | T28: 0
B29: 902 | C29: CABOOLTURE | D29: URBAN | E29: 1 | F29: 0 | G29: 0 | H29: 0 | I29: 0 | J29: 13 | K29: 0 | L29: 0 | M29: 0 | N29: 0 | O29: 0 | P29: 0 | Q29: 0 | R29: 0 | S29: 0 | T29: 0
B30: 904 | C30: WOONGOOLBA | D30: URBAN | E30: 1 | F30: 34.676 | G30: 0 | H30: 0 | I30: 4.30431 | J30: 14 | K30: 0 | L30: 0 | M30: 0 | N30: 0 | O30: 0 | P30: 0 | Q30: 0 | R30: 0 | S30: 0 | T30: 0
B31: 909 | C31: BEENLEIGH | D31: URBAN | E31: 1 | F31: 0.68 | G31: 0 | H31: 0 | I31: 0 | J31: 15 | K31: 0 | L31: 0 | M31: 0 | N31: 0 | O31: 0 | P31: 0 | Q31: 0 | R31: 0 | S31: 0 | T31: 0
B32: 910 | C32: WYNNUM WEST | D32: URBAN | E32: 1 | F32: 1.094 | G32: 0 | H32: 0 | I32: 0 | J32: 16 | K32: 0 | L32: 0 | M32: 0 | N32: 0 | O32: 0 | P32: 0 | Q32: 0 | R32: 0 | S32: 0 | T32: 0
B33: 3013 | C33: YANDINA | D33: URBAN | E33: 1 | F33: 0 | G33: 0 | H33: 0 | I33: 0.003176 | J33: 17 | K33: 0 | L33: 0 | M33: 0 | N33: 0 | O33: 0 | P33: 0 | Q33: 0 | R33: 0 | S33: 0 | T33: 0
B34: 3331 | C34: PETRIE | D34: URBAN | E34: 1 | F34: 1.89 | G34: 1.592 | H34: 0 | I34: 0 | J34: 18 | K34: 0 | L34: 0 | M34: 0 | N34: 0 | O34: 0 | P34: 0 | Q34: 0 | R34: 0 | S34: 0 | T34: 0
B35: 3348 | C35: ENOGGERA | D35: URBAN | E35: 1 | F35: 0 | G35: 0 | H35: 0 | I35: 0 | J35: 19 | K35: 0 | L35: 0 | M35: 0 | N35: 0 | O35: 0 | P35: 0 | Q35: 0 | R35: 0 | S35: 0 | T35: 0
B36: 3356 | C36: ROTHWELL | D36: URBAN | E36: 1 | F36: 0 | G36: 0.555 | H36: 0 | I36: 0 | J36: 20 | K36: 0 | L36: 0 | M36: 0 | N36: 0 | O36: 0 | P36: 0 | Q36: 0 | R36: 0 | S36: 0 | T36: 0
B37: 3370 | C37: PINKENBA | D37: URBAN | E37: 1 | F37: 4.849 | G37: 0.15 | H37: 0 | I37: 0 | J37: 21 | K37: 0 | L37: 0 | M37: 0 | N37: 0 | O37: 0 | P37: 1 | Q37: 0 | R37: 0 | S37: 0 | T37: 0
B38: 3380 | C38: KEDRON | D38: URBAN | E38: 1 | F38: 0 | G38: 4.758 | H38: 0 | I38: 0 | J38: 22 | K38: 0 | L38: 0 | M38: 0 | N38: 0 | O38: 0 | P38: 2 | Q38: 0 | R38: 0 | S38: 0 | T38: 0
B39: 3387 | C39: CHAPEL HILL | D39: URBAN | E39: 1 | F39: 0 | G39: 1.059 | H39: 0 | I39: 0 | J39: 23 | K39: 0 | L39: 0 | M39: 0 | N39: 0 | O39: 0 | P39: 0 | Q39: 0 | R39: 0 | S39: 0 | T39: 0
B40: 3702 | D40: URBAN | E40: 1 | F40: 17.202 | G40: 0.159 | H40: 0 | I40: 0.011665 | J40: 24 | K40: 0 | L40: 0 | M40: 0 | N40: 0 | O40: 0 | P40: 1 | Q40: 0 | R40: 0 | S40: 0 | T40: 0
B41: 3754 | C41: TUGUN | D41: URBAN | E41: 1 | F41: 0 | G41: 3.988 | H41: 0 | I41: 0 | J41: 25 | K41: 0 | L41: 0 | M41: 0 | N41: 0 | O41: 0 | P41: 0 | Q41: 0 | R41: 0 | S41: 0 | T41: 0
B42: 3941 | C42: AMBERLEY | D42: URBAN | E42: 1 | F42: 0 | G42: 0 | H42: 0 | I42: 0 | J42: 26 | K42: 0 | L42: 0 | M42: 0 | N42: 0 | O42: 0 | P42: 2 | Q42: 0 | R42: 0 | S42: 0 | T42: 0
B43: 1CCETR1 | C43: BRISBANE | D43: CBD | E43: 49 | F43: 0 | G43: 0 | H43: 0 | I43: 0 | J43: 27 | K43: 0 | L43: 0 | M43: 0 | N43: 0 | O43: 0 | P43: 0 | Q43: 0 | R43: 0 | S43: 0 | T43: 0
B44: 1QEET6 | C44: BRISBANE | D44: CBD | E44: 1 | F44: 0 | G44: 0 | H44: 0 | I44: 0 | J44: 28 | K44: 0 | L44: 0 | M44: 0 | N44: 0 | O44: 0 | P44: 0 | Q44: 0 | R44: 0 | S44: 0 | T44: 0
B45: 339/2 | C45: COLES CREEK | D45: URBAN | E45: 0 | F45: 0 | G45: 0 | H45: 0 | I45: 0.018529 | J45: 29 | K45: 0 | L45: 0 | M45: 0 | N45: 0 | O45: 0 | P45: 0 | Q45: 0 | R45: 0 | S45: 0 | T45: 0
B46: 446E | C46: WOOLLOONGABBA | D46: URBAN | E46: 0 | F46: 0 | G46: 0 | H46: 0 | I46: 0.026199 | J46: 30 | K46: 0 | L46: 0 | M46: 0 | N46: 0 | O46: 0 | P46: 0 | Q46: 0 | R46: 0 | S46: 0 | T46: 0
B47: 646B | C47: MURARRIE | D47: URBAN | E47: 1 | F47: 0 | G47: 1.136 | H47: 0 | I47: 0 | J47: 31 | K47: 0 | L47: 0 | M47: 0 | N47: 0 | O47: 0 | P47: 1 | Q47: 0 | R47: 0 | S47: 0 | T47: 0
B48: ABY2A | C48: AMBERLEY, MUTDAPILLY, PURGA, WILLOWBANK | D48: RURAL | E48: 478 | F48: 41.379 | G48: 1.959 | H48: 93 | I48: 0.02556 | J48: 32 | K48: 7 | L48: 85.3 | M48: 85.30476 | N48: 1.023 | O48: 1.023 | P48: 13 | Q48: 144.6753 | R48: 144.6753 | S48: 0.501 | T48: 0.501
B49: ABY5A | C49: AMBERLEY, JEEBROPILLY, WALLOON | D49: RURAL | E49: 20 | F49: 12.896 | G49: 0.204 | H49: 118 | I49: 0 | J49: 33 | K49: 0 | L49: 0 | M49: 0 | N49: 0 | O49: 0 | P49: 3 | Q49: 79.03684 | R49: 79.03684 | S49: 0.153 | T49: 0.153
B50: ACEGSN7 | C50: FORTITUDE VALLEY | D50: URBAN | E50: 2 | F50: 0 | G50: 1.386 | H50: 0 | I50: 0 | J50: 34 | K50: 0 | L50: 0 | M50: 0 | N50: 0 | O50: 0 | P50: 0 | Q50: 0 | R50: 0 | S50: 0 | T50: 0
B51: ACEMLS6 | C51: FORTITUDE VALLEY | D51: URBAN | E51: 15 | F51: 0 | G51: 0.805 | H51: 80 | I51: 0 | J51: 35 | K51: 0 | L51: 0 | M51: 0 | N51: 0 | O51: 0 | P51: 0 | Q51: 0 | R51: 0 | S51: 0 | T51: 0
B52: ACET1 | C52: FORTITUDE VALLEY | D52: URBAN | E52: 3 | F52: 0 | G52: 0 | H52: 0 | I52: 0 | J52: 36 | K52: 0 | L52: 0 | M52: 0 | N52: 0 | O52: 0 | P52: 0 | Q52: 0 | R52: 0 | S52: 0 | T52: 0
B53: ACF1 | C53: PINKENBA | D53: URBAN | E53: 1 | F53: 0 | G53: 0 | H53: 0 | I53: 0 | J53: 37 | K53: 0 | L53: 0 | M53: 0 | N53: 0 | O53: 0 | P53: 0 | Q53: 0 | R53: 0 | S53: 0 | T53: 0
B54: ACFQBI5 | C54: PINKENBA | D54: URBAN | E54: 13 | F54: 2.194 | G54: 1.612 | H54: 0 | I54: 0 | J54: 38 | K54: 1 | L54: 0 | M54: 0 | N54: 0 | O54: 0 | P54: 4 | Q54: 102.8857 | R54: 102.8857 | S54: 0.671 | T54: 0.671
B55: ACHECW4 | C55: SPRING HILL | D55: CBD | E55: 1 | F55: 0 | G55: 0.641 | H55: 0 | I55: 0 | J55: 39 | K55: 0 | L55: 0 | M55: 0 | N55: 0 | O55: 0 | P55: 0 | Q55: 0 | R55: 0 | S55: 0 | T55: 0
B56: ACHT1 | C56: SPRING HILL | D56: CBD | E56: 11 | F56: 0 | G56: 0 | H56: 0 | I56: 0 | J56: 40 | K56: 0 | L56: 0 | M56: 0 | N56: 0 | O56: 0 | P56: 0 | Q56: 0 | R56: 0 | S56: 0 | T56: 0
B57: ACICTC1 | C57: SOUTH BRISBANE | D57: URBAN | E57: 3 | F57: 0 | G57: 1.941 | H57: 0 | I57: 0 | J57: 41 | K57: 0 | L57: 0 | M57: 0 | N57: 0 | O57: 0 | P57: 0 | Q57: 0 | R57: 0 | S57: 0 | T57: 0
B58: ACR1 | C58: ALBANY CREEK, EATONS HILL | D58: URBAN | E58: 417 | F58: 2.874 | G58: 0.279 | H58: 57 | I58: 0 | J58: 42 | K58: 2 | L58: 11.26 | M58: 11.26066 | N58: 0.128 | O58: 0.128 | P58: 4 | Q58: 95.95793 | R58: 95.95793 | S58: 0.45 | T58: 0.45
B59: ACR12A | C59: ALBANY CREEK, BRIDGEMAN DOWNS | D59: URBAN | E59: 1605 | F59: 2.483 | G59: 8.191 | H59: 275 | I59: 0.11852 | J59: 43 | K59: 9 | L59: 4.97 | M59: 4.897265 | N59: 0.03 | O59: 0.028 | P59: 3 | Q59: 6.542424 | R59: 6.542424 | S59: 0.029 | T59: 0.029
B60: ACR13A | C60: ALBANY CREEK | D60: URBAN | E60: 1051 | F60: 0 | G60: 7.152 | H60: 171 | I60: 0.006563 | J60: 44 | K60: 4 | L60: 0.55 | M60: 0.5468 | N60: 0.007 | O60: 0.007 | P60: 0 | Q60: 0 | R60: 0 | S60: 0 | T60: 0
B61: ACR2 | C61: ALBANY CREEK | D61: URBAN | E61: 1296 | F61: 0.062 | G61: 6.567 | H61: 0 | I61: 0 | J61: 45 | K61: 1 | L61: 0 | M61: 0 | N61: 0 | O61: 0 | P61: 4 | Q61: 2.314043 | R61: 2.314043 | S61: 0.029 | T61: 0.029
B62: ACR3 | C62: ALBANY CREEK, BRIDGEMAN DOWNS, MCDOWALL | D62: URBAN | E62: 1143 | F62: 3.784 | G62: 6.764 | H62: 0 | I62: 0.04203 | J62: 46 | K62: 6 | L62: 1.54 | M62: 1.542782 | N62: 0.032 | O62: 0.032 | P62: 2 | Q62: 1.548556 | R62: 1.548556 | S62: 0.012 | T62: 0.012
B63: ACR4 | C63: ALBANY CREEK | D63: URBAN | E63: 767 | F63: 4.694 | G63: 0.63 | H63: 289 | I63: 14.77612 | J63: 47 | K63: 5 | L63: 533.75 | M63: 0.171098 | N63: 1.003 | O63: 0.001 | P63: 3 | Q63: 11.493 | R63: 11.493 | S63: 0.047 | T63: 0.047
B64: ACR5 | C64: ALBANY CREEK, BUNYA, DRAPER, EATONS HILL | D64: RURAL | E64: 1523 | F64: 27.009 | G64: 5.108 | H64: 259 | I64: 3.502111 | J64: 48 | K64: 19 | L64: 138.57 | M64: 4.068986 | N64: 0.272 | O64: 0.053 | P64: 16 | Q64: 36.58803 | R64: 36.58803 | S64: 0.195 | T64: 0.195
B65: ACR6 | C65: ALBANY CREEK, BRIDGEMAN DOWNS | D65: URBAN | E65: 960 | F65: 7.18 | G65: 1.25 | H65: 0 | I65: 7.76764 | J65: 49 | K65: 12 | L65: 617.54 | M65: 84.02557 | N65: 2.224 | O65: 1.223 | P65: 4 | Q65: 27.61706 | R65: 27.61706 | S65: 0.088 | T65: 0.088
B66: ACSTR1H | C66: BRISBANE | D66: CBD | E66: 1 | F66: 0 | G66: 0 | H66: 0 | I66: 0 | J66: 50 | K66: 0 | L66: 0 | M66: 0 | N66: 0 | O66: 0 | P66: 0 | Q66: 0 | R66: 0 | S66: 0 | T66: 0
B67: ADAMAA1 | C67: BRISBANE | D67: URBAN | E67: 21 | F67: 0 | G67: 0.306 | H67: 0 | I67: 0 | J67: 51 | K67: 0 | L67: 0 | M67: 0 | N67: 0 | O67: 0 | P67: 0 | Q67: 0 | R67: 0 | S67: 0 | T67: 0
B68: ADAMLS23 | C68: BRISBANE, FORTITUDE VALLEY, SPRING HILL | D68: URBAN | E68: 21 | F68: 0 | G68: 2.005 | H68: 206 | I68: 0.133245 | J68: 52 | K68: 1 | L68: 5.48 | M68: 0 | N68: 0.048 | O68: 0 | P68: 0 | Q68: 0 | R68: 0 | S68: 0 | T68: 0
B69: ADATR1H | C69: BRISBANE | D69: URBAN | E69: 468 | F69: 0 | G69: 0 | H69: 0 | I69: 0 | J69: 53 | K69: 0 | L69: 0 | M69: 0 | N69: 0 | O69: 0 | P69: 0 | Q69: 0 | R69: 0 | S69: 0 | T69: 0
B70: ADSTR1H | C70: BRISBANE | D70: CBD | E70: 1 | F70: 0 | G70: 0 | H70: 0 | I70: 0 | J70: 54 | K70: 0 | L70: 0 | M70: 0 | N70: 0 | O70: 0 | P70: 0 | Q70: 0 | R70: 0 | S70: 0 | T70: 0
B71: AECT1 | C71: BRISBANE | D71: CBD | E71: 1 | F71: 0 | G71: 0 | H71: 0 | I71: 0 | J71: 55 | K71: 0 | L71: 0 | M71: 0 | N71: 0 | O71: 0 | P71: 0 | Q71: 0 | R71: 0 | S71: 0 | T71: 0
B72: AETT1 | C72: BRISBANE | D72: CBD | E72: 1 | F72: 0 | G72: 0 | H72: 0 | I72: 0 | J72: 56 | K72: 0 | L72: 0 | M72: 0 | N72: 0 | O72: 0 | P72: 0 | Q72: 0 | R72: 0 | S72: 0 | T72: 0
B73: AFD10A | C73: ROCKLEA | D73: URBAN | E73: 119 | F73: 2.359 | G73: 1.826 | H73: 120 | I73: 0 | J73: 57 | K73: 0 | L73: 0 | M73: 0 | N73: 0 | O73: 0 | P73: 5 | Q73: 62.719 | R73: 62.719 | S73: 0.173 | T73: 0.173
B74: AFD11A | C74: ROCKLEA | D74: URBAN | E74: 51 | F74: 1.64 | G74: 1.005 | H74: 69 | I74: 0 | J74: 58 | K74: 2 | L74: 225.05 | M74: 225.052 | N74: 1 | O74: 1 | P74: 2 | Q74: 37.83673 | R74: 37.83673 | S74: 0.143 | T74: 0.143
B75: AFD12B | C75: ROCKLEA | D75: URBAN | E75: 2 | F75: 0.799 | G75: 0.709 | H75: 318 | I75: 0 | J75: 59 | K75: 0 | L75: 0 | M75: 0 | N75: 0 | O75: 0 | P75: 0 | Q75: 0 | R75: 0 | S75: 0 | T75: 0
B76: AFD14A | C76: ROCKLEA | D76: URBAN | E76: 17 | F76: 0.64 | G76: 0.321 | H76: 176 | I76: 0.014841 | J76: 60 | K76: 1 | L76: 0.63 | M76: 0 | N76: 0.063 | O76: 0 | P76: 0 | Q76: 0 | R76: 0 | S76: 0 | T76: 0
B77: AFD18A | C77: ARCHERFIELD, ROCKLEA | D77: URBAN | E77: 121 | F77: 0.682 | G77: 0.728 | H77: 50 | I77: 0 | J77: 61 | K77: 0 | L77: 0 | M77: 0 | N77: 0 | O77: 0 | P77: 0 | Q77: 0 | R77: 0 | S77: 0 | T77: 0
B78: AFD19A | C78: ARCHERFIELD, ROCKLEA | D78: URBAN | E78: 19 | F78: 0.429 | G78: 0.316 | H78: 158 | I78: 0 | J78: 62 | K78: 0 | L78: 0 | M78: 0 | N78: 0 | O78: 0 | P78: 0 | Q78: 0 | R78: 0 | S78: 0 | T78: 0
B79: AFD20A | C79: ROCKLEA | D79: URBAN | E79: 157 | F79: 2.578 | G79: 1.632 | H79: 170 | I79: 0.488026 | J79: 63 | K79: 4 | L79: 20.9 | M79: 20.01976 | N79: 0.173 | O79: 0.167 | P79: 1 | Q79: 4.358974 | R79: 4.358974 | S79: 0.013 | T79: 0.013
B80: AFD22B | C80: ROCKLEA | D80: URBAN | E80: 73 | F80: 1.23 | G80: 1.99 | H80: 104 | I80: 2.667651 | J80: 64 | K80: 3 | L80: 247.1 | M80: 247.1037 | N80: 3 | O80: 3 | P80: 1 | Q80: 6.197183 | R80: 6.197183 | S80: 0.014 | T80: 0.014
B81: AFD23A | C81: ROCKLEA | D81: URBAN | E81: 15 | F81: 0.374 | G81: 0.502 | H81: 42 | I81: 0 | J81: 65 | K81: 0 | L81: 0 | M81: 0 | N81: 0 | O81: 0 | P81: 0 | Q81: 0 | R81: 0 | S81: 0 | T81: 0
B82: AFDCIG15 | C82: ROCKLEA | D82: URBAN | E82: 1 | F82: 0 | G82: 0.683 | H82: 31 | I82: 0 | J82: 66 | K82: 0 | L82: 0 | M82: 0 | N82: 0 | O82: 0 | P82: 0 | Q82: 0 | R82: 0 | S82: 0 | T82: 0
B83: AFETR1H | C83: BRISBANE | D83: CBD | E83: 1 | F83: 0 | G83: 0 | H83: 0 | I83: 0 | J83: 67 | K83: 0 | L83: 0 | M83: 0 | N83: 0 | O83: 0 | P83: 0 | Q83: 0 | R83: 0 | S83: 0 | T83: 0
B84: AFT2 | C84: BRISBANE | D84: CBD | E84: 2 | F84: 0 | G84: 0.091 | H84: 0 | I84: 0 | J84: 68 | K84: 0 | L84: 0 | M84: 0 | N84: 0 | O84: 0 | P84: 0 | Q84: 0 | R84: 0 | S84: 0 | T84: 0
B85: AFTT1 | C85: BRISBANE | D85: CBD | E85: 1 | F85: 0 | G85: 0 | H85: 0 | I85: 0 | J85: 69 | K85: 0 | L85: 0 | M85: 0 | N85: 0 | O85: 0 | P85: 0 | Q85: 0 | R85: 0 | S85: 0 | T85: 0
B86: AGE10 | C86: ASHGROVE, BARDON, PADDINGTON | D86: URBAN | E86: 2310 | F86: 8.397 | G86: 1.566 | H86: 306 | I86: 0.500607 | J86: 70 | K86: 21 | L86: 15.41 | M86: 15.31946 | N86: 0.061 | O86: 0.059 | P86: 63 | Q86: 181.8464 | R86: 181.8464 | S86: 0.618 | T86: 0.618
B87: AGE16B | C87: ASHGROVE | D87: URBAN | E87: 763 | F87: 3.756 | G87: 0.74 | H87: 145 | I87: 1.2604 | J87: 71 | K87: 8 | L87: 84.55 | M87: 41.77157 | N87: 0.468 | O87: 0.424 | P87: 5 | Q87: 48.05643 | R87: 48.05643 | S87: 0.076 | T87: 0.076
B88: AGE2 | C88: ASHGROVE, BARDON | D88: URBAN | E88: 532 | F88: 3.15 | G88: 1.891 | H88: 78 | I88: 0 | J88: 72 | K88: 0 | L88: 0 | M88: 0 | N88: 0 | O88: 0 | P88: 22 | Q88: 68.08995 | R88: 68.08995 | S88: 0.272 | T88: 0.272
B89: AGE3 | C89: PADDINGTON | D89: URBAN | E89: 388 | F89: 1.28 | G89: 1.842 | H89: 65 | I89: 0.155092 | J89: 73 | K89: 3 | L89: 19.11 | M89: 18.99778 | N89: 0.188 | O89: 0.186 | P89: 1 | Q89: 13.91091 | R89: 13.91091 | S89: 0.04 | T89: 0.04
B90: AGE5B | C90: ASHGROVE | D90: URBAN | E90: 857 | F90: 1.231 | G90: 0.761 | H90: 105 | I90: 0.000413 | J90: 74 | K90: 2 | L90: 0.03 | M90: 0 | N90: 0.001 | O90: 0 | P90: 1 | Q90: 2.155689 | R90: 2.155689 | S90: 0.007 | T90: 0.007
B91: AGE6A | C91: ASHGROVE, RED HILL | D91: URBAN | E91: 733 | F91: 2.161 | G91: 1.36 | H91: 109 | I91: 0.000592 | J91: 75 | K91: 3 | L91: 3.68 | M91: 3.677102 | N91: 0.057 | O91: 0.057 | P91: 5 | Q91: 13.98238 | R91: 13.98238 | S91: 0.062 | T91: 0.062
B92: AGE7A | C92: ASHGROVE | D92: RURAL | E92: 11 | F92: 0 | G92: 2.072 | H92: 10 | I92: 0 | J92: 76 | K92: 0 | L92: 0 | M92: 0 | N92: 0 | O92: 0 | P92: 0 | Q92: 0 | R92: 0 | S92: 0 | T92: 0
B93: AGE7B | C93: ASHGROVE | D93: URBAN | E93: 974 | F93: 5.39 | G93: 0.513 | H93: 162 | I93: 0.041752 | J93: 77 | K93: 6 | L93: 2.18 | M93: 0.329934 | N93: 0.004 | O93: 0.002 | P93: 4 | Q93: 8.684494 | R93: 8.684494 | S93: 0.036 | T93: 0.036
B94: AGE8 | C94: ASHGROVE, THE GAP | D94: URBAN | E94: 932 | F94: 5.943 | G94: 3.12 | H94: 146 | I94: 0.026333 | J94: 78 | K94: 13 | L94: 101.14 | M94: 1.542299 | N94: 1.083 | O94: 0.08 | P94: 12 | Q94: 117.9124 | R94: 117.9124 | S94: 0.372 | T94: 0.372
B95: AGE9 | C95: ASHGROVE, BARDON, PADDINGTON, RED HILL | D95: URBAN | E95: 1485 | F95: 5.312 | G95: 0.578 | H95: 206 | I95: 0.300574 | J95: 79 | K95: 13 | L95: 28.14 | M95: 27.89391 | N95: 0.258 | O95: 0.255 | P95: 12 | Q95: 85.28378 | R95: 85.28378 | S95: 0.175 | T95: 0.175
B96: AGT23A | C96: ALGESTER, WILLAWONG | D96: URBAN | E96: 1605 | F96: 1.022 | G96: 9.705 | H96: 186 | I96: 3.915098 | J96: 80 | K96: 11 | L96: 281.89 | M96: 281.7771 | N96: 3.024 | O96: 3.022 | P96: 8 | Q96: 31.00977 | R96: 31.00977 | S96: 0.149 | T96: 0.149
B97: AGT25A | C97: ACACIA RIDGE | D97: RURAL | E97: 1133 | F97: 6.699 | G97: 2.343 | H97: 136 | I97: 0.103864 | J97: 81 | K97: 16 | L97: 5.15 | M97: 4.393095 | N97: 0.069 | O97: 0.056 | P97: 16 | Q97: 53.78938 | R97: 53.78938 | S97: 0.275 | T97: 0.275
B98: AGT27A | C98: ACACIA RIDGE | D98: URBAN | E98: 41 | F98: 0 | G98: 3.197 | H98: 78 | I98: 0.772671 | J98: 82 | K98: 3 | L98: 94.28 | M98: 91.125 | N98: 1.025 | O98: 1 | P98: 1 | Q98: 135.1905 | R98: 135.1905 | S98: 0.405 | T98: 0.405
B99: AGT29A | C99: ACACIA RIDGE | D99: URBAN | E99: 98 | F99: 0.136 | G99: 2.826 | H99: 97 | I99: 0.024636 | J99: 83 | K99: 1 | L99: 1.82 | M99: 0 | N99: 0.01 | O99: 0 | P99: 0 | Q99: 0 | R99: 0 | S99: 0 | T99: 0
B100: AGT31A | C100: LARAPINTA, PALLARA, WILLAWONG | D100: RURAL | E100: 651 | F100: 16.169 | G100: 11.306 | H100: 256 | I100: 8.750946 | J100: 84 | K100: 11 | L100: 250.85 | M100: 29.85093 | N100: 0.886 | O100: 0.518 | P100: 10 | Q100: 54.87339 | R100: 54.87339 | S100: 0.309 | T100: 0.309
B101: AGT33A | C101: ACACIA RIDGE | D101: URBAN | E101: 26 | F101: 0.238 | G101: 1.831 | H101: 77 | I101: 0 | J101: 85 | K101: 0 | L101: 0 | M101: 0 | N101: 0 | O101: 0 | P101: 0 | Q101: 0 | R101: 0 | S101: 0 | T101: 0
B102: AGT35A | C102: ACACIA RIDGE | D102: URBAN | E102: 93 | F102: 0.12 | G102: 4.222 | H102: 161 | I102: 0 | J102: 86 | K102: 1 | L102: 0 | M102: 0 | N102: 0 | O102: 0 | P102: 1 | Q102: 14.05376 | R102: 14.05376 | S102: 0.011 | T102: 0.011
B103: AGT37A | C103: ACACIA RIDGE, ALGESTER, SUNNYBANK HILLS | D103: URBAN | E103: 1559 | F103: 4.743 | G103: 6.223 | H103: 208 | I103: 5.852331 | J103: 87 | K103: 18 | L103: 233.09 | M103: 232.9471 | N103: 3.079 | O103: 3.077 | P103: 3 | Q103: 20.61354 | R103: 20.61354 | S103: 0.071 | T103: 0.071
B104: AHD10A | C104: MOOLOOLABA | D104: URBAN | E104: 1584 | F104: 4.615 | G104: 2.382 | H104: 134 | I104: 2.271942 | J104: 88 | K104: 8 | L104: 123 | M104: 122.8943 | N104: 1.003 | O104: 1.003 | P104: 4 | Q104: 10.08477 | R104: 10.08477 | S104: 0.039 | T104: 0.039
B105: AHD10B | C105: ALEXANDRA HEADLAND, MOOLOOLABA | D105: URBAN | E105: 932 | F105: 1.672 | G105: 3.347 | H105: 176 | I105: 0.01237 | J105: 89 | K105: 5 | L105: 0.51 | M105: 0.329016 | N105: 0.003 | O105: 0.002 | P105: 3 | Q105: 2.479433 | R105: 2.479433 | S105: 0.01 | T105: 0.01
B106: AHD12A | C106: MAROOCHYDORE | D106: URBAN | E106: 779 | F106: 1.835 | G106: 2.762 | H106: 149 | I106: 0.326607 | J106: 90 | K106: 3 | L106: 15.46 | M106: 15.45906 | N106: 0.076 | O106: 0.076 | P106: 7 | Q106: 95.11741 | R106: 95.11741 | S106: 0.263 | T106: 0.263
B107: AHD15A | C107: MAROOCHYDORE | D107: URBAN | E107: 750 | F107: 1.583 | G107: 6.193 | H107: 193 | I107: 0.016193 | J107: 91 | K107: 5 | L107: 0.5 | M107: 0.037446 | N107: 0.003 | O107: 0.001 | P107: 3 | Q107: 24.69991 | R107: 24.69991 | S107: 0.087 | T107: 0.087
B108: AHD15B | C108: MAROOCHYDORE | D108: URBAN | E108: 828 | F108: 2.43 | G108: 2.062 | H108: 177 | I108: 0.083332 | J108: 92 | K108: 13 | L108: 3.45 | M108: 2.972934 | N108: 0.017 | O108: 0.013 | P108: 16 | Q108: 116.9058 | R108: 116.9058 | S108: 0.428 | T108: 0.428
B109: AHD16 | C109: BUDERIM | D109: URBAN | E109: 1438 | F109: 6.4 | G109: 1.749 | H109: 141 | I109: 0.676767 | J109: 93 | K109: 16 | L109: 42.51 | M109: 19.83558 | N109: 1.228 | O109: 1.15 | P109: 2 | Q109: 3.469198 | R109: 3.469198 | S109: 0.015 | T109: 0.015
B110: AHD17 | C110: MAROOCHYDORE | D110: URBAN | E110: 215 | F110: 0.32 | G110: 4.63 | H110: 173 | I110: 0.004554 | J110: 94 | K110: 2 | L110: 0.21 | M110: 0 | N110: 0.005 | O110: 0 | P110: 1 | Q110: 3.794118 | R110: 3.794118 | S110: 0.01 | T110: 0.01
B111: AHD18A | C111: BUDERIM | D111: URBAN | E111: 783 | F111: 3.92 | G111: 2.666 | H111: 201 | I111: 7.953961 | J111: 95 | K111: 11 | L111: 327.76 | M111: 22.35876 | N111: 1.281 | O111: 0.148 | P111: 3 | Q111: 23.35482 | R111: 23.35482 | S111: 0.067 | T111: 0.067
B112: AHD18B | C112: BLI BLI, MAROOCHYDORE, MUDJIMBA, PACIFIC PARADISE, TWIN WATERS | D112: RURAL | E112: 2757 | F112: 5.861 | G112: 17.145 | H112: 286 | I112: 10.24734 | J112: 96 | K112: 16 | L112: 235.54 | M112: 1.73401 | N112: 1.053 | O112: 0.051 | P112: 11 | Q112: 31.47303 | R112: 31.47303 | S112: 0.203 | T112: 0.203
B113: AHD19 | C113: ALEXANDRA HEADLAND, MAROOCHYDORE | D113: URBAN | E113: 1109 | F113: 3.345 | G113: 1.613 | H113: 0 | I113: 0.173508 | J113: 97 | K113: 10 | L113: 16.31 | M113: 16.20936 | N113: 0.801 | O113: 0.8 | P113: 16 | Q113: 204.2124 | R113: 204.2124 | S113: 0.571 | T113: 0.571
B114: AHD20 | C114: ALEXANDRA HEADLAND, MAROOCHYDORE | D114: URBAN | E114: 1010 | F114: 2.3 | G114: 2.398 | H114: 180 | I114: 11.74196 | J114: 98 | K114: 6 | L114: 476.37 | M114: 110.0582 | N114: 3.715 | O114: 2.715 | P114: 6 | Q114: 11.50253 | R114: 11.50253 | S114: 0.078 | T114: 0.078
B115: AHD21 | C115: BUDERIM | D115: URBAN | E115: 1245 | F115: 2.696 | G115: 4.183 | H115: 130 | I115: 2.024232 | J115: 99 | K115: 12 | L115: 122.59 | M115: 122.5432 | N115: 1.574 | O115: 1.573 | P115: 0 | Q115: 0 | R115: 0 | S115: 0 | T115: 0
B116: AHD22A | C116: MAROOCHYDORE | D116: URBAN | E116: 1174 | F116: 3.941 | G116: 4.928 | H116: 196 | I116: 0.451935 | J116: 100 | K116: 8 | L116: 15.72 | M116: 15.58044 | N116: 1.15 | O116: 1.149 | P116: 6 | Q116: 9.718546 | R116: 9.718546 | S116: 0.149 | T116: 0.149
B117: AHD25A | C117: BUDERIM, MAROOCHYDORE | D117: URBAN | E117: 1682 | F117: 3.789 | G117: 4.806 | H117: 170 | I117: 0.252786 | J117: 101 | K117: 10 | L117: 10.62 | M117: 10.52914 | N117: 1.058 | O117: 1.058 | P117: 2 | Q117: 1.86747 | R117: 1.86747 | S117: 0.022 | T117: 0.022
B118: AHD4A | C118: BUDERIM, MINYAMA, MOOLOOLABA, MOUNTAIN CREEK | D118: URBAN | E118: 1587 | F118: 8.123 | G118: 4.67 | H118: 262 | I118: 0.00895 | J118: 102 | K118: 6 | L118: 0.26 | M118: 0 | N118: 0.001 | O118: 0 | P118: 5 | Q118: 23.71071 | R118: 23.71071 | S118: 0.121 | T118: 0.121
B119: AHD4B | C119: BUDERIM, MAROOCHYDORE | D119: URBAN | E119: 557 | F119: 3.066 | G119: 4.142 | H119: 139 | I119: 0.003102 | J119: 103 | K119: 2 | L119: 0.2 | M119: 0.2 | N119: 0.002 | O119: 0.002 | P119: 2 | Q119: 2.770871 | R119: 2.770871 | S119: 0.007 | T119: 0.007
B120: AHD5 | C120: ALEXANDRA HEADLAND, MOOLOOLABA | D120: URBAN | E120: 1967 | F120: 4.725 | G120: 1.651 | H120: 209 | I120: 0.559854 | J120: 104 | K120: 22 | L120: 18.17 | M120: 17.85707 | N120: 0.224 | O120: 0.221 | P120: 7 | Q120: 13.55746 | R120: 13.55746 | S120: 0.049 | T120: 0.049
B121: AHD6 | C121: ALEXANDRA HEADLAND, MAROOCHYDORE | D121: URBAN | E121: 644 | F121: 1.797 | G121: 1.96 | H121: 154 | I121: 0.001834 | J121: 105 | K121: 3 | L121: 0.12 | M121: 0 | N121: 0.002 | O121: 0 | P121: 1 | Q121: 0.412773 | R121: 0.412773 | S121: 0.002 | T121: 0.002
B122: AHD7 | C122: ALEXANDRA HEADLAND, MAROOCHYDORE | D122: URBAN | E122: 951 | F122: 3.103 | G122: 0.901 | H122: 115 | I122: 1.363465 | J122: 106 | K122: 10 | L122: 84.33 | M122: 84.01641 | N122: 1.098 | O122: 1.097 | P122: 27 | Q122: 127.8284 | R122: 127.8284 | S122: 0.549 | T122: 0.549
B123: AHD8 | C123: BUDERIM | D123: URBAN | E123: 1182 | F123: 5.864 | G123: 2.028 | H123: 0 | I123: 7.588472 | J123: 107 | K123: 8 | L123: 285.19 | M123: 280.4672 | N123: 1.022 | O123: 1.001 | P123: 0 | Q123: 0 | R123: 0 | S123: 0 | T123: 0
B124: AHD9 | C124: MOOLOOLABA | D124: URBAN | E124: 245 | F124: 5.224 | G124: 2.409 | H124: 141 | I124: 0 | J124: 108 | K124: 0 | L124: 0 | M124: 0 | N124: 0 | O124: 0 | P124: 0 | Q124: 0 | R124: 0 | S124: 0 | T124: 0
B125: AHL11A | C125: FERNY GROVE, FERNY HILLS | D125: RURAL | E125: 1280 | F125: 4.516 | G125: 7.912 | H125: 181 | I125: 2.39944 | J125: 109 | K125: 7 | L125: 128.73 | M125: 11.57428 | N125: 1.103 | O125: 0.101 | P125: 8 | Q125: 18.85367 | R125: 18.85367 | S125: 0.079 | T125: 0.079
B126: AHL12A | C126: ARANA HILLS, FERNY HILLS | D126: URBAN | E126: 1738 | F126: 7.97 | G126: 2.6 | H126: 226 | I126: 2.566716 | J126: 110 | K126: 13 | L126: 117.65 | M126: 0.309554 | N126: 1.005 | O126: 0.002 | P126: 10 | Q126: 28.97312 | R126: 28.97312 | S126: 0.113 | T126: 0.113
B127: AHL14A | C127: ARANA HILLS, FERNY HILLS | D127: URBAN | E127: 1418 | F127: 5.422 | G127: 0.404 | H127: 232 | I127: 3.345175 | J127: 111 | K127: 4 | L127: 119.29 | M127: 1.886968 | N127: 1.028 | O127: 0.028 | P127: 3 | Q127: 12.73042 | R127: 12.73042 | S127: 0.052 | T127: 0.052
B128: AHL15B | C128: EVERTON HILLS, EVERTON PARK, MCDOWALL | D128: URBAN | E128: 1859 | F128: 7.177 | G128: 5.173 | H128: 225 | I128: 10.3104 | J128: 112 | K128: 14 | L128: 416.29 | M128: 3.997317 | N128: 2.206 | O128: 0.206 | P128: 4 | Q128: 10.58286 | R128: 10.58286 | S128: 0.032 | T128: 0.032
B129: AHL4A | C129: KEPERRA | D129: URBAN | E129: 208 | F129: 1.228 | G129: 0.64 | H129: 52 | I129: 0.928703 | J129: 113 | K129: 4 | L129: 131.5 | M129: 15.15 | N129: 1.291 | O129: 0.286 | P129: 1 | Q129: 13.59606 | R129: 13.59606 | S129: 0.059 | T129: 0.059
B130: AHL5A | C130: ARANA HILLS, BUNYA, EVERTON HILLS, FERNY HILLS | D130: RURAL | E130: 1205 | F130: 13.877 | G130: 3.696 | H130: 200 | I130: 2.036769 | J130: 114 | K130: 5 | L130: 116.37 | M130: 0.015137 | N130: 1.002 | O130: 0.002 | P130: 13 | Q130: 24.9472 | R130: 24.9472 | S130: 0.161 | T130: 0.161
B131: AHL6A | C131: ARANA HILLS, FERNY GROVE, FERNY HILLS | D131: URBAN | E131: 2032 | F131: 7.98 | G131: 3.292 | H131: 275 | I131: 3.7575 | J131: 115 | K131: 15 | L131: 143.68 | M131: 13.47188 | N131: 1.145 | O131: 0.144 | P131: 15 | Q131: 20.10001 | R131: 20.10001 | S131: 0.079 | T131: 0.079
B132: AHL8A | C132: BRIDGEMAN DOWNS, BUNYA, EVERTON HILLS, MCDOWALL | D132: URBAN | E132: 1697 | F132: 7.992 | G132: 6.953 | H132: 300 | I132: 1.731735 | J132: 116 | K132: 15 | L132: 62.73 | M132: 5.118796 | N132: 1.063 | O132: 0.061 | P132: 15 | Q132: 37.26946 | R132: 37.26946 | S132: 0.151 | T132: 0.151
B133: AHL9A | C133: EVERTON HILLS, EVERTON PARK | D133: URBAN | E133: 1794 | F133: 6.244 | G133: 1.31 | H133: 206 | I133: 2.527266 | J133: 117 | K133: 7 | L133: 117.09 | M133: 0.064048 | N133: 1.002 | O133: 0.001 | P133: 1 | Q133: 0.122047 | R133: 0.122047 | S133: 0.001 | T133: 0.001
B134: AHS26 | C134: BRISBANE | D134: CBD | E134: 1 | F134: 0 | G134: 0.048 | H134: 0 | I134: 0 | J134: 118 | K134: 0 | L134: 0 | M134: 0 | N134: 0 | O134: 0 | P134: 0 | Q134: 0 | R134: 0 | S134: 0 | T134: 0
B135: AHST1 | C135: BRISBANE | D135: CBD | E135: 1 | F135: 0 | G135: 0 | H135: 0 | I135: 0 | J135: 119 | K135: 0 | L135: 0 | M135: 0 | N135: 0 | O135: 0 | P135: 0 | Q135: 0 | R135: 0 | S135: 0 | T135: 0
B136: AHTTR2H | C136: BRISBANE | D136: CBD | E136: 1 | F136: 0 | G136: 0 | H136: 0 | I136: 0 | J136: 120 | K136: 0 | L136: 0 | M136: 0 | N136: 0 | O136: 0 | P136: 1 | Q136: 31 | R136: 31 | S136: 1 | T136: 1
B137: AJV1 | C137: FORTITUDE VALLEY | D137: URBAN | E137: 171 | F137: 0.142 | G137: 0.885 | H137: 0 | I137: 1.122693 | J137: 121 | K137: 1 | L137: 44 | M137: 44 | N137: 1 | O137: 1 | P137: 0 | Q137: 0 | R137: 0 | S137: 0 | T137: 0
B138: AJVTR1 | C138: FORTITUDE VALLEY | D138: URBAN | E138: 1 | F138: 0 | G138: 0 | H138: 0 | I138: 0 | J138: 122 | K138: 0 | L138: 0 | M138: 0 | N138: 0 | O138: 0 | P138: 0 | Q138: 0 | R138: 0 | S138: 0 | T138: 0
B139: ALY3A | C139: ANNERLEY, FAIRFIELD | D139: URBAN | E139: 1426 | F139: 4.161 | G139: 0.32 | H139: 0 | I139: 1.211835 | J139: 123 | K139: 9 | L139: 67.23 | M139: 66.70927 | N139: 1.022 | O139: 1.021 | P139: 7 | Q139: 9.028465 | R139: 9.028465 | S139: 0.042 | T139: 0.042
B140: ALY5 | C140: ANNERLEY, GREENSLOPES, WOOLLOONGABBA | D140: URBAN | E140: 2312 | F140: 4.608 | G140: 1.314 | H140: 195 | I140: 0.255898 | J140: 124 | K140: 11 | L140: 8.06 | M140: 7.961143 | N140: 0.076 | O140: 0.075 | P140: 7 | Q140: 17.64888 | R140: 17.64888 | S140: 0.055 | T140: 0.055
B141: ALY6 | C141: ANNERLEY, FAIRFIELD, YERONGA | D141: URBAN | E141: 1369 | F141: 5.824 | G141: 1.396 | H141: 224 | I141: 8.353643 | J141: 125 | K141: 20 | L141: 342.24 | M141: 342.1516 | N141: 4.127 | O141: 4.124 | P141: 8 | Q141: 6.573177 | R141: 6.573177 | S141: 0.024 | T141: 0.024
B142: ALY8 | C142: ANNERLEY | D142: URBAN | E142: 2115 | F142: 4.383 | G142: 0.361 | H142: 160 | I142: 0.12684 | J142: 126 | K142: 9 | L142: 5.83 | M142: 5.740371 | N142: 0.068 | O142: 0.067 | P142: 7 | Q142: 29.24112 | R142: 29.24112 | S142: 0.1 | T142: 0.1
B143: ALY9 | C143: YERONGA | D143: URBAN | E143: 615 | F143: 3.368 | G143: 2.611 | H143: 110 | I143: 0.077436 | J143: 127 | K143: 9 | L143: 6.1 | M143: 5.771212 | N143: 0.042 | O143: 0.039 | P143: 27 | Q143: 111.824 | R143: 111.824 | S143: 0.533 | T143: 0.533
B144: ALYMRK10 | C144: ANNERLEY | D144: RURAL | E144: 111 | F144: 0 | G144: 4.387 | H144: 14 | I144: 0.453796 | J144: 128 | K144: 4 | L144: 205.84 | M144: 205.8408 | N144: 1.378 | O144: 1.378 | P144: 1 | Q144: 0.792793 | R144: 0.792793 | S144: 0.072 | T144: 0.072
B145: ALYMRK4 | C145: ANNERLEY | D145: RURAL | E145: 89 | F145: 0 | G145: 2.227 | H145: 20 | I145: 0 | J145: 129 | K145: 0 | L145: 0 | M145: 0 | N145: 0 | O145: 0 | P145: 0 | Q145: 0 | R145: 0 | S145: 0 | T145: 0
B146: AMIAST27 | C146: BRISBANE | D146: CBD | E146: 1 | F146: 0 | G146: 0.249 | H146: 65 | I146: 0 | J146: 130 | K146: 0 | L146: 0 | M146: 0 | N146: 0 | O146: 0 | P146: 0 | Q146: 0 | R146: 0 | S146: 0 | T146: 0
B147: AMIT1 | C147: BRISBANE | D147: CBD | E147: 1 | F147: 0 | G147: 0 | H147: 0 | I147: 0 | J147: 131 | K147: 0 | L147: 0 | M147: 0 | N147: 0 | O147: 0 | P147: 0 | Q147: 0 | R147: 0 | S147: 0 | T147: 0
B148: AMMCST26 | C148: BRISBANE | D148: CBD | E148: 3 | F148: 0 | G148: 0.536 | H148: 163 | I148: 0 | J148: 132 | K148: 0 | L148: 0 | M148: 0 | N148: 0 | O148: 0 | P148: 0 | Q148: 0 | R148: 0 | S148: 0 | T148: 0
B149: AMMTR2H | C149: BRISBANE | D149: CBD | E149: 1 | F149: 0 | G149: 0 | H149: 0 | I149: 0 | J149: 133 | K149: 0 | L149: 0 | M149: 0 | N149: 0 | O149: 0 | P149: 0 | Q149: 0 | R149: 0 | S149: 0 | T149: 0
B150: AMPCST4 | C150: BRISBANE | D150: CBD | E150: 7 | F150: 0 | G150: 0.274 | H150: 91 | I150: 0 | J150: 134 | K150: 0 | L150: 0 | M150: 0 | N150: 0 | O150: 0 | P150: 0 | Q150: 0 | R150: 0 | S150: 0 | T150: 0
B151: AMPT1 | C151: BRISBANE | D151: CBD | E151: 1 | F151: 0 | G151: 0 | H151: 0 | I151: 0 | J151: 135 | K151: 0 | L151: 0 | M151: 0 | N151: 0 | O151: 0 | P151: 0 | Q151: 0 | R151: 0 | S151: 0 | T151: 0
B152: AMR1 | C152: AMAMOOR, BOLLIER, COLES CREEK, COORAN, DAGUN, GOOMONG POCKET, GYMPIE, IMBIL, KANDANGA, KANDANGA CREEK, KYBONG, LAGOON POCKET, MELAWONDI, TRAVESTON, TUCHEKOI, UPPER KANDANGA | D152: RURAL | E152: 737 | F152: 160.895 | G152: 1.589 | H152: 142 | I152: 9.628086 | J152: 136 | K152: 38 | L152: 412.2 | M152: 77.04998 | N152: 2.512 | O152: 1.505 | P152: 27 | Q152: 170.0876 | R152: 170.0876 | S152: 0.635 | T152: 0.635
B153: AMR2 | C153: AMAMOOR, CALICO CREEK, DAGUN, GILLDORA, KANDANGA, KANDANGA CREEK, KYBONG, LAGOON POCKET, LANGSHAW, MOOLOO | D153: RURAL | E153: 710 | F153: 110.017 | G153: 0.014 | H153: 74 | I153: 3.054654 | J153: 137 | K153: 36 | L153: 339.28 | M153: 110.3049 | N153: 3.161 | O153: 2.155 | P153: 46 | Q153: 587.133 | R153: 587.133 | S153: 1.568 | T153: 1.568
B154: AMR3 | D154: RURAL | E154: 0 | F154: 0 | G154: 0 | H154: 0 | I154: 0.065688 | J154: 138 | K154: 11 | L154: 9.1 | M154: 9.099777 | N154: 0.078 | O154: 0.078 | P154: 3 | Q154: 23.62084 | R154: 23.62084 | S154: 0.086 | T154: 0.086
B155: AMSPMH6 | C155: BRISBANE | D155: CBD | E155: 1 | F155: 0 | G155: 0.829 | H155: 0 | I155: 0 | J155: 139 | K155: 0 | L155: 0 | M155: 0 | N155: 0 | O155: 0 | P155: 0 | Q155: 0 | R155: 0 | S155: 0 | T155: 0
B156: AMSTR1H | C156: BRISBANE | D156: CBD | E156: 1 | F156: 0 | G156: 0 | H156: 0 | I156: 0 | J156: 140 | K156: 0 | L156: 0 | M156: 0 | N156: 0 | O156: 0 | P156: 0 | Q156: 0 | R156: 0 | S156: 0 | T156: 0
B157: AMVGSN1 | C157: FORTITUDE VALLEY | D157: URBAN | E157: 7 | F157: 0 | G157: 0.599 | H157: 0 | I157: 0 | J157: 141 | K157: 0 | L157: 0 | M157: 0 | N157: 0 | O157: 0 | P157: 0 | Q157: 0 | R157: 0 | S157: 0 | T157: 0
B158: AMVMLS92 | C158: FORTITUDE VALLEY | D158: URBAN | E158: 1 | F158: 0 | G158: 0.466 | H158: 104 | I158: 0 | J158: 142 | K158: 0 | L158: 0 | M158: 0 | N158: 0 | O158: 0 | P158: 0 | Q158: 0 | R158: 0 | S158: 0 | T158: 0
B159: AMVTR1 | C159: FORTITUDE VALLEY | D159: URBAN | E159: 25 | F159: 0 | G159: 0 | H159: 0 | I159: 0 | J159: 143 | K159: 0 | L159: 0 | M159: 0 | N159: 0 | O159: 0 | P159: 0 | Q159: 0 | R159: 0 | S159: 0 | T159: 0
B160: ANASPD20 | C160: SURFERS PARADISE | D160: URBAN | E160: 2 | F160: 0 | G160: 0.505 | H160: 114 | I160: 0 | J160: 144 | K160: 0 | L160: 0 | M160: 0 | N160: 0 | O160: 0 | P160: 1 | Q160: 358.9167 | R160: 358.9167 | S160: 1 | T160: 1
B161: ANAT1 | C161: SURFERS PARADISE | D161: URBAN | E161: 2 | F161: 0 | G161: 0 | H161: 0 | I161: 0 | J161: 145 | K161: 0 | L161: 0 | M161: 0 | N161: 0 | O161: 0 | P161: 0 | Q161: 0 | R161: 0 | S161: 0 | T161: 0
B162: ANSMST7 | C162: BRISBANE | D162: CBD | E162: 1 | F162: 0 | G162: 0.726 | H162: 69 | I162: 0 | J162: 146 | K162: 0 | L162: 0 | M162: 0 | N162: 0 | O162: 0 | P162: 0 | Q162: 0 | R162: 0 | S162: 0 | T162: 0
B163: ANST1 | C163: BRISBANE | D163: CBD | E163: 1 | F163: 0 | G163: 0 | H163: 0 | I163: 0 | J163: 147 | K163: 0 | L163: 0 | M163: 0 | N163: 0 | O163: 0 | P163: 0 | Q163: 0 | R163: 0 | S163: 0 | T163: 0
B164: APFGIS5 | C164: MURARRIE | D164: URBAN | E164: 1 | F164: 0 | G164: 0.663 | H164: 175 | I164: 0 | J164: 148 | K164: 0 | L164: 0 | M164: 0 | N164: 0 | O164: 0 | P164: 0 | Q164: 0 | R164: 0 | S164: 0 | T164: 0
B165: APHTR1H | C165: SPRING HILL | D165: CBD | E165: 1 | F165: 0 | G165: 0 | H165: 0 | I165: 0 | J165: 149 | K165: 0 | L165: 0 | M165: 0 | N165: 0 | O165: 0 | P165: 0 | Q165: 0 | R165: 0 | S165: 0 | T165: 0
B166: APHTR2H | C166: SPRING HILL | D166: CBD | E166: 1 | F166: 0 | G166: 0.254 | H166: 0 | I166: 0 | J166: 150 | K166: 0 | L166: 0 | M166: 0 | N166: 0 | O166: 0 | P166: 0 | Q166: 0 | R166: 0 | S166: 0 | T166: 0
B167: APLLYT10A | C167: LYTTON | D167: URBAN | E167: 1 | F167: 0 | G167: 0.262 | H167: 0 | I167: 0 | J167: 151 | K167: 0 | L167: 0 | M167: 0 | N167: 0 | O167: 0 | P167: 0 | Q167: 0 | R167: 0 | S167: 0 | T167: 0
B168: APOMLS92 | C168: FORTITUDE VALLEY | D168: URBAN | E168: 7 | F168: 0 | G168: 1.056 | H168: 84 | I168: 0.026606 | J168: 152 | K168: 1 | L168: 22.48 | M168: 0 | N168: 0.125 | O168: 0 | P168: 0 | Q168: 0 | R168: 0 | S168: 0 | T168: 0
B169: APOTR1H | C169: FORTITUDE VALLEY | D169: URBAN | E169: 23 | F169: 0 | G169: 0 | H169: 0 | I169: 0 | J169: 153 | K169: 0 | L169: 0 | M169: 0 | N169: 0 | O169: 0 | P169: 0 | Q169: 0 | R169: 0 | S169: 0 | T169: 0
B170: AQECST25 | C170: BRISBANE | D170: CBD | E170: 7 | F170: 0 | G170: 0.442 | H170: 137 | I170: 0 | J170: 154 | K170: 0 | L170: 0 | M170: 0 | N170: 0 | O170: 0 | P170: 0 | Q170: 0 | R170: 0 | S170: 0 | T170: 0
B171: AQETR1H | C171: BRISBANE | D171: CBD | E171: 46 | F171: 0 | G171: 0 | H171: 0 | I171: 0 | J171: 155 | K171: 0 | L171: 0 | M171: 0 | N171: 0 | O171: 0 | P171: 0 | Q171: 0 | R171: 0 | S171: 0 | T171: 0
B172: AQM28A | C172: BRISBANE | D172: CBD | E172: 12 | F172: 0 | G172: 0.101 | H172: 0 | I172: 0 | J172: 156 | K172: 0 | L172: 0 | M172: 0 | N172: 0 | O172: 0 | P172: 0 | Q172: 0 | R172: 0 | S172: 0 | T172: 0
B173: AQMCBA1 | C173: BRISBANE | D173: CBD | E173: 1 | F173: 0 | G173: 0.32 | H173: 0 | I173: 0 | J173: 157 | K173: 0 | L173: 0 | M173: 0 | N173: 0 | O173: 0 | P173: 0 | Q173: 0 | R173: 0 | S173: 0 | T173: 0
B174: AQMMST20 | C174: BRISBANE | D174: CBD | E174: 1 | F174: 0 | G174: 1.214 | H174: 76 | I174: 0 | J174: 158 | K174: 0 | L174: 0 | M174: 0 | N174: 0 | O174: 0 | P174: 0 | Q174: 0 | R174: 0 | S174: 0 | T174: 0
B175: AQMT1 | C175: BRISBANE | D175: CBD | E175: 17 | F175: 0 | G175: 0 | H175: 0 | I175: 0 | J175: 159 | K175: 0 | L175: 0 | M175: 0 | N175: 0 | O175: 0 | P175: 0 | Q175: 0 | R175: 0 | S175: 0 | T175: 0
B176: AQMT2 | C176: BRISBANE | D176: CBD | E176: 2 | F176: 0 | G176: 0 | H176: 0 | I176: 0 | J176: 160 | K176: 0 | L176: 0 | M176: 0 | N176: 0 | O176: 0 | P176: 0 | Q176: 0 | R176: 0 | S176: 0 | T176: 0
B177: ARG10 | C177: ACACIA RIDGE, SUNNYBANK HILLS | D177: URBAN | E177: 134 | F177: 2.154 | G177: 1.165 | H177: 221 | I177: 2.520674 | J177: 161 | K177: 6 | L177: 535.48 | M177: 172.178 | N177: 3.022 | O177: 2.007 | P177: 2 | Q177: 77.37037 | R177: 77.37037 | S177: 0.244 | T177: 0.244
B178: ARG3 | C178: ACACIA RIDGE, COOPERS PLAINS, SUNNYBANK | D178: URBAN | E178: 35 | F178: 1.909 | G178: 0.914 | H178: 239 | I178: 0 | J178: 162 | K178: 1 | L178: 0 | M178: 0 | N178: 0 | O178: 0 | P178: 3 | Q178: 29.88476 | R178: 29.88476 | S178: 0.107 | T178: 0.107
B179: ARG4 | C179: ACACIA RIDGE | D179: URBAN | E179: 107 | F179: 2.07 | G179: 0.514 | H179: 231 | I179: 0.040313 | J179: 163 | K179: 2 | L179: 1.07 | M179: 0.987346 | N179: 0.019 | O179: 0.009 | P179: 4 | Q179: 41.0996 | R179: 41.0996 | S179: 0.195 | T179: 0.195
B180: ARG5A | C180: ACACIA RIDGE, SUNNYBANK, SUNNYBANK HILLS | D180: URBAN | E180: 1645 | F180: 8.344 | G180: 1.364 | H180: 167 | I180: 1.222483 | J180: 164 | K180: 13 | L180: 117.78 | M180: 0.801433 | N180: 0.342 | O180: 0.004 | P180: 9 | Q180: 34.81975 | R180: 34.81975 | S180: 0.074 | T180: 0.074
B181: ARG6 | C181: ACACIA RIDGE, SUNNYBANK HILLS | D181: RURAL | E181: 130 | F181: 0.753 | G181: 2.438 | H181: 42 | I181: 0.00029 | J181: 165 | K181: 1 | L181: 0.31 | M181: 0.312661 | N181: 0.008 | O181: 0.008 | P181: 0 | Q181: 0 | R181: 0 | S181: 0 | T181: 0
B182: ARG7 | C182: ACACIA RIDGE | D182: URBAN | E182: 5 | F182: 0 | G182: 2.184 | H182: 138 | I182: 0 | J182: 166 | K182: 0 | L182: 0 | M182: 0 | N182: 0 | O182: 0 | P182: 0 | Q182: 0 | R182: 0 | S182: 0 | T182: 0
B183: ARG8 | C183: ACACIA RIDGE | D183: URBAN | E183: 11 | F183: 0 | G183: 1.406 | H183: 111 | I183: 0 | J183: 167 | K183: 0 | L183: 0 | M183: 0 | N183: 0 | O183: 0 | P183: 0 | Q183: 0 | R183: 0 | S183: 0 | T183: 0
B184: ARG9A | C184: SUNNYBANK, SUNNYBANK HILLS | D184: URBAN | E184: 1158 | F184: 4.979 | G184: 0.907 | H184: 127 | I184: 0.00591 | J184: 168 | K184: 11 | L184: 0.43 | M184: 0.13198 | N184: 0.005 | O184: 0.002 | P184: 15 | Q184: 70.07439 | R184: 70.07439 | S184: 0.302 | T184: 0.302
B185: ARL11A | C185: ARUNDEL, PARKWOOD | D185: URBAN | E185: 452 | F185: 1.808 | G185: 3.361 | H185: 110 | I185: 0 | J185: 169 | K185: 0 | L185: 0 | M185: 0 | N185: 0 | O185: 0 | P185: 0 | Q185: 0 | R185: 0 | S185: 0 | T185: 0
B186: ARL11B | C186: ARUNDEL, HELENSVALE | D186: RURAL | E186: 665 | F186: 1.699 | G186: 6.043 | H186: 108 | I186: 0.009857 | J186: 170 | K186: 0 | L186: 0 | M186: 0 | N186: 0 | O186: 0 | P186: 0 | Q186: 0 | R186: 0 | S186: 0 | T186: 0
B187: ARL11B | C187: ARUNDEL, HELENSVALE | D187: URBAN | E187: 0 | F187: 0 | G187: 0 | H187: 108 | I187: 0.009857 | J187: 171 | K187: 2 | L187: 0.88 | M187: 0.884976 | N187: 0.026 | O187: 0.026 | P187: 1 | Q187: 0.864947 | R187: 0.864947 | S187: 0.003 | T187: 0.003
B188: ARL12A | C188: ARUNDEL, PARKWOOD | D188: URBAN | E188: 777 | F188: 1.11 | G188: 3.495 | H188: 123 | I188: 0.003657 | J188: 172 | K188: 3 | L188: 0.29 | M188: 0.29245 | N188: 0.004 | O188: 0.004 | P188: 1 | Q188: 16.14672 | R188: 16.14672 | S188: 0.175 | T188: 0.175
B189: ARL12B | C189: ARUNDEL | D189: URBAN | E189: 537 | F189: 0.075 | G189: 4.822 | H189: 105 | I189: 0 | J189: 173 | K189: 0 | L189: 0 | M189: 0 | N189: 0 | O189: 0 | P189: 1 | Q189: 1.331471 | R189: 1.331471 | S189: 0.024 | T189: 0.024
B190: ARL13A | C190: ARUNDEL, LABRADOR | D190: URBAN | E190: 787 | F190: 0.27 | G190: 6.795 | H190: 108 | I190: 0.002091 | J190: 174 | K190: 2 | L190: 0.18 | M190: 0.177545 | N190: 0.001 | O190: 0.001 | P190: 2 | Q190: 2.11075 | R190: 2.11075 | S190: 0.032 | T190: 0.032
B191: ARL15B | C191: ARUNDEL, BIGGERA WATERS, LABRADOR | D191: URBAN | E191: 404 | F191: 3.857 | G191: 2.536 | H191: 164 | I191: 0.006016 | J191: 175 | K191: 2 | L191: 0.64 | M191: 0.640175 | N191: 0.005 | O191: 0.005 | P191: 2 | Q191: 6.805574 | R191: 6.805574 | S191: 0.027 | T191: 0.027
B192: ARL2B | C192: ARUNDEL, COOMBABAH | D192: URBAN | E192: 173 | F192: 2.336 | G192: 3.562 | H192: 224 | I192: 0 | J192: 176 | K192: 2 | L192: 109.17 | M192: 109.1739 | N192: 1.006 | O192: 1.006 | P192: 1 | Q192: 14.07625 | R192: 14.07625 | S192: 0.023 | T192: 0.023
B193: ARL3A | C193: ARUNDEL, PARKWOOD | D193: URBAN | E193: 345 | F193: 1.786 | G193: 1.924 | H193: 65 | I193: 0.910355 | J193: 177 | K193: 6 | L193: 109.78 | M193: 0.169701 | N193: 0.286 | O193: 0.003 | P193: 4 | Q193: 125.04 | R193: 125.04 | S193: 0.488 | T193: 0.488
B194: ARL3B | C194: ARUNDEL | D194: RURAL | E194: 5 | F194: 0.446 | G194: 0.176 | H194: 5 | I194: 0 | J194: 178 | K194: 0 | L194: 0 | M194: 0 | N194: 0 | O194: 0 | P194: 1 | Q194: 6.6 | R194: 6.6 | S194: 0.2 | T194: 0.2
B195: ARL5B | C195: BIGGERA WATERS, COOMBABAH, LABRADOR | D195: URBAN | E195: 701 | F195: 2.392 | G195: 3.985 | H195: 131 | I195: 0.832169 | J195: 179 | K195: 5 | L195: 46.94 | M195: 46.49456 | N195: 1.006 | O195: 1.001 | P195: 5 | Q195: 35.50608 | R195: 31.76676 | S195: 0.141 | T195: 0.111
B196: ARL6B | C196: ARUNDEL, COOMBABAH, LABRADOR | D196: URBAN | E196: 325 | F196: 4.334 | G196: 3.511 | H196: 234 | I196: 0 | J196: 180 | K196: 1 | L196: 0 | M196: 0 | N196: 0 | O196: 0 | P196: 1 | Q196: 23.8115 | R196: 23.8115 | S196: 0.093 | T196: 0.093
B197: ARLSNT3 | D197: RURAL | E197: 0 | F197: 0 | G197: 0 | H197: 0 | I197: 0 | J197: 181 | K197: 0 | L197: 0 | M197: 0 | N197: 0 | O197: 0 | P197: 0 | Q197: 0 | R197: 0 | S197: 0 | T197: 0
B198: ASPTR1H | C198: BRISBANE | D198: CBD | E198: 2 | F198: 0 | G198: 0 | H198: 0 | I198: 0 | J198: 182 | K198: 0 | L198: 0 | M198: 0 | N198: 0 | O198: 0 | P198: 1 | Q198: 38.65 | R198: 38.65 | S198: 1 | T198: 1
B199: ASTCCO14 | C199: BRISBANE | D199: CBD | E199: 1 | F199: 0 | G199: 0.273 | H199: 87 | I199: 0 | J199: 183 | K199: 0 | L199: 0 | M199: 0 | N199: 0 | O199: 0 | P199: 0 | Q199: 0 | R199: 0 | S199: 0 | T199: 0
B200: ASTCMP24 | C200: BRISBANE | D200: CBD | E200: 3 | F200: 0 | G200: 0.813 | H200: 38 | I200: 0 | J200: 184 | K200: 0 | L200: 0 | M200: 0 | N200: 0 | O200: 0 | P200: 0 | Q200: 0 | R200: 0 | S200: 0 | T200: 0
B201: ASTCPY38 | C201: BRISBANE | D201: CBD | E201: 32 | F201: 0 | G201: 0.635 | H201: 72 | I201: 0 | J201: 185 | K201: 0 | L201: 0 | M201: 0 | N201: 0 | O201: 0 | P201: 0 | Q201: 0 | R201: 0 | S201: 0 | T201: 0
B202: ASTCQE37 | C202: BRISBANE | D202: CBD | E202: 96 | F202: 0 | G202: 0.456 | H202: 70 | I202: 0.004051 | J202: 186 | K202: 1 | L202: 1.3 | M202: 1.300174 | N202: 0.01 | O202: 0.01 | P202: 0 | Q202: 0 | R202: 0 | S202: 0 | T202: 0
B203: ASTGAS6 | C203: BRISBANE | D203: CBD | E203: 26 | F203: 0 | G203: 0.476 | H203: 78 | I203: 0 | J203: 187 | K203: 0 | L203: 0 | M203: 0 | N203: 0 | O203: 0 | P203: 0 | Q203: 0 | R203: 0 | S203: 0 | T203: 0
B204: ASTNBH12 | C204: BRISBANE | D204: CBD | E204: 62 | F204: 0 | G204: 0.387 | H204: 87 | I204: 0 | J204: 188 | K204: 0 | L204: 0 | M204: 0 | N204: 0 | O204: 0 | P204: 0 | Q204: 0 | R204: 0 | S204: 0 | T204: 0
... 2119 more rows

Sheet 3.6.9 Network-reliability
B1: =IF(dms_DataQuality="backcast",INDEX(dms_Worksheet_List,MATCH(dms_Model,dms_Model_List))&" BACKCAST",INDEX(dms_Worksheet_List,MATCH(dms_Model,dms_Model_List))) -> ANNUAL REPORTING STATEMENT
B2: =INDEX(dms_TradingNameFull_List,MATCH(dms_TradingName,dms_TradingName_List)) -> Energex
B3: =CONCATENATE("Annual Reporting RIN Response ",IF(SUM(dms_SingleYear_Model)>0,CONCATENATE(CRY),CONCATENATE(FRCP_y1," to ",dms_MultiYear_FinalYear_Result))) -> Annual Reporting RIN Response 2017-18
B4: 3.6 QUALITY OF SERVICES
B7: 3.6.9 - NETWORK FEEDER RELIABILITY - PLANNED OUTAGES
C8: =CRY -> 2017-18
B9: 3.6.9.1 - PLANNED MINUTES OFF SUPPLY (SAIDI)
B10: =INDEX(dms_FeederName_1,MATCH(dms_TradingName,dms_TradingName_List)) -> CBD | C10: 4.7765
B11: =INDEX(dms_FeederName_2,MATCH(dms_TradingName,dms_TradingName_List)) -> Urban | C11: 26.872
B12: =INDEX(dms_FeederName_3,MATCH(dms_TradingName,dms_TradingName_List)) -> Short rural | C12: 76.942
B13: =INDEX(dms_FeederName_4,MATCH(dms_TradingName,dms_TradingName_List)) -> Long rural
B14: =IF((INDEX(dms_FeederName_5,MATCH(dms_TradingName,dms_TradingName_List))=0),"",(INDEX(dms_FeederName_5,MATCH(dms_TradingName,dms_TradingName_List)))) -> 
C16: =CRY -> 2017-18
B17: 3.6.9.2 - PLANNED INTERRUPTIONS TO SUPPLY (SAIFI)
B18: =INDEX(dms_FeederName_1,MATCH(dms_TradingName,dms_TradingName_List)) -> CBD | C18: 0.03464
B19: =INDEX(dms_FeederName_2,MATCH(dms_TradingName,dms_TradingName_List)) -> Urban | C19: 0.10867
B20: =INDEX(dms_FeederName_3,MATCH(dms_TradingName,dms_TradingName_List)) -> Short rural | C20: 0.29038
B21: =INDEX(dms_FeederName_4,MATCH(dms_TradingName,dms_TradingName_List)) -> Long rural
B22: =IF((INDEX(dms_FeederName_5,MATCH(dms_TradingName,dms_TradingName_List))=0),"",(INDEX(dms_FeederName_5,MATCH(dms_TradingName,dms_TradingName_List)))) -> 

Sheet 4.1 Public lighting
B1: =IF(dms_DataQuality="backcast",INDEX(dms_Worksheet_List,MATCH(dms_Model,dms_Model_List))&" BACKCAST",INDEX(dms_Worksheet_List,MATCH(dms_Model,dms_Model_List))) -> ANNUAL REPORTING STATEMENT
B2: =INDEX(dms_TradingNameFull_List,MATCH(dms_TradingName,dms_TradingName_List)) -> Energex
B3: =CONCATENATE("Annual Reporting RIN Response ",IF(SUM(dms_SingleYear_Model)>0,CONCATENATE(CRY),CONCATENATE(FRCP_y1," to ",dms_MultiYear_FinalYear_Result))) -> Annual Reporting RIN Response 2017-18
B4: 4.1 PUBLIC LIGHTING
B6: Tables 4.1.1 - 4.1.3 deliberately omitted.
B8: 4.1.4 - PUBLIC LIGHTING METRICS BY TARIFF
C9: Number of Lights | D9: Public Lighting Revenue
B10: Tariff categories | C10: 0's | D10: $0's, nominal
B51: To enter further tariff categories - please insert new rows above this row.
B52: Total | C52: =SUM(C11:C50) -> 0 | D52: =SUM(D11:D50) -> 0

Sheet 6.2 STPIS Reliability
B1: =IF(dms_DataQuality="backcast",INDEX(dms_Worksheet_List,MATCH(dms_Model,dms_Model_List))&" BACKCAST",INDEX(dms_Worksheet_List,MATCH(dms_Model,dms_Model_List))) -> ANNUAL REPORTING STATEMENT
B2: =INDEX(dms_TradingNameFull_List,MATCH(dms_TradingName,dms_TradingName_List)) -> Energex
B3: =CONCATENATE("Annual Reporting RIN Response ",IF(SUM(dms_SingleYear_Model)>0,CONCATENATE(CRY),CONCATENATE(FRCP_y1," to ",dms_MultiYear_FinalYear_Result))) -> Annual Reporting RIN Response 2017-18
B4: 6.2 RELIABILITY AND CUSTOMER SERVICE PERFORMANCE
B6: Did the MAIFI parameter of the STPIS apply during the period? NB:This flag is set from the response on worksheet 3.6.8 Network feeders | D6: =dms_MAIFI_Flag -> No
B9: 6.2.1 - UNPLANNED MINUTES OFF SUPPLY (SAIDI)
D10: =CRY -> 2017-18
B11: Total sustained minutes off supply | C11: =INDEX(dms_FeederName_1,MATCH(dms_TradingName,dms_TradingName_List)) -> CBD | D11: 0.3566184074
C12: =INDEX(dms_FeederName_2,MATCH(dms_TradingName,dms_TradingName_List)) -> Urban | D12: 104.349349
C13: =INDEX(dms_FeederName_3,MATCH(dms_TradingName,dms_TradingName_List)) -> Short rural | D13: 303.4552462
C14: =INDEX(dms_FeederName_4,MATCH(dms_TradingName,dms_TradingName_List)) -> Long rural
C15: =IF((INDEX(dms_FeederName_5,MATCH(dms_TradingName,dms_TradingName_List))=0),"",(INDEX(dms_FeederName_5,MATCH(dms_TradingName,dms_TradingName_List)))) -> 
C16: Whole Network | D16: 161.372
B17: Total of excluded events* *see 3.3 of STPIS | C17: =INDEX(dms_FeederName_1,MATCH(dms_TradingName,dms_TradingName_List)) -> CBD | D17: 0
C18: =INDEX(dms_FeederName_2,MATCH(dms_TradingName,dms_TradingName_List)) -> Urban | D18: 56.203
C19: =INDEX(dms_FeederName_3,MATCH(dms_TradingName,dms_TradingName_List)) -> Short rural | D19: 187.397
C20: =INDEX(dms_FeederName_4,MATCH(dms_TradingName,dms_TradingName_List)) -> Long rural
C21: =IF((INDEX(dms_FeederName_5,MATCH(dms_TradingName,dms_TradingName_List))=0),"",(INDEX(dms_FeederName_5,MATCH(dms_TradingName,dms_TradingName_List)))) -> 
C22: Whole Network | D22: 93.809
B23: Total sustained minutes off supply after removing excluded events | C23: =INDEX(dms_FeederName_1,MATCH(dms_TradingName,dms_TradingName_List)) -> CBD | D23: 0.3566
C24: =INDEX(dms_FeederName_2,MATCH(dms_TradingName,dms_TradingName_List)) -> Urban | D24: 48.1459
C25: =INDEX(dms_FeederName_3,MATCH(dms_TradingName,dms_TradingName_List)) -> Short rural | D25: 116.058
C26: =INDEX(dms_FeederName_4,MATCH(dms_TradingName,dms_TradingName_List)) -> Long rural
C27: =IF((INDEX(dms_FeederName_5,MATCH(dms_TradingName,dms_TradingName_List))=0),"",(INDEX(dms_FeederName_5,MATCH(dms_TradingName,dms_TradingName_List)))) -> 
C28: Whole Network | D28: 67.563
B31: 6.2.2 - UNPLANNED INTERRUPTIONS TO SUPPLY (SAIFI)
D32: =CRY -> 2017-18
B33: Total sustained interruptions | C33: =INDEX(dms_FeederName_1,MATCH(dms_TradingName,dms_TradingName_List)) -> CBD | D33: 0.00181
C34: =INDEX(dms_FeederName_2,MATCH(dms_TradingName,dms_TradingName_List)) -> Urban | D34: 0.7591
C35: =INDEX(dms_FeederName_3,MATCH(dms_TradingName,dms_TradingName_List)) -> Short rural | D35: 1.5608
C36: =INDEX(dms_FeederName_4,MATCH(dms_TradingName,dms_TradingName_List)) -> Long rural
C37: =IF((INDEX(dms_FeederName_5,MATCH(dms_TradingName,dms_TradingName_List))=0),"",(INDEX(dms_FeederName_5,MATCH(dms_TradingName,dms_TradingName_List)))) -> 
C38: Whole Network | D38: 0.9878
B39: Total of excluded events* *see 3.3 of STPIS | C39: =INDEX(dms_FeederName_1,MATCH(dms_TradingName,dms_TradingName_List)) -> CBD | D39: 0
C40: =INDEX(dms_FeederName_2,MATCH(dms_TradingName,dms_TradingName_List)) -> Urban | D40: 0.1849
C41: =INDEX(dms_FeederName_3,MATCH(dms_TradingName,dms_TradingName_List)) -> Short rural | D41: 0.3737
C42: =INDEX(dms_FeederName_4,MATCH(dms_TradingName,dms_TradingName_List)) -> Long rural
C43: =IF((INDEX(dms_FeederName_5,MATCH(dms_TradingName,dms_TradingName_List))=0),"",(INDEX(dms_FeederName_5,MATCH(dms_TradingName,dms_TradingName_List)))) -> 
C44: Whole Network | D44: 0.2387
B45: Total sustained interruptions after removing excluded events | C45: =INDEX(dms_FeederName_1,MATCH(dms_TradingName,dms_TradingName_List)) -> CBD | D45: 0.001809
C46: =INDEX(dms_FeederName_2,MATCH(dms_TradingName,dms_TradingName_List)) -> Urban | D46: 0.5742
C47: =INDEX(dms_FeederName_3,MATCH(dms_TradingName,dms_TradingName_List)) -> Short rural | D47: 1.1871
C48: =INDEX(dms_FeederName_4,MATCH(dms_TradingName,dms_TradingName_List)) -> Long rural
C49: =IF((INDEX(dms_FeederName_5,MATCH(dms_TradingName,dms_TradingName_List))=0),"",(INDEX(dms_FeederName_5,MATCH(dms_TradingName,dms_TradingName_List)))) -> 
C50: Whole Network | D50: 0.749
B53: 6.2.3 - UNPLANNED MOMENTARY INTERRUPTIONS TO SUPPLY (MAIFI)
D54: =CRY -> 2017-18
B55: Total momentary interruptions | C55: =INDEX(dms_FeederName_1,MATCH(dms_TradingName,dms_TradingName_List)) -> CBD
C56: =INDEX(dms_FeederName_2,MATCH(dms_TradingName,dms_TradingName_List)) -> Urban
C57: =INDEX(dms_FeederName_3,MATCH(dms_TradingName,dms_TradingName_List)) -> Short rural
C58: =INDEX(dms_FeederName_4,MATCH(dms_TradingName,dms_TradingName_List)) -> Long rural
C59: =IF((INDEX(dms_FeederName_5,MATCH(dms_TradingName,dms_TradingName_List))=0),"",(INDEX(dms_FeederName_5,MATCH(dms_TradingName,dms_TradingName_List)))) -> 
C60: Whole Network
B61: Total of excluded events* *see 3.3 of STPIS | C61: =INDEX(dms_FeederName_1,MATCH(dms_TradingName,dms_TradingName_List)) -> CBD
C62: =INDEX(dms_FeederName_2,MATCH(dms_TradingName,dms_TradingName_List)) -> Urban
C63: =INDEX(dms_FeederName_3,MATCH(dms_TradingName,dms_TradingName_List)) -> Short rural
C64: =INDEX(dms_FeederName_4,MATCH(dms_TradingName,dms_TradingName_List)) -> Long rural
C65: =IF((INDEX(dms_FeederName_5,MATCH(dms_TradingName,dms_TradingName_List))=0),"",(INDEX(dms_FeederName_5,MATCH(dms_TradingName,dms_TradingName_List)))) -> 
C66: Whole Network
B67: Total momentary interruptions after removing excluded events | C67: =INDEX(dms_FeederName_1,MATCH(dms_TradingName,dms_TradingName_List)) -> CBD
C68: =INDEX(dms_FeederName_2,MATCH(dms_TradingName,dms_TradingName_List)) -> Urban
C69: =INDEX(dms_FeederName_3,MATCH(dms_TradingName,dms_TradingName_List)) -> Short rural
C70: =INDEX(dms_FeederName_4,MATCH(dms_TradingName,dms_TradingName_List)) -> Long rural
C71: =IF((INDEX(dms_FeederName_5,MATCH(dms_TradingName,dms_TradingName_List))=0),"",(INDEX(dms_FeederName_5,MATCH(dms_TradingName,dms_TradingName_List)))) -> 
C72: Whole Network
B75: 6.2.4 - DISTRIBUTION CUSTOMER NUMBERS
D76: =CRY -> 2017-18
B77: Customer numbers at the start of the period | C77: =INDEX(dms_FeederName_1,MATCH(dms_TradingName,dms_TradingName_List)) -> CBD | D77: 3905
C78: =INDEX(dms_FeederName_2,MATCH(dms_TradingName,dms_TradingName_List)) -> Urban | D78: 1016528
C79: =INDEX(dms_FeederName_3,MATCH(dms_TradingName,dms_TradingName_List)) -> Short rural | D79: 415839
C80: =INDEX(dms_FeederName_4,MATCH(dms_TradingName,dms_TradingName_List)) -> Long rural
C81: =IF((INDEX(dms_FeederName_5,MATCH(dms_TradingName,dms_TradingName_List))=0),"",(INDEX(dms_FeederName_5,MATCH(dms_TradingName,dms_TradingName_List)))) -> 
C82: Whole Network | D82: 1436272
B83: Customer numbers at the end of the period | C83: =INDEX(dms_FeederName_1,MATCH(dms_TradingName,dms_TradingName_List)) -> CBD | D83: 3831
C84: =INDEX(dms_FeederName_2,MATCH(dms_TradingName,dms_TradingName_List)) -> Urban | D84: 1043953
C85: =INDEX(dms_FeederName_3,MATCH(dms_TradingName,dms_TradingName_List)) -> Short rural | D85: 419871
C86: =INDEX(dms_FeederName_4,MATCH(dms_TradingName,dms_TradingName_List)) -> Long rural
C87: =IF((INDEX(dms_FeederName_5,MATCH(dms_TradingName,dms_TradingName_List))=0),"",(INDEX(dms_FeederName_5,MATCH(dms_TradingName,dms_TradingName_List)))) -> 
C88: Whole Network | D88: 1467655
B89: Average customer numbers | C89: =INDEX(dms_FeederName_1,MATCH(dms_TradingName,dms_TradingName_List)) -> CBD | D89: =IFERROR(ROUND(AVERAGE(D77,D83),0),"") -> 3868
C90: =INDEX(dms_FeederName_2,MATCH(dms_TradingName,dms_TradingName_List)) -> Urban | D90: =IFERROR(ROUND(AVERAGE(D78,D84),0),"") -> 1030241
C91: =INDEX(dms_FeederName_3,MATCH(dms_TradingName,dms_TradingName_List)) -> Short rural | D91: =IFERROR(ROUND(AVERAGE(D79,D85),0),"") -> 417855
C92: =INDEX(dms_FeederName_4,MATCH(dms_TradingName,dms_TradingName_List)) -> Long rural | D92: =IFERROR(ROUND(AVERAGE(D80,D86),0),"") -> 
C93: =IF((INDEX(dms_FeederName_5,MATCH(dms_TradingName,dms_TradingName_List))=0),"",(INDEX(dms_FeederName_5,MATCH(dms_TradingName,dms_TradingName_List)))) -> 
C94: Whole Network | D94: =IFERROR(ROUND(AVERAGE(D82,D88),0),"") -> 1451964

Sheet 6.6 STPIS Customer Service
B1: =IF(dms_DataQuality="backcast",INDEX(dms_Worksheet_List,MATCH(dms_Model,dms_Model_List))&" BACKCAST",INDEX(dms_Worksheet_List,MATCH(dms_Model,dms_Model_List))) -> ANNUAL REPORTING STATEMENT
B2: =INDEX(dms_TradingNameFull_List,MATCH(dms_TradingName,dms_TradingName_List)) -> Energex
B3: =CONCATENATE("Annual Reporting RIN Response ",IF(SUM(dms_SingleYear_Model)>0,CONCATENATE(CRY),CONCATENATE(FRCP_y1," to ",dms_MultiYear_FinalYear_Result))) -> Annual Reporting RIN Response 2017-18
B4: 6.6 STPIS CUSTOMER SERVICE
B7: 6.6.1 - TELEPHONE ANSWERING
C8: Number of calls after removing excluded events | D8: Total number of calls
C9: =CRY -> 2017-18 | D9: =CRY -> 2017-18
B10: Number of calls received | C10: 84275 | D10: 92919
B11: Number of calls answered within 30 seconds | C11: 74242
B12: Percentage of calls answered within 30 seconds | C12: =IFERROR(C11/C10,"") -> 0.8809492732

Sheet 6.7 STPIS Daily Performance
B1: =IF(dms_DataQuality="backcast",INDEX(dms_Worksheet_List,MATCH(dms_Model,dms_Model_List))&" BACKCAST",INDEX(dms_Worksheet_List,MATCH(dms_Model,dms_Model_List))) -> ANNUAL REPORTING STATEMENT | I1: 1-Jul-2016
B2: =INDEX(dms_TradingNameFull_List,MATCH(dms_TradingName,dms_TradingName_List)) -> Energex
B3: =CONCATENATE("Annual Reporting RIN Response ",IF(SUM(dms_SingleYear_Model)>0,CONCATENATE(CRY),CONCATENATE(FRCP_y1," to ",dms_MultiYear_FinalYear_Result))) -> Annual Reporting RIN Response 2017-18
B4: 6.7 STPIS DAILY PERFORMANCE
B7: Did the MAIFI parameter of the STPIS apply during the period? This flag is set from the response on worksheet 3.6.8 Network feeders | G7: =dms_MAIFI_Flag -> No
B9: The excluded events to be removed from the data refer only to events listed in clause 3.3(a) of the STPIS, with respect to reliability data, and in clause 5.4 of the STPIS with respect to customer service parameters. *Customer service information must be reported as per the definitions in the STPIS, that is excluding: • calls to payment lines and automated interactive services • calls abandoned by the customer within 30 seconds of the call being queued for response by a human operator (where the time in which a telephone call is abandoned is not measured, then an estimate of the number of calls abandoned within 30 seconds will be determined by taking 20 per cent of all calls abadoned).
B11: 6.7.1 - DAILY PERFORMANCE DATA - UNPLANNED
B12: Date | C12: Customer service* | E12: MAIFI
C13: Number of calls received (after removing excluded events) | D13: Number of calls answered in 30 seconds (after removing excluded events) | E13: =INDEX(dms_FeederName_1,MATCH(dms_TradingName,dms_TradingName_List)) -> CBD | G13: =INDEX(dms_FeederName_2,MATCH(dms_TradingName,dms_TradingName_List)) -> Urban | I13: =INDEX(dms_FeederName_3,MATCH(dms_TradingName,dms_TradingName_List)) -> Short rural | K13: =INDEX(dms_FeederName_4,MATCH(dms_TradingName,dms_TradingName_List)) -> Long rural | M13: =IF((INDEX(dms_FeederName_5,MATCH(dms_TradingName,dms_TradingName_List))=0),"Network",(INDEX(dms_FeederName_5,MATCH(dms_TradingName,dms_TradingName_List)))) ->  | O13: Network
E14: All events | F14: After removing excluded events | G14: All events | H14: After removing excluded events | I14: All events | J14: After removing excluded events | K14: All events | L14: After removing excluded events | M14: All events | N14: After removing excluded events | O14: All events | P14: After removing excluded events
B15: =dms_060701_StartDateTxt -> 1-Jul-2017 | C15: 148 | D15: 126
B16: =B15+1 -> 2017-07-02 | C16: 123 | D16: 115
B17: 2017-07-03 | C17: 211 | D17: 204
B18: 2017-07-04 | C18: 236 | D18: 224
B19: 2017-07-05 | C19: 170 | D19: 157
B20: 2017-07-06 | C20: 271 | D20: 233
B21: 2017-07-07 | C21: 161 | D21: 147
B22: 2017-07-08 | C22: 151 | D22: 137
B23: 2017-07-09 | C23: 104 | D23: 98
B24: 2017-07-10 | C24: 176 | D24: 160
B25: 2017-07-11 | C25: 179 | D25: 162
B26: 2017-07-12 | C26: 223 | D26: 183
B27: 2017-07-13 | C27: 178 | D27: 164
B28: 2017-07-14 | C28: 235 | D28: 214
B29: 2017-07-15 | C29: 149 | D29: 134
B30: 2017-07-16 | C30: 123 | D30: 119
B31: 2017-07-17 | C31: 192 | D31: 181
B32: 2017-07-18 | C32: 190 | D32: 164
B33: 2017-07-19 | C33: 460 | D33: 350
B34: 2017-07-20 | C34: 264 | D34: 235
B35: 2017-07-21 | C35: 211 | D35: 187
B36: 2017-07-22 | C36: 192 | D36: 168
B37: 2017-07-23 | C37: 121 | D37: 114
B38: 2017-07-24 | C38: 256 | D38: 222
B39: 2017-07-25 | C39: 264 | D39: 258
B40: 2017-07-26 | C40: 229 | D40: 223
B41: 2017-07-27 | C41: 215 | D41: 214
B42: 2017-07-28 | C42: 196 | D42: 192
B43: 2017-07-29 | C43: 139 | D43: 124
B44: 2017-07-30 | C44: 104 | D44: 98
B45: 2017-07-31 | C45: 274 | D45: 241
B46: 2017-08-01 | C46: 150 | D46: 144
B47: 2017-08-02 | C47: 280 | D47: 266
B48: 2017-08-03 | C48: 212 | D48: 192
B49: 2017-08-04 | C49: 190 | D49: 179
B50: 2017-08-05 | C50: 123 | D50: 101
B51: 2017-08-06 | C51: 107 | D51: 103
B52: 2017-08-07 | C52: 226 | D52: 222
B53: 2017-08-08 | C53: 188 | D53: 181
B54: 2017-08-09 | C54: 178 | D54: 163
B55: 2017-08-10 | C55: 241 | D55: 200
B56: 2017-08-11 | C56: 179 | D56: 161
B57: 2017-08-12 | C57: 108 | D57: 98
B58: 2017-08-13 | C58: 114 | D58: 101
B59: 2017-08-14 | C59: 227 | D59: 200
B60: 2017-08-15 | C60: 192 | D60: 179
B61: 2017-08-16 | C61: 218 | D61: 206
B62: 2017-08-17 | C62: 235 | D62: 195
B63: 2017-08-18 | C63: 201 | D63: 171
B64: 2017-08-19 | C64: 210 | D64: 177
B65: 2017-08-20 | C65: 137 | D65: 131
B66: 2017-08-21 | C66: 181 | D66: 178
B67: 2017-08-22 | C67: 229 | D67: 215
B68: 2017-08-23 | C68: 189 | D68: 180
B69: 2017-08-24 | C69: 249 | D69: 217
B70: 2017-08-25 | C70: 185 | D70: 173
B71: 2017-08-26 | C71: 105 | D71: 97
B72: 2017-08-27 | C72: 86 | D72: 86
B73: 2017-08-28 | C73: 211 | D73: 203
B74: 2017-08-29 | C74: 187 | D74: 166
B75: 2017-08-30 | C75: 216 | D75: 202
B76: 2017-08-31 | C76: 209 | D76: 191
B77: 2017-09-01 | C77: 169 | D77: 156
B78: 2017-09-02 | C78: 80 | D78: 75
B79: 2017-09-03 | C79: 113 | D79: 112
B80: =B79+1 -> 2017-09-04 | C80: 191 | D80: 186
B81: 2017-09-05 | C81: 214 | D81: 197
B82: 2017-09-06 | C82: 177 | D82: 158
B83: 2017-09-07 | C83: 207 | D83: 194
B84: 2017-09-08 | C84: 178 | D84: 158
B85: 2017-09-09 | C85: 119 | D85: 107
B86: 2017-09-10 | C86: 87 | D86: 86
B87: 2017-09-11 | C87: 200 | D87: 173
B88: 2017-09-12 | C88: 204 | D88: 183
B89: 2017-09-13 | C89: 180 | D89: 154
B90: 2017-09-14 | C90: 480 | D90: 397
B91: 2017-09-15 | C91: 145 | D91: 138
B92: 2017-09-16 | C92: 158 | D92: 143
B93: 2017-09-17 | C93: 84 | D93: 83
B94: 2017-09-18 | C94: 215 | D94: 205
B95: 2017-09-19 | C95: 160 | D95: 155
B96: 2017-09-20 | C96: 201 | D96: 189
B97: 2017-09-21 | C97: 210 | D97: 192
B98: 2017-09-22 | C98: 439 | D98: 365
B99: 2017-09-23 | C99: 304 | D99: 203
B100: 2017-09-24 | C100: 145 | D100: 123
B101: 2017-09-25 | C101: 255 | D101: 237
B102: 2017-09-26 | C102: 234 | D102: 228
B103: 2017-09-27 | C103: 240 | D103: 223
B104: 2017-09-28 | C104: 268 | D104: 243
B105: 2017-09-29 | C105: 315 | D105: 278
B106: 2017-09-30 | C106: 151 | D106: 140
B107: 2017-10-01 | C107: 246 | D107: 225
B108: 2017-10-02 | C108: 334 | D108: 268
B109: 2017-10-03 | C109: 329 | D109: 279
B110: 2017-10-04 | C110: 246 | D110: 222
B111: 2017-10-05 | C111: 248 | D111: 213
B112: 2017-10-06 | C112: 359 | D112: 330
B113: 2017-10-07 | C113: 153 | D113: 138
B114: 2017-10-08 | C114: 77 | D114: 72
B115: 2017-10-09 | C115: 212 | D115: 186
B116: 2017-10-10 | C116: 245 | D116: 204
B117: 2017-10-11 | C117: 231 | D117: 210
B118: 2017-10-12 | C118: 244 | D118: 229
B119: 2017-10-13 | C119: 284 | D119: 252
B120: 2017-10-14 | C120: 195 | D120: 178
B121: 2017-10-15 | C121: 278 | D121: 254
B122: 2017-10-16 | C122: 450 | D122: 396
B123: 2017-10-17 | C123: 351 | D123: 310
B124: 2017-10-18 | C124: 346 | D124: 311
B125: 2017-10-19 | C125: 263 | D125: 225
B126: 2017-10-20 | C126: 221 | D126: 190
B127: 2017-10-21 | C127: 172 | D127: 160
B128: 2017-10-22 | C128: 120 | D128: 118
B129: 2017-10-23 | C129: 342 | D129: 287
B130: 2017-10-24 | C130: 786 | D130: 469
B131: 2017-10-25 | C131: 242 | D131: 209
B132: 2017-10-26 | C132: 405 | D132: 377
B133: 2017-10-27 | C133: 332 | D133: 289
B134: 2017-10-28 | C134: 119 | D134: 98
B135: 2017-10-29 | C135: 350 | D135: 233
B136: 2017-10-30 | C136: 502 | D136: 395
B137: 2017-10-31 | C137: 296 | D137: 253
B138: 2017-11-01 | C138: 208 | D138: 188
B139: 2017-11-02 | C139: 204 | D139: 164
B140: 2017-11-03 | C140: 204 | D140: 166
B141: 2017-11-04 | C141: 165 | D141: 147
B142: 2017-11-05 | C142: 109 | D142: 101
B143: 2017-11-06 | C143: 289 | D143: 254
B144: =B143+1 -> 2017-11-07 | C144: 427 | D144: 339
B145: 2017-11-08 | C145: 275 | D145: 213
B146: 2017-11-09 | C146: 248 | D146: 210
B147: 2017-11-10 | C147: 172 | D147: 150
B148: 2017-11-11 | C148: 129 | D148: 118
B149: 2017-11-12 | C149: 125 | D149: 119
B150: 2017-11-13 | C150: 201 | D150: 170
B151: 2017-11-14 | C151: 212 | D151: 190
B152: 2017-11-15 | C152: 248 | D152: 236
B153: 2017-11-16 | C153: 159 | D153: 153
B154: 2017-11-17 | C154: 213 | D154: 203
B155: 2017-11-18 | C155: 197 | D155: 172
B156: 2017-11-19 | C156: 114 | D156: 112
B157: 2017-11-20 | C157: 220 | D157: 203
B158: 2017-11-21 | C158: 213 | D158: 199
B159: 2017-11-22 | C159: 249 | D159: 240
B160: 2017-11-23 | C160: 211 | D160: 193
B161: 2017-11-24 | C161: 201 | D161: 168
B162: 2017-11-25 | C162: 137 | D162: 127
B163: 2017-11-26 | C163: 106 | D163: 96
B164: 2017-11-27 | C164: 203 | D164: 178
B165: 2017-11-28 | C165: 169 | D165: 159
B166: 2017-11-29 | C166: 248 | D166: 220
B167: 2017-11-30 | C167: 243 | D167: 223
B168: 2017-12-01 | C168: 196 | D168: 188
B169: 2017-12-02 | C169: 156 | D169: 143
B170: 2017-12-03 | C170: 247 | D170: 201
B171: 2017-12-04 | C171: 342 | D171: 295
B172: 2017-12-05 | C172: 279 | D172: 231
B173: 2017-12-06 | C173: 183 | D173: 155
B174: 2017-12-07 | C174: 269 | D174: 232
B175: 2017-12-08 | C175: 308 | D175: 266
B176: 2017-12-09 | C176: 0 | D176: 0
B177: 2017-12-10 | C177: 526 | D177: 422
B178: 2017-12-11 | C178: 280 | D178: 251
B179: 2017-12-12 | C179: 194 | D179: 183
B180: 2017-12-13 | C180: 256 | D180: 209
B181: 2017-12-14 | C181: 283 | D181: 250
B182: 2017-12-15 | C182: 191 | D182: 180
B183: 2017-12-16 | C183: 134 | D183: 123
B184: 2017-12-17 | C184: 129 | D184: 123
B185: 2017-12-18 | C185: 196 | D185: 187
B186: 2017-12-19 | C186: 329 | D186: 261
B187: 2017-12-20 | C187: 282 | D187: 256
B188: 2017-12-21 | C188: 268 | D188: 231
B189: 2017-12-22 | C189: 300 | D189: 260
B190: 2017-12-23 | C190: 207 | D190: 169
B191: 2017-12-24 | C191: 179 | D191: 131
B192: 2017-12-25 | C192: 0 | D192: 0
B193: 2017-12-26 | C193: 505 | D193: 317
B194: 2017-12-27 | C194: 238 | D194: 217
B195: 2017-12-28 | C195: 241 | D195: 184
B196: 2017-12-29 | C196: 195 | D196: 184
B197: 2017-12-30 | C197: 173 | D197: 158
B198: 2017-12-31 | C198: 534 | D198: 477
B199: 2018-01-01 | C199: 375 | D199: 336
B200: 2018-01-02 | C200: 538 | D200: 420
B201: 2018-01-03 | C201: 405 | D201: 338
B202: 2018-01-04 | C202: 342 | D202: 298
B203: 2018-01-05 | C203: 231 | D203: 214
B204: 2018-01-06 | C204: 186 | D204: 167
... 176 more rows

Sheet 6.8 STPIS Exclusions
B1: =IF(dms_DataQuality="backcast",INDEX(dms_Worksheet_List,MATCH(dms_Model,dms_Model_List))&" BACKCAST",INDEX(dms_Worksheet_List,MATCH(dms_Model,dms_Model_List))) -> ANNUAL REPORTING STATEMENT
B2: =INDEX(dms_TradingNameFull_List,MATCH(dms_TradingName,dms_TradingName_List)) -> Energex
B3: =CONCATENATE("Annual Reporting RIN Response ",IF(SUM(dms_SingleYear_Model)>0,CONCATENATE(CRY),CONCATENATE(FRCP_y1," to ",dms_MultiYear_FinalYear_Result))) -> Annual Reporting RIN Response 2017-18
B4: 6.8 STPIS EXCLUSIONS
B7: This information is collected to inform the application of the STPIS to Australian Distribution Co. in future regulatory periods. The information is also collected to monitor network performance, and may be used in performance reports.
B9: 6.8.1 - STPIS EXCLUSIONS
B10: Date of event | C10: Outage ID | D10: Feeder ID / name | E10: Feeder classification (drop down) | F10: Cause of event (drop down) | G10: Unplanned | J10: Event category | K10: Effect on unplanned MAIFI | L10: Please provide separate explanation to confirm the outage was not due to inadequate transmission connection planning
B11: DD/MM/YYYY | G11: Number of interruptions | H11: Duration of interruption (mins) | I11: Total unplanned minutes off supply | J11: Use exclusion categories listed in section 3.3(a) of the STPIS (drop down) | K11: by feeder classification
B403: To enter further events - please insert new lines above this line.

Sheet 6.9 STPIS - GSL
B1: =IF(dms_DataQuality="backcast",INDEX(dms_Worksheet_List,MATCH(dms_Model,dms_Model_List))&" BACKCAST",INDEX(dms_Worksheet_List,MATCH(dms_Model,dms_Model_List))) -> ANNUAL REPORTING STATEMENT
B2: =INDEX(dms_TradingNameFull_List,MATCH(dms_TradingName,dms_TradingName_List)) -> Energex
B3: =CONCATENATE("Annual Reporting RIN Response ",IF(SUM(dms_SingleYear_Model)>0,CONCATENATE(CRY),CONCATENATE(FRCP_y1," to ",dms_MultiYear_FinalYear_Result))) -> Annual Reporting RIN Response 2017-18
B4: 6.9 STPIS - GUARANTEED SERVICE LEVEL
B6: Did the AER's GSL Scheme apply at any time during the regulatory year? | D6: No | E6: **IMPORTANT Please ensure this flag is set. Conditional formatting on this worksheet is dependant on this response.
B8: Instructions: Table 6.9.1 collects information relating to jurisdiction GSL scheme parameters. These parameters can be found in the jurisdictonal scheme relevant to NSP. Please identify each parameter in the relevant sub-tables and provide the volume and value of GSL payments. For GSL parameters that do not fit within the provided sub-tables provided, please enter a heading and identify the relevant parameter(s).
B10: 6.9.1 - GUARANTEED SERVICE LEVELS - JURISDICTIONAL GSL SCHEME
D11: =CRY -> 2017-18 | E11: =CRY -> 2017-18
D12: Volume | E12: Value of GSL payments
D13: 0's | E13: $0's
B14: Appointments
B15: Not attending at or within the specified timeframe | D15: 170 | E15: 9690
B19: To enter further GSL parameters relating to appointments - please copy a row from above and "insert copied cells" above this row.
B21: Connections
B22: Connections not completed within either 5 business days or a date specified with the customer | D22: 391 | E22: 79179
B27: To enter further GSL parameters relating to connections - please copy a row from above and "insert copied cells" above this row.
B29: Reliability of supply
B30: Reliability Duration - more than 8 hours on CBD, or 18 for an urban feeder or short rural feeder | D30: 41910 | E30: 4777740
B31: Reliability Frequency - 10 or more intteruptions for a CBD or urban feeder, or 16 for a short rural feeder | D31: 0 | E31: 0
B41: To enter further GSL parameters relating to reliability of supply - please copy a row from above and "insert copied cells" above this row.
B43: Street lights
B44: This GSL measure does not apply to distribution entities in QLD | D44: 0 | E44: 0
B51: To enter further GSL parameters relating to street lights - please copy a row from above and "insert copied cells" above this row.
B53: Planned interruptions
B54: Planned interruptions - 4 business days notice not given (Residential) | D54: 1202 | E54: 33656
B55: Planned interruptions - 4 business days notice not given (Business) | D55: 119 | E55: 8449
B57: To enter further GSL parameters relating to planned interruptions - please copy a row from above and "insert copied cells" above this row.
B59: Hot Water
B60: Not attending by the end of the next business day | D60: 0 | E60: 0
B63: To enter further GSL parameters - please identify the parameter and if insufficient rows please copy a row from above and "insert copied cells" above this row.
B65: Wrongful Disconnections
B66: Customer disconnected in error | D66: 37 | E66: 5254
B69: To enter further GSL parameters - please identify the parameter and if insufficient rows please copy a row from above and "insert copied cells" above this row.
B71: Reconnection
B72: Failiure to reconnect a premise within specified timeframes | D72: 58 | E72: 6667
B75: To enter further GSL parameters - please identify the parameter and if insufficient rows please copy a row from above and "insert copied cells" above this row.
B77: <NSP defined parameter category>
B81: To enter further GSL parameters - please identify the parameter and if insufficient rows please copy a row from above and "insert copied cells" above this row.
B84: 6.9.2 - GUARANTEED SERVICE LEVELS - AER GSL SCHEME
B86: Complete Table 6.9.2 if the AER's GSL scheme applied at any time during the regulatory year. Do not complete Table 6.9.2 if the AER's GSL scheme did not apply during the regulatory year.
D88: =CRY -> 2017-18 | E88: =CRY -> 2017-18
D89: Volume | E89: Value of GSL payments
D90: 0's | E90: $0's
B91: New connections
B92: Number of connections made
B93: Number of connections not made on or before the day agreed
B94: Connections - GSL payments – 1-6 day delay
B95: Connections - GSL payments – 7+ day delay
B96: Reliability of supply
B97: Frequency of interruptions – CBD feeders – 9 interruptions
B98: Frequency of interruptions – Urban feeders – 9 interruptions
B99: Frequency of interruptions – Rural (short and long) feeders – 15 interruptions
B100: Interruptions – CBD feeders – 12 hours duration
B101: Interruptions – Urban feeders – 12 hours duration
B102: Interruptions – Rural (short and long) feeders – 18 hours duration
B103: Total duration of interruptions Level 1 – 20 hours
B104: Total duration of interruptions Level 2 – 30 hours
B105: Total duration of interruptions Level 3 – 60 hours
B106: Street lights
B107: Streetlight repair 5 days – GSL payments
B108: Planned interruptions
B109: Notice of planned interruptions – 4 business days notice not given
B110: Total | E110: =SUM(E109,E107,E97:E105,E94:E95) -> 0

Sheet 7.8 Avoided TUOS Payments
B1: =IF(dms_DataQuality="backcast",INDEX(dms_Worksheet_List,MATCH(dms_Model,dms_Model_List))&" BACKCAST",INDEX(dms_Worksheet_List,MATCH(dms_Model,dms_Model_List))) -> ANNUAL REPORTING STATEMENT
B2: =INDEX(dms_TradingNameFull_List,MATCH(dms_TradingName,dms_TradingName_List)) -> Energex
B3: =CONCATENATE("Annual Reporting RIN Response ",IF(SUM(dms_SingleYear_Model)>0,CONCATENATE(CRY),CONCATENATE(FRCP_y1," to ",dms_MultiYear_FinalYear_Result))) -> Annual Reporting RIN Response 2017-18
B4: 7.8 - AVOIDED TUOS PAYMENTS
B6: 7.8.1 - AVOIDED TUOS PAYMENTS
C7: Avoided TUOS Payment
C8: $0's, nominal
B9: Embedded generators | C9: 330407.97
B10: Market network service providers
B11: Other

Sheet 7.10 Juris Scheme
B1: =IF(dms_DataQuality="backcast",INDEX(dms_Worksheet_List,MATCH(dms_Model,dms_Model_List))&" BACKCAST",INDEX(dms_Worksheet_List,MATCH(dms_Model,dms_Model_List))) -> ANNUAL REPORTING STATEMENT
B2: =INDEX(dms_TradingNameFull_List,MATCH(dms_TradingName,dms_TradingName_List)) -> Energex
B3: =CONCATENATE("Annual Reporting RIN Response ",IF(SUM(dms_SingleYear_Model)>0,CONCATENATE(CRY),CONCATENATE(FRCP_y1," to ",dms_MultiYear_FinalYear_Result))) -> Annual Reporting RIN Response 2017-18
B4: 7.10 - JURISDICTIONAL SCHEMES
B6: Instructions Business must list each relevant jurisdictional scheme individually and report information for each scheme separately from other schemes.
B8: 7.10.1 - JURISDICTIONAL SCHEME PAYMENTS
B9: Jurisdictional Scheme Name | C9: Description | D9: Date DNSP Became Subject to Scheme | E9: Description of Cost Recovery Method | F9: Total Scheme Payments
F10: $0's, nominal
B11: Solar PV | C11: Feed In Tariff Payment | D11: 2015-07-01 | E11: Queensland Treasury grant funds on behalf of the State of Queensland | F11: 171912607
B12: Australian Energy Market Commission (AEMC) Levy | C12: AEMC Recovery Funding | D12: 2016-04-26 | E12: DUOS Tariff | F12: 171580
E17: Total | F17: =SUM(F11:F16) -> 172084187

Sheet 7.11 DMIS-DMIA
B1: =IF(dms_DataQuality="backcast",INDEX(dms_Worksheet_List,MATCH(dms_Model,dms_Model_List))&" BACKCAST",INDEX(dms_Worksheet_List,MATCH(dms_Model,dms_Model_List))) -> ANNUAL REPORTING STATEMENT
B2: =INDEX(dms_TradingNameFull_List,MATCH(dms_TradingName,dms_TradingName_List)) -> Energex
B3: =CONCATENATE("Annual Reporting RIN Response ",IF(SUM(dms_SingleYear_Model)>0,CONCATENATE(CRY),CONCATENATE(FRCP_y1," to ",dms_MultiYear_FinalYear_Result))) -> Annual Reporting RIN Response 2017-18
B4: 7.11 - DEMAND MANAGEMENT INCENTIVE SCHEME
B6: 7.11.1 - DMIA - PROJECTS SUBMITTED FOR APPROVAL
C7: =CONCATENATE("Total amount of the DMIA spent in ", CRY) -> Total amount of the DMIA spent in 2017-18
C8: Operating expenditure | D8: Capital expenditure | E8: Total
B9: Name of project | C9: $0's, nominal
B10: Battery Energy Storage System Trial | C10: 381816.47 | D10: 639986.69 | E10: =SUM(C10:D10) -> 1021803.16
B11: LV System Static-State Estimation DMIA | C11: 33079.26 | E11: 33079.26
B12: Solar Enablement Initiative | C12: 68551.09 | E12: 68551.09
E13: 0
E14: 0
E15: 0
E16: =SUM(C16:D16) -> 0
E17: 0
E18: 0
E19: 0
E20: 0
E21: 0
E22: 0
E23: 0
E24: 0
E25: 0
E26: 0
E27: 0
E28: 0
E29: 0
E30: 0
E31: 0
E32: 0
E33: 0
E34: 0
E35: 0
E36: 0
E37: 0
E38: 0
E39: 0
E40: 0
E41: 0
E42: 0
E43: 0
E44: 0
B45: To enter additional projects - please copy an existing row and insert above this row.
B46: Total | C46: =SUM(C10:C45) -> 483446.82 | D46: =SUM(D10:D45) -> 639986.69 | E46: =SUM(E10:E45) -> 1123433.51

Sheet 7.12 Safety and Bushfire
B1: =IF(dms_DataQuality="backcast",INDEX(dms_Worksheet_List,MATCH(dms_Model,dms_Model_List))&" BACKCAST",INDEX(dms_Worksheet_List,MATCH(dms_Model,dms_Model_List))) -> ANNUAL REPORTING STATEMENT
B2: =INDEX(dms_TradingNameFull_List,MATCH(dms_TradingName,dms_TradingName_List)) -> Energex
B3: =CONCATENATE("Annual Reporting RIN Response ",IF(SUM(dms_SingleYear_Model)>0,CONCATENATE(CRY),CONCATENATE(FRCP_y1," to ",dms_MultiYear_FinalYear_Result))) -> Annual Reporting RIN Response 2017-18
B4: 7.12 SAFETY AND BUSHFIRE RELATED EXPENDITURE
B6: These templates collect information from Victorian businesses only. Bushfire and safety related expenditure information is used by the AER to monitor the expenditures throughout the regulatory control period.
B8: CPI applied to convert expected expenditure in real $ to nominal based on lagged September CPI index
B10: Instructions
B11: For "Exclusive of Margins & Overheads" reported expenditure is to EXCLUDE any overheads, profit margins or management fees paid directly or indirectly to related party contractors (not including actual incurred expense of the related party contractor) for the reporting period.
B12: For "Value of Margins & Overheads" reported expenditure is to COMPRISE ONLY the sum of overheads, profit margins or management fees paid directly or indirectly to related party contractors (not including actual incurred expenses of the related party contractor) for the reporting period.
B14: Australian Distribution Co. is to specify each activity in this table in accordance with the definition in Appendix F of the RIN.
B15: All activities must be reported but the Reason for Difference is only required if there is a 10 per cent difference between the expected value and the actual value. Use median unit costs. Where unit costs are not recorded at the asset category level - provide the best estimates of the unit cost using the cost allocation method identified in this table. (As a transitional measure, the unit cost may be based on a statistically significant annual sample of actual work orders at a 5% or better confidence interval.) Provide basis of allocation where applicable.
B17: 7.12.1 - SAFETY AND BUSHFIRE RELATED ASSET GROUP DEFINITIONS AND ALLOCATION BASIS
B18: Activity | C18: Definitions | G18: Basis for allocation of cost to activity
B19: Planned non-preferred services replacements
B20: Planned replacement of non-preferred services due to height
B21: Removal of public lighting switchwire
B22: Replacement of existing SWER lines with 22kV overhead bare conductor
B23: Installation of GFN and associated equipment at zone substations
B24: Replacement of crossarms/insulator sets – pole top fire mitigation
B25: Replacement of crossarms – based on age and condition
B26: Replacement of poles – based on age and condition
B27: Stake poles – based on age and condition
B28: Replacement of undersized poles
B29: Stake undersized poles
B30: Replacement of overhead conductor – mainly steel
B31: Service line clearance – overhead services requiring relocation
B32: Service line clearance – overhead services requiring undergrounding
B33: Replacement of 22kV distribution feeders with ABC/underground cabling
B34: Replacement of SWER with covered carbon core conductor or equivalent
B35: Replacement of SWER with ABC
B36: Replacement of SWER with underground
B37: Replacement of surge diverters (neptune configuration)
B38: Replacement of surge diverters (single phase or three phase)
B46: To enter further activities - please copy row from above and "insert copied cells" into a row above this row.
B49: 7.12.2 - BUSHFIRE RELATED
B51: 7.12.2.1 - NUMBER OF ACTIVITIES
B52: Activity | C52: Units | D52: Number of Activities
B53: Planned non-preferred services replacements | C53: number of services
B54: Planned replacement of non-preferred services due to height | C54: number of services
B55: Removal of public lighting switchwire | C55: number of spans removed
B56: Replacement of existing SWER lines with 22kV overhead bare conductor | C56: kms of SWER
B57: Installation of GFN and associated equipment at zone substations | C57: number of zone substations
B58: Replacement of crossarms/insulator sets – pole top fire mitigation | C58: number of crossarms/sets
B59: Replacement of crossarms – based on age and condition | C59: number of crossarms
B60: Replacement of poles – based on age and condition | C60: number of poles
B61: Stake poles – based on age and condition | C61: number of poles
B62: Replacement of undersized poles | C62: number of poles
B63: Stake undersized poles | C63: number of poles
B64: Replacement of overhead conductor – mainly steel | C64: kms
B65: Service line clearance – overhead services requiring relocation | C65: number of services
B66: Service line clearance – overhead services requiring undergrounding | C66: number of services
B67: Replacement of 22kV distribution feeders with ABC/underground cabling | C67: number of feeders
B68: Replacement of SWER with covered carbon core conductor or equivalent | C68: kms
B69: Replacement of SWER with ABC | C69: kms
B70: Replacement of SWER with underground | C70: kms
B71: Replacement of surge diverters (neptune configuration) | C71: number of units
B72: Replacement of surge diverters (single phase or three phase) | C72: number of units
B73: =IF(ISBLANK(B39),"",B39) -> 
B80: To enter further activities - please copy row from above and "insert copied cells" into a row above this row.
B83: 7.12.2.2 - EXPENDITURE
B84: Activity | C84: Units | D84: Exclusive of Margins & Overheads | E84: Value of Margins & Overheads
D85: Actual Expenditure
D86: $0's, Nominal
B87: Planned non-preferred services replacements | C87: number of services
B88: Planned replacement of non-preferred services due to height | C88: number of services
B89: Removal of public lighting switchwire | C89: number of spans removed
B90: Replacement of existing SWER lines with 22kV overhead bare conductor | C90: kms of SWER
B91: Installation of GFN and associated equipment at zone substations | C91: number of zone substations
B92: Replacement of crossarms/insulator sets – pole top fire mitigation | C92: number of crossarms/sets
B93: Replacement of crossarms – based on age and condition | C93: number of crossarms
B94: Replacement of poles – based on age and condition | C94: number of poles
B95: Stake poles – based on age and condition | C95: number of poles
B96: Replacement of undersized poles | C96: number of poles
B97: Stake undersized poles | C97: number of poles
B98: Replacement of overhead conductor – mainly steel | C98: kms
B99: Service line clearance – overhead services requiring relocation | C99: number of services
B100: Service line clearance – overhead services requiring undergrounding | C100: number of services
B101: Replacement of 22kV distribution feeders with ABC/underground cabling | C101: number of feeders
B102: Replacement of SWER with covered carbon core conductor or equivalent | C102: kms
B103: Replacement of SWER with ABC | C103: kms
B104: Replacement of SWER with underground | C104: kms
B105: Replacement of surge diverters (neptune configuration) | C105: number of units
B106: Replacement of surge diverters (single phase or three phase) | C106: number of units
B107: =IF(ISBLANK(B39),"",B39) ->  | C107: =IF(ISBLANK(C73),"",C73) -> 
B114: To enter further activities - please copy row from above and "insert copied cells" into a row above this row.
B117: 7.12.2.3 - UNIT COSTS
B118: Activity | D118: Actual
D119: $0's, Per Unit
B120: Planned non-preferred services replacements
B121: Planned replacement of non-preferred services due to height
B122: Removal of public lighting switchwire
B123: Replacement of existing SWER lines with 22kV overhead bare conductor
B124: Installation of GFN and associated equipment at zone substations
B125: Replacement of crossarms/insulator sets – pole top fire mitigation
B126: Replacement of crossarms – based on age and condition
B127: Replacement of poles – based on age and condition
B128: Stake poles – based on age and condition
B129: Replacement of undersized poles
B130: Stake undersized poles
B131: Replacement of overhead conductor – mainly steel
B132: Service line clearance – overhead services requiring relocation
B133: Service line clearance – overhead services requiring undergrounding
B134: Replacement of 22kV distribution feeders with ABC/underground cabling
B135: Replacement of SWER with covered carbon core conductor or equivalent
B136: Replacement of SWER with ABC
B137: Replacement of SWER with underground
B138: Replacement of surge diverters (neptune configuration)
B139: Replacement of surge diverters (single phase or three phase)
B140: =IF(ISBLANK(B39),"",B39) -> 
B147: To enter further activities - please copy row from above and "insert copied cells" into a row above this row.
B150: 7.12.2.4 - CONTINGENT PROJECT APPLICATIONS - VOLUMES APPROVED
B151: Activity | C151: Units | D151: Volume approved under contingent project applications | E151: Actual volumes | F151: Difference
F152: =E152-D152 -> 0
F153: 0
F154: 0
F155: 0
F156: 0
F157: 0
F158: 0
F159: 0
B160: To enter further activities - please copy row from above and "insert copied cells" into a row above this row.
B162: 7.12.2.5 - CONTINGENT PROJECT APPLICATIONS - EXPENDITURE APPROVED
B163: Activity | C163: Exclusive of Margins & Overheads | D163: Value of Margins & Overheads
C164: Actual Expenditure
C165: $0's, Nominal
B166: =IF(ISBLANK(B152),"",B152) -> 
B167: =IF(ISBLANK(B153),"",B153) -> 
B174: To enter further activities - please copy row from above and "insert copied cells" into a row above this row.
B178: 7.12.3 - SAFETY RELATED
B180: 7.12.3.1 - NUMBER OF ACTIVITIES
B181: Activity | C181: Units | D181: Number of Activities
B182: Planned non-preferred services replacements | C182: number of services
B183: Planned replacement of non-preferred services due to height | C183: number of services
B184: Removal of public lighting switchwire | C184: number of spans removed
B185: Replacement of existing SWER lines with 22kV overhead bare conductor | C185: kms of SWER
B186: Installation of GFN and associated equipment at zone substations | C186: number of zone substations
B187: Replacement of crossarms/insulator sets – pole top fire mitigation | C187: number of crossarms/sets
B188: Replacement of crossarms – based on age and condition | C188: number of crossarms
B189: Replacement of poles – based on age and condition | C189: number of poles
B190: Stake poles – based on age and condition | C190: number of poles
B191: Replacement of undersized poles | C191: number of poles
B192: Stake undersized poles | C192: number of poles
B193: Replacement of overhead conductor – mainly steel | C193: kms
B194: Service line clearance – overhead services requiring relocation | C194: number of services
B195: Service line clearance – overhead services requiring undergrounding | C195: number of services
B196: Replacement of 22kV distribution feeders with ABC/underground cabling | C196: number of feeders
B197: Replacement of SWER with covered carbon core conductor or equivalent | C197: kms
B198: Replacement of SWER with ABC | C198: kms
B199: Replacement of SWER with underground | C199: kms
B200: Replacement of surge diverters (neptune configuration) | C200: number of units
B201: Replacement of surge diverters (single phase or three phase) | C201: number of units
B202: =IF(ISBLANK(B39),"",B39) ->  | C202: =IF(ISBLANK(C73),"",C73) -> 
B209: To enter further activities - please copy row from above and "insert copied cells" into a row above this row.
B212: 7.12.3.2 - EXPENDITURE
B213: Activity | C213: Units | D213: Exclusive of Margins & Overheads | E213: Value of Margins & Overheads
D214: Actual Expenditure
D215: $0's, Nominal
B216: Planned non-preferred services replacements | C216: number of services
B217: Planned replacement of non-preferred services due to height | C217: number of services
B218: Removal of public lighting switchwire | C218: number of spans removed
B219: Replacement of existing SWER lines with 22kV overhead bare conductor | C219: kms of SWER
B220: Installation of GFN and associated equipment at zone substations | C220: number of zone substations
B221: Replacement of crossarms/insulator sets – pole top fire mitigation | C221: number of crossarms/sets
B222: Replacement of crossarms – based on age and condition | C222: number of crossarms
B223: Replacement of poles – based on age and condition | C223: number of poles
B224: Stake poles – based on age and condition | C224: number of poles
B225: Replacement of undersized poles | C225: number of poles
B226: Stake undersized poles | C226: number of poles
B227: Replacement of overhead conductor – mainly steel | C227: kms
B228: Service line clearance – overhead services requiring relocation | C228: number of services
B229: Service line clearance – overhead services requiring undergrounding | C229: number of services
B230: Replacement of 22kV distribution feeders with ABC/underground cabling | C230: number of feeders
B231: Replacement of SWER with covered carbon core conductor or equivalent | C231: kms
B232: Replacement of SWER with ABC | C232: kms
B233: Replacement of SWER with underground | C233: kms
B234: Replacement of surge diverters (neptune configuration) | C234: number of units
B235: Replacement of surge diverters (single phase or three phase) | C235: number of units
B236: =IF(ISBLANK(B39),"",B39) ->  | C236: =IF(ISBLANK(C73),"",C73) -> 
B243: To enter further activities - please copy row from above and "insert copied cells" into a row above this row.
B246: 7.12.3.3 - UNIT COSTS
B247: Activity | C247: Units | D247: Actual
D248: $0's, Per Unit
B249: Planned non-preferred services replacements | C249: number of services
B250: Planned replacement of non-preferred services due to height | C250: number of services
B251: Removal of public lighting switchwire | C251: number of spans removed
B252: Replacement of existing SWER lines with 22kV overhead bare conductor | C252: kms of SWER
B253: Installation of GFN and associated equipment at zone substations | C253: number of zone substations
B254: Replacement of crossarms/insulator sets – pole top fire mitigation | C254: number of crossarms/sets
B255: Replacement of crossarms – based on age and condition | C255: number of crossarms
B256: Replacement of poles – based on age and condition | C256: number of poles
B257: Stake poles – based on age and condition | C257: number of poles
B258: Replacement of undersized poles | C258: number of poles
B259: Stake undersized poles | C259: number of poles
B260: Replacement of overhead conductor – mainly steel | C260: kms
B261: Service line clearance – overhead services requiring relocation | C261: number of services
B262: Service line clearance – overhead services requiring undergrounding | C262: number of services
B263: Replacement of 22kV distribution feeders with ABC/underground cabling | C263: number of feeders
B264: Replacement of SWER with covered carbon core conductor or equivalent | C264: kms
B265: Replacement of SWER with ABC | C265: kms
B266: Replacement of SWER with underground | C266: kms
... 64 more rows

Sheet 8.1 Income
B1: =IF(dms_DataQuality="backcast",INDEX(dms_Worksheet_List,MATCH(dms_Model,dms_Model_List))&" BACKCAST",INDEX(dms_Worksheet_List,MATCH(dms_Model,dms_Model_List))) -> ANNUAL REPORTING STATEMENT
B2: =INDEX(dms_TradingNameFull_List,MATCH(dms_TradingName,dms_TradingName_List)) -> Energex
B3: =CONCATENATE("Annual Reporting RIN Response ",IF(SUM(dms_SingleYear_Model)>0,CONCATENATE(CRY),CONCATENATE(FRCP_y1," to ",dms_MultiYear_FinalYear_Result))) -> Annual Reporting RIN Response 2017-18
B4: 8.1 - INCOME
B6: 8.1.1 - INCOME STATEMENT
C7: Audited Statutory Accounts | D7: Adjustments | E7: Distribution business | F7: Standard Control Services | G7: Alternative Control Services | L7: Negotiated Services
G8: Public Lighting | I8: Other
G9: =IF(dms_Jurisdiction="Vic","Energy efficient","") ->  | H9: =IF(dms_Jurisdiction="Vic","Non-energy efficient","") ->  | I9: Connection services | J9: Metering services | K9: Ancillary network services
C10: $0's, nominal
B11: 8.1.1.1 - REVENUE
B12: Distribution revenue | C12: 1484134034 | D12: 137755366.8 | E12: 1621889401 | F12: 1484134034 | G12: 40793684.12 | I12: 22783235.51 | J12: 63911427.58 | K12: 10267019.54
B13: Cross boundary revenue
B14: Contributions | C14: 65096675.55 | D14: 19968477.1 | E14: 85065152.65 | F14: 3418986.102 | G14: 8809797.078 | I14: 52997147.79 | J14: 9308412.19 | K14: 10530809.49
B15: Interest income | C15: 6305896.99 | D15: -6305896.99
B16: Jurisdictional scheme amounts | C16: 154931400 | E16: 154931400 | F16: 154931400
B17: Profit from sale of fixed assets | C17: 2132536.41 | D17: -2132536.41
B18: TUOS revenue | C18: 331609884.7 | E18: 331609884.7 | F18: 331609884.7
B19: Pass through revenue (F-factor) | C19: 0 | D19: 0 | E19: 0 | F19: 0
B20: Other Revenue | C20: 206057415.1 | D20: -205676742.2 | E20: 380672.97 | F20: 380672.97
B21: Total revenue | C21: =SUM(C12:C20) -> 2250267843 | D21: -56391331.72 | E21: 2193876511 | F21: 1974474978 | G21: 49603481.2 | H21: 0 | I21: 75780383.3 | J21: 73219839.77 | K21: 20797829.03 | L21: 0
B23: 8.1.1.2 - EXPENDITURE
B24: TUOS expenditure | C24: 335766960.4 | E24: 335766960.4 | F24: 335766960.4
B25: Avoided TUOS expenditure | C25: 330407.97 | E25: 330407.97 | F25: 330407.97
B26: Cross boundary expenditure | C26: 416606.2 | E26: 416606.2 | F26: 416606.2
B27: Depreciation | C27: 405987912.8 | D27: -214258467.4 | E27: 191729445.3 | F27: 161417694.9 | G27: 9387920.1 | J27: 20923830.39
B28: Finance charges | C28: -4223623.9 | D28: 4223623.9
B29: Impairment losses | C29: 1558355.24 | D29: -1558355.24
B30: Jurisdictional scheme amounts | C30: 171912607 | D30: 171580 | E30: 172084187 | F30: 172084187
B31: Loss from sale of fixed assets | C31: 0 | D31: 1569161 | E31: 1569161 | F31: 1569161
B32: Maintenance expenditure | C32: 231398085.4 | D32: 0 | E32: 231398085.4 | F32: 212862456.8 | G32: 18535628.6
B33: Operating expenditure excluding maintenance expenditure | C33: 241538966.4 | D33: -14960821.96 | E33: 226578144.4 | F33: 151188235.3 | G33: 2728725.632 | I33: 42546473.08 | J33: 19246924.78 | K33: 10867785.58
B34: Other | C34: 17388245.74 | D34: -17388245.74
B35: Total expenditure | C35: =SUM(dms_080101_02_audited_Values) -> 1402074523 | D35: =SUM(D24:D34) -> -242201525.5 | E35: =SUM(dms_080101_02_dnsp_Values) -> 1159872998 | F35: =SUM(dms_080101_02_SCS_Values) -> 1035635710 | G35: =SUM(G24:G34) -> 30652274.33 | H35: =SUM(H24:H34) -> 0 | I35: =SUM(dms_080101_02_connection_Values) -> 42546473.08 | J35: =SUM(dms_080101_02_metering_Values) -> 40170755.17 | K35: =SUM(dms_080101_02_ancillary_Values) -> 10867785.58 | L35: =SUM(dms_080101_02_negotiated_Values) -> 0
B37: 8.1.1.3 - PROFIT
B38: Profit before tax (PBT) | C38: =C21-SUM(C24:C34) -> 848193319.6 | D38: 185810193.7 | E38: 1034003513 | F38: 938839268.2 | G38: 18951206.87 | H38: 0 | I38: 33233910.22 | J38: 33049084.6 | K38: 9930043.451 | L38: 0
B39: Income tax expenses (/ benefit) | C39: 255122186.6 | D39: -684882.863 | E39: 254437303.7 | F39: 238710822.6 | G39: 3188445.344 | I39: 4599899.961 | J39: 7813354.018 | K39: 124781.8118
B40: Profit after tax | C40: =C38-C39 -> 593071133 | D40: 186495076.6 | E40: 779566209.6 | F40: 700128445.6 | G40: 15762761.52 | H40: 0 | I40: 28634010.26 | J40: 25235730.58 | K40: 9805261.64 | L40: =L38-L39 -> 0

Sheet 8.2 Capex
B1: =IF(dms_DataQuality="backcast",INDEX(dms_Worksheet_List,MATCH(dms_Model,dms_Model_List))&" BACKCAST",INDEX(dms_Worksheet_List,MATCH(dms_Model,dms_Model_List))) -> ANNUAL REPORTING STATEMENT
B2: =INDEX(dms_TradingNameFull_List,MATCH(dms_TradingName,dms_TradingName_List)) -> Energex
B3: =CONCATENATE("Annual Reporting RIN Response ",IF(SUM(dms_SingleYear_Model)>0,CONCATENATE(CRY),CONCATENATE(FRCP_y1," to ",dms_MultiYear_FinalYear_Result))) -> Annual Reporting RIN Response 2017-18
B4: 8.2 - CAPEX
B6: Instructions
B7: Reported expenditure must EXCLUDE capital contributions (except tables 8.2.1 and 8.2.5 which should include all capital contributions).
B8: Forecast expenditure is to be taken from Australian Distribution Co.'s distribution determination.
B9: If allocating based on assumptions then provide method in Basis of Preparation. All adjustments must be explained in Basis of Preparation with supporting documentation attached.
B11: For tables 8.2.1 and 8.2.3: Reported expenditure must INCLUDE any profit margins or management fees paid directly or indirectly to related party contractors (not including actual incurred expenses of the related party contractor) for the regulatory reporting period. 'Related Party Margin Expenditure' must COMPRISE ONLY profit margins or management fees paid directly or indirectly to related party contractors (not including actual incurred expenses of the related party contractor) for the regulatory reporting period.
B13: 8.2.1 - CAPEX BY PURPOSE - STANDARD CONTROL SERVICES
B15: Each line item in this table must INCLUDE the capital contributions. Total capital contributions should also be identified in the last item in the table.
C17: EXPENDITURE
C18: CPI adjusted Forecast | D18: Actual | E18: Difference | F18: Related Party Margin | G18: Voltage level
G19: Subtransmission | H19: HV | I19: LV | J19: Other
B20: Description | C20: $0's, nominal | E20: (%) | F20: $0's, nominal
B21: Asset replacement | C21: 206818099.2 | D21: =SUM(G21:J21) -> 162800527.8 | E21: =IF(C21=0,1,(D21-C21)/C21*1) -> -0.2128322984 | G21: 30599429.96 | H21: 66741617.88 | I21: 35507738.59 | J21: 29951741.35
B22: Augmentation | C22: 84019980.53 | D22: =SUM(G22:J22) -> 91918000.3 | E22: =IF(C22=0,1,(D22-C22)/C22*1) -> 0.09400168525 | G22: 10935909.75 | H22: 51375223.08 | I22: 16098928.5 | J22: 13507938.96
B23: Connections and customer-initiated works | C23: 96246007.43 | D23: 95857278.42 | E23: -0.004038910547 | G23: 348658.64 | H23: 78234997.59 | I23: 17273622.19 | J23: 0
B24: Non-network | C24: 46586256.69 | D24: 35578281.69 | E24: -0.2362923269 | J24: 35578281.69
B25: Capitalised overheads | C25: 171445592.2 | D25: 156241829.8 | E25: -0.08867980964 | J25: 156241829.8
D26: =SUM(G26:J26) -> 0 | E26: 1
D27: 0 | E27: 1
D28: 0 | E28: 1
D29: 0 | E29: 1
D30: =SUM(G30:J30) -> 0 | E30: 1
D31: 0 | E31: 1
D32: 0 | E32: 1
D33: 0 | E33: 1
D34: 0 | E34: 1
D35: 0 | E35: 1
B36: Capital contributions included in the above | C36: 36514032.31 | D36: 56411411.18 | E36: 0.5449241734 | J36: 56411411.18
B37: Total | C37: =SUM(C21:C35) -> 605115936.1 | D37: 542395918 | E37: =IF(C37=0,1,(D37-C37)/C37*1) -> -0.1036495891 | G37: =SUM(G21:G35) -> 41883998.36 | H37: =SUM(H21:H35) -> 196351838.6 | I37: 68880289.28 | J37: 235279791.8
B40: 8.2.2 - CAPEX BY PURPOSE - MATERIAL DIFFERENCE EXPLANATION
B42: Where the difference between forecast and actual expenditure shown in table 8.2.1 is a Material Difference please explain the main factors driving the difference.
B44: Description | C44: Reason for material difference
B45: Asset replacement ($44.0M underspend) | C45: Reduced volumes of planned distribution asset replacements to accommodate higher priority conductor to ground remediation works, and lower requirement for replacement of unserviceable poles and overhead services | D45: 0 | E45: 0 | F45: 0
B46: Augmentation ($7.9M overspend) | C46: Increased requirements for non-routine conductor to ground statutory height remediation work identified by aerial inspections | D46: 0 | E46: 0 | F46: 0
B47: Non-network - Office Equipment ($1.8M overspend) | C47: Additional spend following merger requirements for additional functionalities at existing sites. | D47: 0 | E47: 0 | F47: 0
B48: Non-network - Motor vehicles ($5.5M underspend) | C48: Due to revision of replacement schedules to increase cost effectiveness resulting in an underspend | D48: 0 | E48: 0 | F48: 0
B49: Non-network - Plant and equipment ($2.0M overspend) | C49: Additional purchases as a result of aligning safety initiatives with Ergon post merger resulting in an overspend | D49: 0 | E49: 0 | F49: 0
B50: Non-network - Buildings ($8.0M underspend) | C50: Non-system capital projects postponed and scope revisited as business priorities are reviewed to ensure prudent spend | D50: 0 | E50: 0 | F50: 0
B51: Non-network - Land ($0.8M underspend) | C51: Forecast land acquisitions revisited and spend profile modified to ensure prudent spend that aligns to future network planning needs | D51: 0 | E51: 0 | F51: 0
B62: 8.2.3 - CAPEX OTHER
C63: EXPENDITURE
C64: CPI adjusted Forecast | D64: Actual | E64: Difference | F64: Related Party Margin | G64: Voltage level
G65: Subtransmission | H65: HV | I65: LV | J65: Other
C66: $0's, nominal | E66: (%) | F66: $0's, nominal
B67: Public lighting
B68: =IF(dms_Jurisdiction="Vic","Energy Efficient", "Total") -> Total | C68: 11198188.55 | D68: =SUM(G68:J68) -> 7348003.613 | E68: =IF(C68=0,1,((D68-C68)/C68)*1) -> -0.343822121 | F68: 0 | G68: 0 | H68: 0 | I68: 7348003.613 | J68: 0
B69: =IF(dms_Jurisdiction="Vic","Non-energy efficient", "") ->  | D69: =SUM(G69:J69) -> 0 | E69: =IF(C69=0,1,((D69-C69)/C69)*1) -> 1
B70: Alternative Control Services
B71: Connection services | C71: 0 | D71: =SUM(G71:J71) -> 2131170.383 | E71: =IF(C71=0,1,((D71-C71)/C71)*1) -> 1 | F71: 0 | G71: 0 | H71: 0 | I71: 0 | J71: 2131170.383
B72: Metering services | C72: 8804620.603 | D72: 1279747.057 | E72: =IF(C72=0,1,((D72-C72)/C72)*1) -> -0.8546505165 | F72: 0 | G72: 0 | H72: 0 | I72: 1279747.057 | J72: 0
B73: Ancillary network services | C73: 0 | D73: 1239736.922 | E73: =IF(C73=0,1,((D73-C73)/C73)*1) -> 1 | F73: 0 | G73: 0 | H73: 0 | I73: 0 | J73: 1239736.922
B74: Negotiated Services
B75: Negotiated services | C75: 0 | D75: =SUM(G75:J75) -> 0 | E75: =IF(C75=0,1,((D75-C75)/C75)*1) -> 1 | F75: 0 | G75: 0 | H75: 0 | I75: 0 | J75: 0
B76: Total | C76: =SUM(C68:C69,C71:C73,C75) -> 20002809.16 | D76: =SUM(D68:D69,D71:D73,D75) -> 11998657.97 | E76: =IF(C76=0,1,((D76-C76)/C76)*1) -> -0.4001513547 | G76: =SUM(G68:G69,G71:G73,G75) -> 0 | H76: =SUM(H68:H69,H71:H73,H75) -> 0 | I76: =SUM(I68:I69,I71:I73,I75) -> 8627750.67 | J76: =SUM(J68:J69,J71:J73,J75) -> 3370907.305
B80: 8.2.4 - CAPEX BY ASSET CLASS
B82: Australian Distribution Co. to enter in Table 8.2.4 each Asset Class specified in its current determination as listed in the AER's final decision in its Roll Forward Model and Post-tax Revenue Model and enter information against that Asset Class.
C84: CPI adjusted Forecast | D84: Actual | E84: Difference | F84: Movements in provisions allocated to as-incurred capex
B85: Asset class | C85: $0's, nominal | E85: (%) | F85: $0's, nominal
B86: OH Sub-transmission lines | C86: 18196441.79 | D86: 12149084.74 | E86: =IF(C86=0,1,((D86-C86)/C86)*1) -> -0.3323373393 | F86: -57504.42624
B87: UG Sub-transmission cables | C87: 29969456.48 | D87: 5415831.808 | E87: =IF(C87=0,1,((D87-C87)/C87)*1) -> -0.8192882873 | F87: -25634.38377
B88: OH Distribution Lines | C88: 162101031.1 | D88: 162705325.1 | E88: 0.003727885251 | F88: -770121.9118
B89: UG Distribution Cables | C89: 72110565.23 | D89: 30917970.6 | E89: -0.5712421543 | F89: -146341.9013
B90: Distribution Equipment | C90: 45957723.01 | D90: 12280649.39 | E90: -0.732783772 | F90: -58127.15215
B91: Substation Bays | C91: 36322946.22 | D91: 26831636.68 | E91: -0.2613034054 | F91: -127000.3383
B92: Substation Establishment | C92: 20669594.27 | D92: 27168812.46 | E92: 0.3144337575 | F92: -128596.2692
B93: Distribution Substation Switchgear | C93: 0 | D93: 418511.4257 | E93: 1 | F93: -1980.911314
B94: Zone Transformers | C94: 35874802.64 | D94: 16685761.42 | E94: -0.5348891089 | F94: -78977.5656
B95: Distribution Transformers | C95: 56078271.25 | D95: 64091181.1 | E95: 0.1428879612 | F95: -303358.3743
B96: Low Voltage Services | C96: 19101129.02 | D96: 36126268.41 | E96: 0.8913158683 | F96: -170993.9787
B97: Load Control & Network Metering Devices | C97: 1659229.246 | D97: 14973049.89 | E97: 8.024099548 | F97: -70870.90601
B98: Communications - Pilot Wires | C98: 4840765.847 | D98: 28331210.23 | E98: 4.852629755 | F98: -134098.1666
B99: Streetlighting (Residual Rate 2 Assets) | C99: 0 | D99: 0 | E99: 1 | F99: 0
B100: Systems Buildings | C100: 10318089.38 | D100: 10480883.85 | E100: 0.01577757957 | F100: -49608.44586
B101: Systems Easements | C101: 0 | D101: 431391.89 | E101: 1 | F101: -2041.877528
B102: System Land | C102: 3760826.677 | D102: -82952.89 | E102: -1.022057089 | F102: 392.6352023
B103: Control Centre - SCADA | C103: 1020477.944 | D103: 0 | E103: -1 | F103: 0
B104: IT Systems | C104: 1663197.765 | D104: 2144756.695 | E104: 0.2895379848 | F104: -10151.62918
B105: Office Equipment & Furniture | C105: 418320.3739 | D105: 2231665.971 | E105: 4.334824957 | F105: -10562.99087
B106: Motor Vehicles | C106: 22650841.14 | D106: 17198827.91 | E106: -0.2406980475 | F106: -81406.02786
B107: Plant & Equipment | C107: 5626055.913 | D107: 7661205.575 | E107: 0.3617364801 | F107: -36262.25682
B108: Research & Development | C108: 0 | D108: 0 | E108: 1 | F108: 0
B109: Buildings | C109: 15974381.88 | D109: 4380272.885 | E109: -0.7257939044 | F109: -20732.84403
B110: Easements | C110: 0 | D110: 0 | E110: 1 | F110: 0
B111: Land | C111: 4287756.995 | D111: 3443161.172 | E111: -0.1969784724 | F111: -16297.27769
E112: 1
E113: 1
E114: 1
E115: 1
E116: =IF(C116=0,1,((D116-C116)/C116)*1) -> 1
E117: 1
E118: 1
E119: 1
E120: 1
E121: 1
E122: 1
E123: 1
E124: 1
E125: 1
E126: 1
E127: 1
E128: 1
E129: 1
E130: 1
E131: 1
E132: 1
E133: 1
E134: 1
E135: 1
B136: Total | C136: =SUM(C86:C135) -> 568601904.1 | D136: =SUM(D86:D135) -> 485984506.3 | E136: -0.145299193 | F136: =SUM(F86:F135) -> -2300277
B139: 8.2.5 - CAPITAL CONTRIBUTIONS BY ASSET CLASS
C140: CPI Adjusted Forecast | D140: Actual | E140: Difference
B141: Asset class | C141: $0's, nominal | E141: (%)
B142: =IF(ISBLANK(B86),"",B86) -> OH Sub-transmission lines | C142: 1260544.942 | D142: 324570.3111 | E142: =IF(C142=0,1,((D142-C142)/C142)*1) -> -0.7425158754
B143: UG Sub-transmission cables | C143: 2729732.124 | D143: 0 | E143: =IF(C143=0,1,((D143-C143)/C143)*1) -> -1
B144: OH Distribution Lines | C144: 2621353.292 | D144: 1275654.416 | E144: -0.5133603627
B145: UG Distribution Cables | C145: 23310576.57 | D145: 33268032.09 | E145: 0.4271647034
B146: Distribution Equipment | C146: 121755.1194 | D146: 21644.80751 | E146: -0.8222267153
B147: Substation Bays | C147: 1698.46159 | D147: 0 | E147: -1
B148: Substation Establishment | C148: 1628.421937 | D148: 0 | E148: -1
B149: Distribution Substation Switchgear | C149: 0 | D149: 0 | E149: 1
B150: Zone Transformers | C150: 8041.073786 | D150: 11994.55435 | E150: 0.4916607747
B151: Distribution Transformers | C151: 6201557.615 | D151: 21227196.26 | E151: 2.422881408
B152: Low Voltage Services | C152: 58336.85809 | D152: 2982.408247 | E152: -0.9488760906
B153: Load Control & Network Metering Devices | C153: 182873.5345 | D153: 225564.4058 | E153: 0.2334447759
B154: Communications - Pilot Wires | C154: 15934.0211 | D154: 53771.92675 | E154: 2.37466145
B155: Streetlighting (Residual Rate 2 Assets) | E155: 1
B156: Systems Buildings | E156: 1
B157: Systems Easements | E157: 1
B158: System Land | E158: 1
B159: Control Centre - SCADA | E159: 1
B160: IT Systems | E160: 1
B161: Office Equipment & Furniture | E161: 1
B162: Motor Vehicles | E162: 1
B163: Plant & Equipment | E163: 1
B164: Research & Development | E164: 1
B165: Buildings | E165: 1
B166: Easements | E166: 1
B167: Land | E167: 1
E168: 1
E169: 1
E170: 1
E171: =IF(C171=0,1,((D171-C171)/C171)*1) -> 1
E172: 1
E173: 1
B174: =IF(ISBLANK(B118),"",B118) ->  | E174: 1
E175: 1
E176: 1
E177: 1
E178: 1
E179: 1
E180: 1
E181: =IF(C181=0,1,((D181-C181)/C181)*1) -> 1
E182: 1
E183: 1
E184: 1
E185: 1
E186: 1
E187: 1
E188: 1
E189: 1
E190: 1
E191: 1
B192: Total | C192: =SUM(C142:C191) -> 36514032.03 | D192: =SUM(D142:D191) -> 56411411.18 | E192: 0.5449241851
B195: 8.2.6 - DISPOSALS BY ASSET CLASS
C196: CPI Adjusted Forecast | D196: Actual | E196: Difference
B197: Asset class | C197: $0's, nominal | E197: (%)
B198: =IF(ISBLANK(B86),"",B86) -> OH Sub-transmission lines | C198: 0 | D198: 0 | E198: =IF(C198=0,1,((D198-C198)/C198)*1) -> 1
B199: UG Sub-transmission cables | C199: 0 | D199: 0 | E199: =IF(C199=0,1,((D199-C199)/C199)*1) -> 1
B200: OH Distribution Lines | C200: 0 | D200: 0 | E200: 1
B201: UG Distribution Cables | C201: 0 | D201: 0 | E201: 1
B202: Distribution Equipment | C202: 736133.4963 | D202: 0 | E202: -1
B203: Substation Bays | C203: 630971.5683 | D203: 0 | E203: -1
B204: Substation Establishment | C204: 0 | D204: 0 | E204: 1
B205: Distribution Substation Switchgear | C205: 0 | D205: 0 | E205: 1
B206: Zone Transformers | C206: 946457.3524 | D206: 0 | E206: -1
B207: Distribution Transformers | C207: 5047772.546 | D207: 0 | E207: -1
B208: Low Voltage Services | C208: 1156781.208 | D208: 0 | E208: -1
B209: Load Control & Network Metering Devices | C209: 0 | D209: 0 | E209: 1
B210: Communications - Pilot Wires | C210: 0 | D210: 0 | E210: 1
B211: Streetlighting (Residual Rate 2 Assets) | C211: 0 | D211: 0 | E211: 1
B212: Systems Buildings | C212: 0 | D212: 0 | E212: 1
B213: Systems Easements | C213: 0 | D213: 0 | E213: 1
B214: System Land | C214: 3653325.001 | D214: 0 | E214: -1
B215: Control Centre - SCADA | C215: 0 | D215: 0 | E215: 1
B216: IT Systems | C216: 0 | D216: 0 | E216: 1
B217: Office Equipment & Furniture | C217: 0 | D217: 0 | E217: 1
B218: Motor Vehicles | C218: 5237843.673 | D218: 3271446.93 | E218: -0.3754210446
B219: Plant & Equipment | C219: 0 | D219: 6468.18 | E219: 1
B220: Research & Development | C220: 0 | D220: 0 | E220: 1
B221: Buildings | C221: 8647796.599 | D221: 11000 | E221: -0.9987279997
B222: Easements | C222: 0 | D222: 0 | E222: 1
B223: Land | C223: 6196283.502 | D223: 4440529.04 | E223: -0.2833560571
E224: 1
E225: 1
E226: 1
E227: 1
E228: =IF(C228=0,1,((D228-C228)/C228)*1) -> 1
... 20 more rows

Sheet 8.4 Opex
B1: =IF(dms_DataQuality="backcast",INDEX(dms_Worksheet_List,MATCH(dms_Model,dms_Model_List))&" BACKCAST",INDEX(dms_Worksheet_List,MATCH(dms_Model,dms_Model_List))) -> ANNUAL REPORTING STATEMENT
B2: =INDEX(dms_TradingNameFull_List,MATCH(dms_TradingName,dms_TradingName_List)) -> Energex
B3: =CONCATENATE("Annual Reporting RIN Response ",IF(SUM(dms_SingleYear_Model)>0,CONCATENATE(CRY),CONCATENATE(FRCP_y1," to ",dms_MultiYear_FinalYear_Result))) -> Annual Reporting RIN Response 2017-18
B4: 8.4 OPEX
B6: Instructions
B7: Forecast expenditure is to be taken from Australian Distribution Co.'s distribution determination.
B8: If allocating based on assumptions then provide method in Basis of Preparation. All adjustments must be explained in Basis of Preparation with supporting documentation attached.
B10: 8.4.1 - OPERATING & MAINTENANCE EXPENDITURE - BY PURPOSE
B12: Australian Distribution Co. is to list the operating expenditure categories identified in Australian Distribution Co.'s regulatory proposal at table 3.2.1.1 current opex categories and cost allocations.
B13: Australian Distribution Co. must specify any expenditure category where the expense is more than 5 per cent of the total standard control services operating expenditure.
B14: Reported operating expenditure must INCLUDE any profit margins or management fees paid directly or indirectly to related party contractors (not including actual incurred expenditure of the related party contractor) for the regulatory reporting period.
C16: Audited Statutory Accounts | D16: Adjustments | E16: Distribution business | F16: Standard Control Services | I16: Alternative Control Services | N16: Negotiated Services
F17: CPI Adjusted Forecast | G17: Actual | H17: Difference | I17: Public Lighting | K17: Other
I18: =IF(dms_Jurisdiction="Vic","Energy efficient","") ->  | J18: =IF(dms_Jurisdiction="Vic","Non-energy efficient","") ->  | K18: Connection services | L18: Metering services | M18: Ancillary network services
B19: Opex category | C19: $0's, nominal | H19: % | I19: $0's, nominal
B20: Inspection | C20: 20016021.53 | D20: 0 | E20: 20016021.53 | F20: 23751418.28 | G20: 20016021.53 | H20: =IF(F20=0,1,((G20-F20)/F20)*1) -> -0.1572704713
B21: Planned maintenance | C21: 62718460.99 | D21: 0 | E21: 62718460.99 | F21: 83349343.02 | G21: 62718460.99 | H21: -0.2475230312
B22: Corrective repair | C22: 55038041.74 | D22: 0 | E22: 55038041.74 | F22: 44131004.8 | G22: 55038041.74 | H22: 0.2471513392
B23: Vegetation | C23: 63523613.87 | D23: 0 | E23: 63523613.87 | F23: 68528887.88 | G23: 63523613.87 | H23: -0.07303889156
B24: Emergency response/storms | C24: 11566318.65 | D24: 0 | E24: 11566318.65 | F24: 12710115.85 | G24: 11566318.65 | H24: -0.08999109135
B25: Other network maintenance costs | C25: 18535628.6 | D25: 0 | E25: 18535628.6 | F25: 0 | G25: 0 | H25: 1 | I25: 18535628.6
B26: Network operating costs | C26: 37072131.51 | D26: 0 | E26: 37072131.51 | F26: 30906438.08 | G26: 37072131.51 | H26: 0.199495439
B27: Netwk billing & other (inc meter reading) | C27: 19656136.27 | D27: 0 | E27: 19656136.27 | F27: 3344229.849 | G27: 2657517.763 | H27: -0.2053423711 | I27: 105162.396 | K27: 130758.6087 | L27: 16686493.24 | M27: 76204.26534
B28: Customer services (inc call centre) | C28: 19548312.2 | D28: 0 | E28: 19548312.2 | F28: 20437867.2 | G28: 18359914.94 | H28: -0.1016716781 | I28: 301320.2206 | K28: 374660.6613 | L28: 294069.4497 | M28: 218346.9275
B29: DSM initiatives | C29: 10143522.88 | D29: 0 | E29: 10143522.88 | F29: 18803265.35 | G29: 10143522.88 | H29: -0.460544608
B30: Levies | C30: 8990193 | D30: -171580 | E30: 8818613 | F30: 9099607.208 | G30: 8818613 | H30: -0.0308798173
B31: Debt raising costs | C31: 0 | D31: 0 | E31: 0 | F31: 7264146.457 | G31: 0 | H31: -1
B32: Other operating costs (inc self insurance) | C32: 146128670.5 | D32: -14789241.96 | E32: 131339428.6 | F32: 39528516.27 | G32: 74136535.25 | H32: 0.8755203141 | I32: 2322243.015 | K32: 42041053.81 | L32: 2266362.092 | M32: 10573234.39
H33: 1
H34: 1
H35: =IF(F35=0,1,((G35-F35)/F35)*1) -> 1
H36: 1
H37: 1
H38: 1
H39: 1
H40: 1
H41: =IF(F41=0,1,((G41-F41)/F41)*1) -> 1
H42: 1
H43: 1
H44: 1
H45: 1
H46: 1
H47: 1
H48: 1
H49: 1
H50: 1
H51: 1
H52: 1
H53: 1
H54: 1
H55: 1
H56: 1
H57: 1
H58: 1
H59: 1
H60: 1
H61: 1
H62: 1
H63: 1
H64: 1
H65: 1
H66: 1
H67: 1
H68: 1
H69: 1
B70: Total | C70: =SUM(C20:C69) -> 472937051.8 | D70: -14960821.96 | E70: 457976229.8 | F70: 361854840.2 | G70: 364050692.1 | H70: 0.006068322566 | I70: =SUM(I20:I69) -> 21264354.23 | J70: 0 | K70: 42546473.08 | L70: 19246924.78 | M70: 10867785.58 | N70: 0
B73: 8.4.2 - OPERATING & MAINTENANCE EXPENDITURE - BY PURPOSE - MARGINS ONLY
B75: "Related party margin expenditure' must COMPRISE ONLY profit margins or management fees paid directly or indirectly to related party contractors (for expenditure that is not an actual incurred expenditure of the related party contractor) for the regulatory reporting period.
C77: Audited Statutory Accounts | D77: Adjustments | E77: Distribution business | F77: Standard Control Services | I77: Alternative Control Services | N77: Negotiated Services
F78: CPI Adjusted Forecast | G78: Actual | H78: Difference | I78: Public Lighting | K78: Other
I79: =IF(dms_Jurisdiction="Vic","Energy efficient","") ->  | J79: =IF(dms_Jurisdiction="Vic","Non-energy efficient","") ->  | K79: Connection services | L79: Metering services | M79: Ancillary network services
B80: Opex category | C80: $0's, nominal | G80: $0's, nominal | H80: per cent | I80: $0's, nominal
B81: =IF(ISBLANK(B20),"",B20) -> Inspection | H81: =IF(F81=0,1,((G81-F81)/F81)*1) -> 1
B82: Planned maintenance | H82: 1
B83: Corrective repair | H83: 1
B84: Vegetation | H84: 1
B85: Emergency response/storms | H85: 1
B86: Other network maintenance costs | H86: 1
B87: Network operating costs | H87: 1
B88: Netwk billing & other (inc meter reading) | H88: =IF(F88=0,1,((G88-F88)/F88)*1) -> 1
B89: Customer services (inc call centre) | H89: 1
B90: DSM initiatives | H90: 1
B91: Levies | H91: 1
B92: Debt raising costs | H92: 1
B93: Other operating costs (inc self insurance) | H93: 1
H94: 1
H95: 1
H96: 1
H97: =IF(F97=0,1,((G97-F97)/F97)*1) -> 1
H98: 1
H99: 1
H100: 1
H101: 1
H102: 1
H103: =IF(F103=0,1,((G103-F103)/F103)*1) -> 1
H104: 1
H105: 1
H106: 1
H107: 1
H108: 1
H109: 1
H110: 1
H111: 1
H112: 1
H113: 1
H114: 1
H115: 1
H116: 1
H117: 1
H118: 1
H119: 1
H120: 1
H121: 1
H122: 1
H123: 1
H124: 1
H125: 1
H126: 1
H127: 1
H128: 1
H129: 1
H130: 1
B131: Total | C131: =SUM(C81:C130) -> 0 | D131: =SUM(D81:D130) -> 0 | E131: =SUM(E81:E130) -> 0 | F131: =SUM(F81:F130) -> 0 | G131: =SUM(G81:G130) -> 0 | H131: 1 | I131: =SUM(I81:I130) -> 0 | J131: 0 | K131: 0 | L131: 0 | M131: 0 | N131: 0
B134: 8.4.3 - OPERATING & MAINTENANCE EXPENDITURE - EXPLANATION OF MATERIAL DIFFERENCE
B136: Where the difference between forecast and actual expenditure shown in table 8.4.1, column I is a Material Difference please explain the main factors driving the difference.
B138: Category | C138: Explanation
B139: Inspection ($3.8M underspend) | C139: Inspections targeting specific asset classes and sets based on performance analysis | D139: 0 | E139: 0 | F139: 0 | G139: 0 | H139: 0
B140: Planned maintenance ($20.6M underspend) | C140: Reduced number of non-compliance instances against acceptance criteria identified during the routine maintenance process resulting in less non-routine maintenance work across several asset classes A trade off in the CPI adjusted forecast categories between Planned and Corrective repair | D140: 0 | E140: 0 | F140: 0 | G140: 0 | H140: 0
B141: Corrective repair ($10.9M overspend) | C141: A trade off in the CPI adjusted forecast categories between Planned and Corrective repair resulting in savings for Planned while an increase in Corrective repair with net overall reduction in costs | D141: 0 | E141: 0 | F141: 0 | G141: 0 | H141: 0
B142: Vegetation ($5.0M underspend) | C142: Efficiencies in the vegetation management program reflective of improved strategy, processes, analysis, contractual arrangements and management intervention. | D142: 0 | E142: 0 | F142: 0 | G142: 0 | H142: 0
B143: Emergency response/storms ($1.1M underspend) | C143: Increased asset resiliance and improved efficiency in response to storm events | D143: 0 | E143: 0 | F143: 0 | G143: 0 | H143: 0
B144: Network operating costs ($6.2M overspend) | C144: Increased demand for voltage correction works mostly attributed to solar PV penetration levels and impact on network Additional spend driven by increased activity in network connectivity investigations resulting from a newly implemented project to improve Geographic Information System (GIS) capability and NECF compliance outcomes | D144: 0 | E144: 0 | F144: 0 | G144: 0 | H144: 0
B145: Network billing and other energy market services (including meter reading) ($0.7M underspend) | C145: Reduction in cost due to combination of changes to treatment of intercompany cost and efficiencies in Energex Market Transaction Centre operation costs. | D145: 0 | E145: 0 | F145: 0 | G145: 0 | H145: 0
B146: Customer Services (inc call centre) (2.1M underspend) | C146: Underspend due to efforts to find efficiencies which has led to cross skilling of employees and a reduction of FTEs compared to forecast. | D146: 0 | E146: 0 | F146: 0 | G146: 0 | H146: 0
B147: DSM Initiatives ($8.7M underspend) | C147: The underspend for 2017/18 is a result of the flow on from the 2015/16 board approved decision to reduce expenditure on DSM initiatives for the remaining regulatory period. As a result incentive amounts offered for the PeakSmart program, off-peak load control connections (pools and hot water) and for Business DM programs, were lower than originally forecast. In addition, the number of customers connecting to economy tariffs through pool and hot water incentives has been declining with the increase in metering costs since 1 July 2016. While incentives for battery systems were forecast for the 2017/18 year, these were not offered, resulting in an underspend in this area. | D147: 0 | E147: 0 | F147: 0 | G147: 0 | H147: 0
B148: Debt raising costs ($7.3M underspend) | C148: Following the transfer of ownership of Ergon and Energex from the state to Energy Queensland Limited (EQL) on the 30 June 2016, transfers of debt for both DNSPs were made in order to comply with the Government Owned Corporations Regulation 2016 (Regulation). The share of the State Government debt pool held by the DNSPs prior to the formation of the group was a liability held by each DNSP. In accordance with the Regulation, all DNSP debt (Queensland Treasury Corporation Loans) was transferred back to the Government debt pool. It was then transferred to the parent entity (EQL) at the carrying amount, such that a share of Queensland debt is held in the EQL parent entity. Importantly, no debt raising costs were incurred by the DNSPs during 2017/18 as no debt was raised or refinanced. | D148: 0 | E148: 0 | F148: 0 | G148: 0 | H148: 0
B149: Other operating costs (inc self Insurance) ($34.6M overspend) | C149: The overspend in Other Operating Costs is primarily attributable to cancelled projects expense ($19.9M) and corporate restructuring/redundancy costs ($20.2M)., offset by a decrease in insurance claims explense as this is now reflected in Customer Services (inc call centre) costs. | D149: 0 | E149: 0 | F149: 0 | G149: 0 | H149: 0

Sheet 9.5 TUoS
B1: =IF(dms_DataQuality="backcast",INDEX(dms_Worksheet_List,MATCH(dms_Model,dms_Model_List))&" BACKCAST",INDEX(dms_Worksheet_List,MATCH(dms_Model,dms_Model_List))) -> ANNUAL REPORTING STATEMENT
B2: =INDEX(dms_TradingNameFull_List,MATCH(dms_TradingName,dms_TradingName_List)) -> Energex
B3: =CONCATENATE("Annual Reporting RIN Response ",IF(SUM(dms_SingleYear_Model)>0,CONCATENATE(CRY),CONCATENATE(FRCP_y1," to ",dms_MultiYear_FinalYear_Result))) -> Annual Reporting RIN Response 2017-18
B4: 9.5 - TUoS AUDIT (t-2)
B6: This template collects information for annual pricing proposals from Victorian businesses only.
B8: 9.5.1 - TUOS CHARGES (AEMO)
F9: =CRY -> 2017-18
E16: Total | F16: =SUM(F10:F15) -> 0
B19: 9.5.2 - TRANSMISSION CONNECTION FEES
F20: =CRY -> 2017-18
E27: Total | F27: =SUM(F21:F26) -> 0
B30: 9.5.3 - CROSS BOUNDARY NETWORK CHARGES
C31: Amount (payable)/receivable
C32: $0's, nominal
C33: HV crossings | D33: Subtransmission crossings | E33: TUoS Adjustment | F33: Total
B34: Distribution Business | F34: =CRY -> 2017-18
F35: =IF((SUM(C35:E35)=0),"",(SUM(C35:E35))) -> 
F36: =IF((SUM(C36:E36)=0),"",(SUM(C36:E36))) -> 
B43: Total
B46: 9.5.4 - PAYMENTS TO EMBEDDED GENERATORS
B47: 9.5.4.1 - AVOIDED TRANSMISSION COSTS | F47: 2016-17
B56: Total | F56: =SUM(F48:F55) -> 0
B57: 9.5.4.2 - AVOIDED TUoS USAGE CHARGES | F57: 2016-17
B66: Total | F66: =SUM(F58:F65) -> 0
B67: Total payments to embedded generators | F67: =F66+F56 -> 0
